Workbook

Sheet DATA
B1: timestamp | C1: Demand DK2 | D1: Demand DK1 | E1: Demand total [MW] | F1: Wind total [MW] | G1: Wind DK2 [MW] | H1: Wind DK1 [MW] | I1: Solar total [MW] | J1: Solar DK2 [MW] | K1: Solar DK1 [MW] | L1: Total RP DK1 | M1: Total RP DK2 | N1: datetime | O1: Year | P1: Residual Load DK1 | Q1: Residual Load DK2
A2: 0 | B2: S01T001 | C2: 1748.500108 | D2: 2106.938357 | E2: 3855.438465 | F2: 3966.661547 | G2: 738.7833536 | H2: 3773.025222 | I2: 0 | J2: 0 | K2: 0 | L2: =K2+H2 -> 3773.025222 | M2: =J2+G2 -> 738.7833536 | N2: 2030-01-02 | O2: 2030 | P2: =D2-L2 -> -1666.086865 | Q2: =C2-M2 -> 1009.716754
A3: 1 | B3: S01T002 | C3: 1691.678096 | D3: 2065.598876 | E3: 3757.276972 | F3: 3871.013204 | G3: 785.2633848 | H3: 3669.655147 | I3: 0 | J3: 0 | K3: 0 | L3: =K3+H3 -> 3669.655147 | M3: =J3+G3 -> 785.2633848 | N3: 2030-01-02T01:00:00 | O3: 2030 | P3: =D3-L3 -> -1604.05627 | Q3: =C3-M3 -> 906.4147115
A4: 2 | B4: S01T003 | C4: 1619.139358 | D4: 2078.973414 | E4: 3698.112772 | F4: 3692.523323 | G4: 894.9504067 | H4: 3490.748087 | I4: 0 | J4: 0 | K4: 0 | L4: 3490.748087 | M4: 894.9504067 | N4: 2030-01-02T02:00:00 | O4: 2030 | P4: -1411.774673 | Q4: 724.1889515
A5: 3 | B5: S01T004 | C5: 1588.914884 | D5: 2021.827661 | E5: 3610.742545 | F5: 3991.632145 | G5: 1047.119248 | H5: 3788.395584 | I5: 0 | J5: 0 | K5: 0 | L5: 3788.395584 | M5: 1047.119248 | N5: 2030-01-02T03:00:00 | O5: 2030 | P5: -1766.567923 | Q5: 541.795636
A6: 4 | B6: S01T005 | C6: 1616.7214 | D6: 2087.484484 | E6: 3704.205884 | F6: 4414.315307 | G6: 1168.797197 | H6: 4204.30161 | I6: 0 | J6: 0 | K6: 0 | L6: 4204.30161 | M6: 1168.797197 | N6: 2030-01-02T04:00:00 | O6: 2030 | P6: -2116.817126 | Q6: 447.9242038
A7: 5 | B7: S01T006 | C7: 1724.320528 | D7: 2255.274142 | E7: 3979.59467 | F7: 5390.639234 | G7: 1219.524015 | H7: 5160.337588 | I7: 0 | J7: 0 | K7: 0 | L7: 5160.337588 | M7: 1219.524015 | N7: 2030-01-02T05:00:00 | O7: 2030 | P7: -2905.063446 | Q7: 504.7965136
A8: 6 | B8: S01T007 | C8: 1998.758754 | D8: 2690.554559 | E8: 4689.313313 | F8: 5852.542439 | G8: 1260.014314 | H8: 5576.775785 | I8: 0 | J8: 0 | K8: 0 | L8: 5576.775785 | M8: 1260.014314 | N8: 2030-01-02T06:00:00 | O8: 2030 | P8: -2886.221225 | Q8: 738.7444395
A9: 7 | B9: S01T008 | C9: 2316.720222 | D9: 3280.219382 | E9: 5596.939605 | F9: 8432.371413 | G9: 1830.16827 | H9: 7545.632116 | I9: 0.3198339781 | J9: 0.318392227 | K9: 0.001441751151 | L9: 7545.633558 | M9: 1830.486663 | N9: 2030-01-02T07:00:00 | O9: 2030 | P9: -4265.414176 | Q9: 486.2335598
A10: 8 | B10: S01T009 | C10: 2472.678509 | D10: 3666.895831 | E10: 6139.57434 | F10: 8395.5655 | G10: 1876.470059 | H10: 7417.012883 | I10: 14.95312669 | J10: 10.26181677 | K10: 4.691309918 | L10: 7421.704193 | M10: 1886.731876 | N10: 2030-01-02T08:00:00 | O10: 2030 | P10: -3754.808362 | Q10: 585.9466332
A11: 9 | B11: S01T010 | C11: 2536.754395 | D11: 3687.565572 | E11: 6224.319966 | F11: 8136.953205 | G11: 1874.346394 | H11: 7154.980997 | I11: 41.43580781 | J11: 25.35090812 | K11: 16.08489969 | L11: 7171.065896 | M11: 1899.697302 | N11: 2030-01-02T09:00:00 | O11: 2030 | P11: -3483.500325 | Q11: 637.0570924
A12: 10 | B12: S01T011 | C12: 2571.814785 | D12: 3779.49685 | E12: 6351.311634 | F12: 8683.10241 | G12: 1869.219108 | H12: 7708.873442 | I12: 73.0645382 | J12: 47.29107078 | K12: 25.77346742 | L12: 7734.646909 | M12: 1916.510179 | N12: 2030-01-02T10:00:00 | O12: 2030 | P12: -3955.150059 | Q12: 655.3046056
A13: 11 | B13: S01T012 | C13: 2581.486616 | D13: 3785.576185 | E13: 6367.062802 | F13: 8568.998599 | G13: 1889.728326 | H13: 7601.180807 | I13: 90.33094622 | J13: 59.51283305 | K13: 30.81811317 | L13: 7631.99892 | M13: 1949.241159 | N13: 2030-01-02T11:00:00 | O13: 2030 | P13: -3846.422735 | Q13: 632.2454571
A14: 12 | B14: S01T013 | C14: 2576.6507 | D14: 3643.319736 | E14: 6219.970436 | F14: 8286.586557 | G14: 1935.786824 | H14: 7318.845236 | I14: 79.67874939 | J14: 51.54988777 | K14: 28.12886162 | L14: 7346.974098 | M14: 1987.336712 | N14: 2030-01-02T12:00:00 | O14: 2030 | P14: -3703.654362 | Q14: 589.3139884
A15: 13 | B15: S01T014 | C15: 2569.396827 | D15: 3640.888002 | E15: 6210.284828 | F15: 8352.394449 | G15: 1952.950519 | H15: 7376.232772 | I15: 50.00755542 | J15: 32.29662149 | K15: 17.71093393 | L15: 7393.943706 | M15: 1985.24714 | N15: 2030-01-02T13:00:00 | O15: 2030 | P15: -3753.055704 | Q15: 584.1496864
A16: 14 | B16: S01T015 | C16: 2518.61971 | D16: 3592.253318 | E16: 6110.873028 | F16: 8500.385917 | G16: 1833.380215 | H16: 7609.714439 | I16: 11.29391971 | J16: 6.976942976 | K16: 4.316976735 | L16: 7614.031416 | M16: 1840.357158 | N16: 2030-01-02T14:00:00 | O16: 2030 | P16: -4021.778098 | Q16: 678.2625516
A17: 15 | B17: S01T016 | C17: 2481.141362 | D17: 3502.694993 | E17: 5983.836355 | F17: 8003.10025 | G17: 1721.202168 | H17: 7155.162836 | I17: 0 | J17: 0 | K17: 0 | L17: 7155.162836 | M17: 1721.202168 | N17: 2030-01-02T15:00:00 | O17: 2030 | P17: -3652.467843 | Q17: 759.9391945
A18: 16 | B18: S01T017 | C18: 2616.630741 | D18: 3698.021711 | E18: 6314.652452 | F18: 7434.886462 | G18: 1549.330583 | H18: 6667.550939 | I18: 0 | J18: 0 | K18: 0 | L18: 6667.550939 | M18: 1549.330583 | N18: 2030-01-02T16:00:00 | O18: 2030 | P18: -2969.529228 | Q18: 1067.300158
A19: 17 | B19: S01T018 | C19: 2806.94784 | D19: 4048.306903 | E19: 6855.254743 | F19: 6701.422119 | G19: 1297.568546 | H19: 6104.432301 | I19: 0 | J19: 0 | K19: 0 | L19: 6104.432301 | M19: 1297.568546 | N19: 2030-01-02T17:00:00 | O19: 2030 | P19: -2056.125398 | Q19: 1509.379294
A20: 18 | B20: S01T019 | C20: 2800.902945 | D20: 3875.750248 | E20: 6676.653193 | F20: 6160.393601 | G20: 1183.383885 | H20: 5624.033042 | I20: 0 | J20: 0 | K20: 0 | L20: 5624.033042 | M20: 1183.383885 | N20: 2030-01-02T18:00:00 | O20: 2030 | P20: -1748.282795 | Q20: 1617.51906
A21: 19 | B21: S01T020 | C21: 2640.44753 | D21: 3614.193028 | E21: 6254.640559 | F21: 6097.563598 | G21: 1089.895565 | H21: 5609.872249 | I21: 0 | J21: 0 | K21: 0 | L21: 5609.872249 | M21: 1089.895565 | N21: 2030-01-02T19:00:00 | O21: 2030 | P21: -1995.679221 | Q21: 1550.551965
A22: 20 | B22: S01T021 | C22: 2482.350341 | D22: 3336.407538 | E22: 5818.757879 | F22: 6084.778093 | G22: 1085.961908 | H22: 5535.525661 | I22: 0 | J22: 0 | K22: 0 | L22: 5535.525661 | M22: 1085.961908 | N22: 2030-01-02T20:00:00 | O22: 2030 | P22: -2199.118123 | Q22: 1396.388433
A23: 21 | B23: S01T022 | C23: 2344.526739 | D23: 3127.389472 | E23: 5471.916211 | F23: 5783.752306 | G23: 968.4016899 | H23: 5268.729869 | I23: 0 | J23: 0 | K23: 0 | L23: 5268.729869 | M23: 968.4016899 | N23: 2030-01-02T21:00:00 | O23: 2030 | P23: -2141.340396 | Q23: 1376.125049
A24: 22 | B24: S01T023 | C24: 2136.582356 | D24: 2889.956762 | E24: 5026.539118 | F24: 4974.649026 | G24: 913.3118904 | H24: 4434.924297 | I24: 0 | J24: 0 | K24: 0 | L24: 4434.924297 | M24: 913.3118904 | N24: 2030-01-02T22:00:00 | O24: 2030 | P24: -1544.967535 | Q24: 1223.270466
A25: 23 | B25: S01T024 | C25: 1939.518785 | D25: 2615.1708 | E25: 4554.689585 | F25: 3299.580406 | G25: 460.6194995 | H25: 3165.794482 | I25: 0 | J25: 0 | K25: 0 | L25: 3165.794482 | M25: 460.6194995 | N25: 2030-01-02T23:00:00 | O25: 2030 | P25: -550.6236817 | Q25: 1478.899285
A26: 24 | B26: S01T025 | C26: 1773.888666 | D26: 2395.098857 | E26: 4168.987523 | F26: 3031.650736 | G26: 435.8917435 | H26: 2932.037228 | I26: 0 | J26: 0 | K26: 0 | L26: 2932.037228 | M26: 435.8917435 | N26: 2030-01-03 | O26: 2030 | P26: -536.9383706 | Q26: 1337.996923
A27: 25 | B27: S01T026 | C27: 1733.99236 | D27: 2368.349781 | E27: 4102.342141 | F27: 2623.049441 | G27: 404.1606868 | H27: 2564.382634 | I27: 0 | J27: 0 | K27: 0 | L27: 2564.382634 | M27: 404.1606868 | N27: 2030-01-03T01:00:00 | O27: 2030 | P27: -196.0328527 | Q27: 1329.831673
A28: 26 | B28: S01T027 | C28: 1683.215244 | D28: 2342.816572 | E28: 4026.031816 | F28: 2187.893786 | G28: 367.6369392 | H28: 2147.948994 | I28: 0 | J28: 0 | K28: 0 | L28: 2147.948994 | M28: 367.6369392 | N28: 2030-01-03T02:00:00 | O28: 2030 | P28: 194.8675781 | Q28: 1315.578304
A29: 27 | B29: S01T028 | C29: 1704.976865 | D29: 2399.962325 | E29: 4104.93919 | F29: 1619.378526 | G29: 364.7496002 | H29: 1586.200222 | I29: 0 | J29: 0 | K29: 0 | L29: 1586.200222 | M29: 364.7496002 | N29: 2030-01-03T03:00:00 | O29: 2030 | P29: 813.7621034 | Q29: 1340.227265
A30: 28 | B30: S01T029 | C30: 1746.08215 | D30: 2415.768598 | E30: 4161.850747 | F30: 1613.078308 | G30: 381.9373312 | H30: 1576.933039 | I30: 0 | J30: 0 | K30: 0 | L30: 1576.933039 | M30: 381.9373312 | N30: 2030-01-03T04:00:00 | O30: 2030 | P30: 838.8355584 | Q30: 1364.144819
A31: 29 | B31: S01T030 | C31: 1836.755572 | D31: 2577.47892 | E31: 4414.234493 | F31: 3416.885793 | G31: 417.5422571 | H31: 3376.844709 | I31: 0 | J31: 0 | K31: 0 | L31: 3376.844709 | M31: 417.5422571 | N31: 2030-01-03T05:00:00 | O31: 2030 | P31: -799.3657886 | Q31: 1419.213315
A32: 30 | B32: S01T031 | C32: 2111.193798 | D32: 3011.543471 | E32: 5122.737269 | F32: 3858.337576 | G32: 458.3463599 | H32: 3813.272019 | I32: 0 | J32: 0 | K32: 0 | L32: 3813.272019 | M32: 458.3463599 | N32: 2030-01-03T06:00:00 | O32: 2030 | P32: -801.728548 | Q32: 1652.847438
A33: 31 | B33: S01T032 | C33: 2493.231152 | D33: 3650.274337 | E33: 6143.505489 | F33: 5616.378542 | G33: 594.2914672 | H33: 5451.503277 | I33: 0.7087927455 | J33: 0.7078197118 | K33: 0.0009730336989 | L33: 5451.50425 | M33: 594.9992869 | N33: 2030-01-03T07:00:00 | O33: 2030 | P33: -1801.229913 | Q33: 1898.231865
A34: 32 | B34: S01T033 | C34: 2647.255211 | D34: 3890.886514 | E34: 6538.141725 | F34: 6004.949319 | G34: 760.5756632 | H34: 5702.501199 | I34: 29.90783122 | J34: 21.70230923 | K34: 8.205521985 | L34: 5710.706721 | M34: 782.2779725 | N34: 2030-01-03T08:00:00 | O34: 2030 | P34: -1819.820207 | Q34: 1864.977239
A35: 33 | B35: S01T034 | C35: 2676.378112 | D35: 3865.245526 | E35: 6541.623637 | F35: 6396.716058 | G35: 999.4778774 | H35: 5936.729392 | I35: 86.30066297 | J35: 42.21096346 | K35: 44.08969951 | L35: 5980.819091 | M35: 1041.688841 | N35: 2030-01-03T09:00:00 | O35: 2030 | P35: -2115.573566 | Q35: 1634.689271
A36: 34 | B36: S01T035 | C36: 2727.155228 | D36: 3962.320654 | E36: 6689.475882 | F36: 6780.447145 | G36: 1231.287416 | H36: 6161.141649 | I36: 158.2829751 | J36: 65.04973393 | K36: 93.23324113 | L36: 6254.37489 | M36: 1296.33715 | N36: 2030-01-03T10:00:00 | O36: 2030 | P36: -2292.054236 | Q36: 1430.818078
A37: 35 | B37: S01T036 | C37: 2751.334808 | D37: 4018.25054 | E37: 6769.585347 | F37: 7383.833334 | G37: 1464.536035 | H37: 6585.65351 | I37: 209.8444129 | J37: 74.90718475 | K37: 134.9372281 | L37: 6720.590738 | M37: 1539.44322 | N37: 2030-01-03T11:00:00 | O37: 2030 | P37: -2702.340198 | Q37: 1211.891588
A38: 36 | B38: S01T037 | C38: 2744.080934 | D38: 3938.075007 | E38: 6682.155941 | F38: 7797.0959 | G38: 1631.46664 | H38: 6921.816545 | I38: 198.050736 | J38: 74.97027946 | K38: 123.0804565 | L38: 7044.897002 | M38: 1706.43692 | N38: 2030-01-03T12:00:00 | O38: 2030 | P38: -3106.821994 | Q38: 1037.644014
A39: 37 | B39: S01T038 | C39: 2799.693966 | D39: 3992.789026 | E39: 6792.482993 | F39: 8000.012457 | G39: 1662.683523 | H39: 7189.886903 | I39: 115.680906 | J39: 43.9576428 | K39: 71.72326325 | L39: 7261.610166 | M39: 1706.641166 | N39: 2030-01-03T13:00:00 | O39: 2030 | P39: -3268.82114 | Q39: 1093.0528
A40: 38 | B40: S01T039 | C40: 2843.217209 | D40: 3964.824083 | E40: 6808.041292 | F40: 8035.954938 | G40: 1547.721169 | H40: 7379.128169 | I40: 24.75447757 | J40: 11.47624612 | K40: 13.27823145 | L40: 7392.406401 | M40: 1559.197415 | N40: 2030-01-03T14:00:00 | O40: 2030 | P40: -3427.582318 | Q40: 1284.019794
A41: 39 | B41: S01T040 | C41: 2866.18781 | D41: 3903.959033 | E41: 6770.146843 | F41: 7848.599283 | G41: 1397.718226 | H41: 7309.396179 | I41: 0 | J41: 0 | K41: 0 | L41: 7309.396179 | M41: 1397.718226 | N41: 2030-01-03T15:00:00 | O41: 2030 | P41: -3405.437146 | Q41: 1468.469584
A42: 40 | B42: S01T041 | C42: 2968.951022 | D42: 4044.999616 | E42: 7013.950637 | F42: 7815.801732 | G42: 1401.923908 | H42: 7227.494468 | I42: 0 | J42: 0 | K42: 0 | L42: 7227.494468 | M42: 1401.923908 | N42: 2030-01-03T16:00:00 | O42: 2030 | P42: -3182.494853 | Q42: 1567.027114
A43: 41 | B43: S01T042 | C43: 3106.774624 | D43: 4268.71916 | E43: 7375.493784 | F43: 7844.676033 | G43: 1369.806699 | H43: 7264.998758 | I43: 0 | J43: 0 | K43: 0 | L43: 7264.998758 | M43: 1369.806699 | N43: 2030-01-03T17:00:00 | O43: 2030 | P43: -2996.279598 | Q43: 1736.967925
A44: 42 | B44: S01T043 | C44: 2990.712643 | D44: 4006.091869 | E44: 6996.804512 | F44: 7929.296872 | G44: 1391.97202 | H44: 7342.000297 | I44: 0 | J44: 0 | K44: 0 | L44: 7342.000297 | M44: 1391.97202 | N44: 2030-01-03T18:00:00 | O44: 2030 | P44: -3335.908429 | Q44: 1598.740624
A45: 43 | B45: S01T044 | C45: 2764.633576 | D45: 3753.26321 | E45: 6517.896786 | F45: 8196.809843 | G45: 1540.636563 | H45: 7503.383071 | I45: 0 | J45: 0 | K45: 0 | L45: 7503.383071 | M45: 1540.636563 | N45: 2030-01-03T19:00:00 | O45: 2030 | P45: -3750.119861 | Q45: 1223.997013
A46: 44 | B46: S01T045 | C46: 2563.943068 | D46: 3552.64514 | E46: 6116.588208 | F46: 8400.772304 | G46: 1626.706954 | H46: 7664.036832 | I46: 0 | J46: 0 | K46: 0 | L46: 7664.036832 | M46: 1626.706954 | N46: 2030-01-03T20:00:00 | O46: 2030 | P46: -4111.391692 | Q46: 937.2361136
A47: 45 | B47: S01T046 | C47: 2410.402739 | D47: 3455.066145 | E47: 5865.468884 | F47: 8635.733156 | G47: 1720.41686 | H47: 7846.581367 | I47: 0 | J47: 0 | K47: 0 | L47: 7846.581367 | M47: 1720.41686 | N47: 2030-01-03T21:00:00 | O47: 2030 | P47: -4391.515223 | Q47: 689.9858785
A48: 46 | B48: S01T047 | C48: 2223.010999 | D48: 3233.966434 | E48: 5456.977433 | F48: 8778.868378 | G48: 1768.666566 | H48: 7974.797637 | I48: 0 | J48: 0 | K48: 0 | L48: 7974.797637 | M48: 1768.666566 | N48: 2030-01-03T22:00:00 | O48: 2030 | P48: -4740.831203 | Q48: 454.3444325
A49: 47 | B49: S01T048 | C49: 2071.297492 | D49: 3011.06885 | E49: 5082.366342 | F49: 8757.019711 | G49: 1789.397267 | H49: 7975.04987 | I49: 0 | J49: 0 | K49: 0 | L49: 7975.04987 | M49: 1789.397267 | N49: 2030-01-03T23:00:00 | O49: 2030 | P49: -4963.98102 | Q49: 281.9002249
A50: 48 | B50: S01T049 | C50: 1932.264911 | D50: 2855.912483 | E50: 4788.177394 | F50: 8559.686572 | G50: 2086.966074 | H50: 7595.518633 | I50: 0 | J50: 0 | K50: 0 | L50: 7595.518633 | M50: 2086.966074 | N50: 2030-01-04 | O50: 2030 | P50: -4739.606149 | Q50: -154.7011628
A51: 49 | B51: S01T050 | C51: 1846.427404 | D51: 2741.620977 | E51: 4588.048381 | F51: 6371.218645 | G51: 1783.625889 | H51: 5847.581559 | I51: 0 | J51: 0 | K51: 0 | L51: 5847.581559 | M51: 1783.625889 | N51: 2030-01-04T01:00:00 | O51: 2030 | P51: -3105.960582 | Q51: 62.80151479
A52: 50 | B52: S01T051 | C52: 1827.083741 | D52: 2688.122825 | E52: 4515.206566 | F52: 6320.623768 | G52: 1728.095268 | H52: 5912.822227 | I52: 0 | J52: 0 | K52: 0 | L52: 5912.822227 | M52: 1728.095268 | N52: 2030-01-04T02:00:00 | O52: 2030 | P52: -3224.699402 | Q52: 98.98847215
A53: 51 | B53: S01T052 | C53: 1814.993951 | D53: 2691.770427 | E53: 4506.764377 | F53: 6228.584733 | G53: 1708.902876 | H53: 5830.918488 | I53: 0 | J53: 0 | K53: 0 | L53: 5830.918488 | M53: 1708.902876 | N53: 2030-01-04T03:00:00 | O53: 2030 | P53: -3139.148062 | Q53: 106.0910745
A54: 52 | B54: S01T053 | C54: 1846.427404 | D54: 2724.598838 | E54: 4571.026242 | F54: 6320.17731 | G54: 1727.649248 | H54: 5924.502073 | I54: 0 | J54: 0 | K54: 0 | L54: 5924.502073 | M54: 1727.649248 | N54: 2030-01-04T04:00:00 | O54: 2030 | P54: -3199.903235 | Q54: 118.7781558
A55: 53 | B55: S01T054 | C55: 1962.489385 | D55: 2870.502888 | E55: 4832.992273 | F55: 6387.086699 | G55: 1797.703451 | H55: 5961.934692 | I55: 0 | J55: 0 | K55: 0 | L55: 5961.934692 | M55: 1797.703451 | N55: 2030-01-04T05:00:00 | O55: 2030 | P55: -3091.431803 | Q55: 164.7859337
A56: 54 | B56: S01T055 | C56: 2234.509653 | D56: 3339.827584 | E56: 5574.337237 | F56: 6477.327108 | G56: 1884.798606 | H56: 6020.040587 | I56: 0 | J56: 0 | K56: 0 | L56: 6020.040587 | M56: 1884.798606 | N56: 2030-01-04T06:00:00 | O56: 2030 | P56: -2680.213003 | Q56: 349.7110465
A57: 55 | B57: S01T056 | C57: 2592.367427 | D57: 3935.066802 | E57: 6527.434229 | F57: 11187.95528 | G57: 2855.932416 | H57: 9860.840284 | I57: 0.7930248768 | J57: 0.7881300427 | K57: 0.004894834156 | L57: 9860.845179 | M57: 2856.720546 | N57: 2030-01-04T07:00:00 | O57: 2030 | P57: -5925.778377 | Q57: -264.353119
A58: 56 | B58: S01T057 | C58: 2726.564092 | D58: 4091.913656 | E58: 6818.477749 | F58: 11551.10837 | G58: 3045.88167 | H58: 10138.75593 | I58: 31.00507919 | J58: 24.51963159 | K58: 6.485447597 | L58: 10145.24138 | M58: 3070.401302 | N58: 2030-01-04T08:00:00 | O58: 2030 | P58: -6053.32772 | Q58: -343.8372095
A59: 57 | B59: S01T058 | C59: 2747.116735 | D59: 3885.216251 | E59: 6632.332986 | F59: 11208.50329 | G59: 3136.900836 | H59: 9786.172878 | I59: 79.31072376 | J59: 60.94963719 | K59: 18.36108657 | L59: 9804.533965 | M59: 3197.850473 | N59: 2030-01-04T09:00:00 | O59: 2030 | P59: -5919.317713 | Q59: -450.7337379
A60: 58 | B60: S01T059 | C60: 2765.251419 | D60: 3946.009606 | E60: 6711.261025 | F60: 10519.30926 | G60: 3221.612677 | H60: 9052.356559 | I60: 108.4482461 | J60: 83.46234269 | K60: 24.98590344 | L60: 9077.342463 | M60: 3305.07502 | N60: 2030-01-04T10:00:00 | O60: 2030 | P60: -5131.332857 | Q60: -539.8236005
A61: 59 | B61: S01T060 | C61: 2744.698777 | D61: 3954.520675 | E61: 6699.219452 | F61: 10372.43502 | G61: 3312.380673 | H61: 8821.678215 | I61: 105.9744888 | J61: 81.64621378 | K61: 24.32827506 | L61: 8846.00649 | M61: 3394.026886 | N61: 2030-01-04T11:00:00 | O61: 2030 | P61: -4891.485814 | Q61: -649.3281094
A62: 60 | B62: S01T061 | C62: 2724.146134 | D62: 3866.978245 | E62: 6591.124379 | F62: 9793.054834 | G62: 3356.802446 | H62: 8197.899987 | I62: 81.02282698 | J62: 63.43559886 | K62: 17.58722812 | L62: 8215.487215 | M62: 3420.238045 | N62: 2030-01-04T12:00:00 | O62: 2030 | P62: -4348.50897 | Q62: -696.0919106
A63: 61 | B63: S01T062 | C63: 2707.220429 | D63: 3886.432118 | E63: 6593.652547 | F63: 9776.30615 | G63: 3363.381476 | H63: 8174.572274 | I63: 36.86895271 | J63: 26.9483995 | K63: 9.920553211 | L63: 8184.492827 | M63: 3390.329875 | N63: 2030-01-04T13:00:00 | O63: 2030 | P63: -4298.060708 | Q63: -683.1094462
A64: 62 | B64: S01T063 | C64: 2709.638387 | D64: 3851.171973 | E64: 6560.81036 | F64: 9582.076188 | G64: 3363.381603 | H64: 7980.342185 | I64: 7.732690469 | J64: 5.433180447 | K64: 2.299510023 | L64: 7982.641695 | M64: 3368.814783 | N64: 2030-01-04T14:00:00 | O64: 2030 | P64: -4131.469722 | Q64: -659.1763964
A65: 63 | B65: S01T064 | C65: 2714.474303 | D65: 3783.083416 | E65: 6497.557719 | F65: 9459.266197 | G65: 3322.268617 | H65: 7898.64518 | I65: 0 | J65: 0 | K65: 0 | L65: 7898.64518 | M65: 3322.268617 | N65: 2030-01-04T15:00:00 | O65: 2030 | P65: -4115.561764 | Q65: -607.7943144
A66: 64 | B66: S01T065 | C66: 2901.866043 | D66: 3915.626014 | E66: 6817.492057 | F66: 9363.197152 | G66: 3222.539581 | H66: 7902.305171 | I66: 0 | J66: 0 | K66: 0 | L66: 7902.305171 | M66: 3222.539581 | N66: 2030-01-04T16:00:00 | O66: 2030 | P66: -3986.679157 | Q66: -320.6735382
A67: 65 | B67: S01T066 | C67: 3084.421867 | D67: 4241.28334 | E67: 7325.705206 | F67: 8835.225734 | G67: 2586.648582 | H67: 8010.224751 | I67: 0 | J67: 0 | K67: 0 | L67: =K67+H67 -> 8010.224751 | M67: =J67+G67 -> 2586.648582 | N67: 2030-01-04T17:00:00 | O67: 2030 | P67: =D67-L67 -> -3768.941412 | Q67: =C67-M67 -> 497.7732848
A68: 66 | B68: S01T067 | C68: 3017.928024 | D68: 4050.565328 | E68: 7068.493351 | F68: 8719.522133 | G68: 2434.655865 | H68: 8046.513868 | I68: 0 | J68: 0 | K68: 0 | L68: 8046.513868 | M68: 2434.655865 | N68: 2030-01-04T18:00:00 | O68: 2030 | P68: -3995.94854 | Q68: 583.2721586
A69: 67 | B69: S01T068 | C69: 2811.19262 | D69: 3808.616625 | E69: 6619.809245 | F69: 8285.86335 | G69: 2368.757361 | H69: 7670.554878 | I69: 0 | J69: 0 | K69: 0 | L69: 7670.554878 | M69: 2368.757361 | N69: 2030-01-04T19:00:00 | O69: 2030 | P69: -3861.938254 | Q69: 442.4352595
A70: 68 | B70: S01T069 | C70: 2638.308628 | D70: 3555.036059 | E70: 6193.344687 | F70: 6893.582749 | G70: 2353.905248 | H70: 6278.274213 | I70: 0 | J70: 0 | K70: 0 | L70: 6278.274213 | M70: 2353.905248 | N70: 2030-01-04T20:00:00 | O70: 2030 | P70: -2723.238154 | Q70: 284.4033798
A71: 69 | B71: S01T070 | C71: 2441.245056 | D71: 3285.113565 | E71: 5726.358622 | F71: 3463.35313 | G71: 2305.760702 | H71: 2848.044594 | I71: 0 | J71: 0 | K71: 0 | L71: 2848.044594 | M71: 2305.760702 | N71: 2030-01-04T21:00:00 | O71: 2030 | P71: 437.0689715 | Q71: 135.4843542
A72: 70 | B72: S01T071 | C72: 2242.972505 | D72: 3032.213211 | E72: 5275.185717 | F72: 3015.807908 | G72: 2219.587561 | H72: 2430.651174 | I72: 0 | J72: 0 | K72: 0 | L72: 2430.651174 | M72: 2219.587561 | N72: 2030-01-04T22:00:00 | O72: 2030 | P72: 601.5620368 | Q72: 23.38494441
A73: 71 | B73: S01T072 | C73: 2083.387282 | D73: 2819.436471 | E73: 4902.823752 | F73: 2063.253021 | G73: 1838.73173 | H73: 1823.058073 | I73: 0 | J73: 0 | K73: 0 | L73: 1823.058073 | M73: 1838.73173 | N73: 2030-01-04T23:00:00 | O73: 2030 | P73: 996.3783975 | Q73: 244.6555514
A74: 72 | B74: S01T073 | C74: 1960.071427 | D74: 2611.523199 | E74: 4571.594626 | F74: 1589.57908 | G74: 1589.57908 | H74: 1589.57908 | I74: 0 | J74: 0 | K74: 0 | L74: 1589.57908 | M74: 1589.57908 | N74: 2030-01-05 | O74: 2030 | P74: 1021.944119 | Q74: 370.4923475
A75: 73 | B75: S01T074 | C75: 1873.024941 | D75: 2514.253832 | E75: 4387.278773 | F75: 1585.167542 | G75: 1585.167542 | H75: 1585.167542 | I75: 0 | J75: 0 | K75: 0 | L75: 1585.167542 | M75: 1585.167542 | N75: 2030-01-05T01:00:00 | O75: 2030 | P75: 929.08629 | Q75: 287.8573997
A76: 74 | B76: S01T075 | C76: 1827.083741 | D76: 2425.495534 | E76: 4252.579275 | F76: 1585.305692 | G76: 1585.305692 | H76: 1585.305692 | I76: 0 | J76: 0 | K76: 0 | L76: 1585.305692 | M76: 1585.305692 | N76: 2030-01-05T02:00:00 | O76: 2030 | P76: 840.1898422 | Q76: 241.7780486
A77: 75 | B77: S01T076 | C77: 1823.456804 | D77: 2413.336863 | E77: 4236.793667 | F77: 1620.734291 | G77: 1620.734291 | H77: 1620.734291 | I77: 0 | J77: 0 | K77: 0 | L77: 1620.734291 | M77: 1620.734291 | N77: 2030-01-05T03:00:00 | O77: 2030 | P77: 792.6025726 | Q77: 202.7225129
A78: 76 | B78: S01T077 | C78: 1870.606983 | D78: 2430.359003 | E78: 4300.965986 | F78: 1298.560809 | G78: 1298.560809 | H78: 1298.560809 | I78: 0 | J78: 0 | K78: 0 | L78: 1298.560809 | M78: 1298.560809 | N78: 2030-01-05T04:00:00 | O78: 2030 | P78: 1131.798194 | Q78: 572.0461744
A79: 77 | B79: S01T078 | C79: 1960.071427 | D79: 2637.056408 | E79: 4597.127835 | F79: 1704.34749 | G79: 1704.34749 | H79: 1704.34749 | I79: 0 | J79: 0 | K79: 0 | L79: 1704.34749 | M79: 1704.34749 | N79: 2030-01-05T05:00:00 | O79: 2030 | P79: 932.7089176 | Q79: 255.7239371
A80: 78 | B80: S01T079 | C80: 2269.570043 | D80: 3226.751945 | E80: 5496.321988 | F80: 2768.602168 | G80: 2343.893413 | H80: 2153.793123 | I80: 0 | J80: 0 | K80: 0 | L80: 2153.793123 | M80: 2343.893413 | N80: 2030-01-05T06:00:00 | O80: 2030 | P80: 1072.958822 | Q80: -74.32336996
A81: 79 | B81: S01T080 | C81: 2644.353523 | D81: 3851.707628 | E81: 6496.061151 | F81: 3956.592921 | G81: 2364.576756 | H81: 3341.284385 | I81: 1.747302232 | J81: 1.737631226 | K81: 0.009671005666 | L81: 3341.294056 | M81: 2366.314387 | N81: 2030-01-05T07:00:00 | O81: 2030 | P81: 510.4135728 | Q81: 278.0391352
A82: 80 | B82: S01T081 | C82: 2790.639978 | D82: 4113.119052 | E82: 6903.75903 | F82: 4243.740328 | G82: 2366.953989 | H82: 3628.431856 | I82: 97.74085789 | J82: 71.53456846 | K82: 26.20628943 | L82: 3654.638146 | M82: 2438.488558 | N82: 2030-01-05T08:00:00 | O82: 2030 | P82: 458.4809065 | Q82: 352.15142
A83: 81 | B83: S01T082 | C83: 2842.626073 | D83: 4096.096913 | E83: 6938.722986 | F83: 4311.773222 | G83: 2373.46912 | H83: 3696.464751 | I83: 349.7560115 | J83: 288.0235497 | K83: 61.73246175 | L83: 3758.197212 | M83: 2661.49267 | N83: 2030-01-05T09:00:00 | O83: 2030 | P83: 337.8997007 | Q83: 181.1334032
A84: 82 | B84: S01T083 | C84: 2888.567274 | D84: 4175.128274 | E84: 7063.695548 | F84: 5771.813092 | G84: 2376.956071 | H84: 5156.50462 | I84: 445.4316263 | J84: 398.9022821 | K84: 46.52934419 | L84: 5203.033965 | M84: 2775.858353 | N84: 2030-01-05T10:00:00 | O84: 2030 | P84: -1027.905691 | Q84: 112.7089208
A85: 83 | B85: S01T084 | C85: 2888.567274 | D85: 4099.744514 | E85: 6988.311788 | F85: 5634.675604 | G85: 2376.956071 | H85: 5019.367132 | I85: 375.0200791 | J85: 339.5735888 | K85: 35.44649036 | L85: 5054.813623 | M85: 2716.52966 | N85: 2030-01-05T11:00:00 | O85: 2030 | P85: -955.0691084 | Q85: 172.0376141
A86: 84 | B86: S01T085 | C86: 2845.044031 | D86: 4000.043413 | E86: 6845.087444 | F86: 5539.682173 | G86: 2376.088228 | H86: 4924.373702 | I86: 241.5903509 | J86: 200.0147568 | K86: 41.57559403 | L86: 4965.949296 | M86: 2576.102984 | N86: 2030-01-05T12:00:00 | O86: 2030 | P86: -965.9058827 | Q86: 268.9410467
A87: 85 | B87: S01T086 | C87: 2797.893851 | D87: 4023.144888 | E87: 6821.038739 | F87: 5785.795473 | G87: 2376.926095 | H87: 5170.486937 | I87: 119.4055333 | J87: 80.88680772 | K87: 38.5187256 | L87: 5209.005662 | M87: 2457.812903 | N87: 2030-01-05T13:00:00 | O87: 2030 | P87: -1185.860775 | Q87: 340.0809486
A88: 86 | B88: S01T087 | C88: 2754.370609 | D88: 3917.364451 | E88: 6671.73506 | F88: 6133.064438 | G88: 2376.518441 | H88: 5517.755967 | I88: 20.31824633 | J88: 10.73398306 | K88: 9.584263272 | L88: 5527.34023 | M88: 2387.252424 | N88: 2030-01-05T14:00:00 | O88: 2030 | P88: -1609.975779 | Q88: 367.1181849
A89: 87 | B89: S01T088 | C89: 2703.593492 | D89: 3908.853382 | E89: 6612.446874 | F89: 6247.883951 | G89: 2374.652763 | H89: 5632.57548 | I89: 0 | J89: 0 | K89: 0 | L89: 5632.57548 | M89: 2374.652763 | N89: 2030-01-05T15:00:00 | O89: 2030 | P89: -1723.722098 | Q89: 328.9407295
A90: 88 | B90: S01T089 | C90: 2903.075022 | D90: 4115.152189 | E90: 7018.22721 | F90: 9770.958118 | G90: 2371.85749 | H90: 9155.649646 | I90: 0 | J90: 0 | K90: 0 | L90: 9155.649646 | M90: 2371.85749 | N90: 2030-01-05T16:00:00 | O90: 2030 | P90: -5040.497458 | Q90: 531.2175311
A91: 89 | B91: S01T090 | C91: 3086.839825 | D91: 4375.347746 | E91: 7462.18757 | F91: 10049.2856 | G91: 2372.308843 | H91: 9433.977129 | I91: 0 | J91: 0 | K91: 0 | L91: 9433.977129 | M91: 2372.308843 | N91: 2030-01-05T17:00:00 | O91: 2030 | P91: -5058.629384 | Q91: 714.5309814
A92: 90 | B92: S01T091 | C92: 3007.047213 | D92: 4168.914353 | E92: 7175.961566 | F92: 9961.028773 | G92: 2369.723603 | H92: 9348.471508 | I92: 0 | J92: 0 | K92: 0 | L92: 9348.471508 | M92: 2369.723603 | N92: 2030-01-05T18:00:00 | O92: 2030 | P92: -5179.557155 | Q92: 637.3236095
A93: 91 | B93: S01T092 | C93: 2828.118326 | D93: 3873.593236 | E93: 6701.711562 | F93: 6603.371902 | G93: 2330.509696 | H93: 5989.429415 | I93: 0 | J93: 0 | K93: 0 | L93: 5989.429415 | M93: 2330.509696 | N93: 2030-01-05T19:00:00 | O93: 2030 | P93: -2115.836179 | Q93: 497.6086301
A94: 92 | B94: S01T093 | C94: 2650.398417 | D94: 3585.432736 | E94: 6235.831154 | F94: 6534.679585 | G94: 2194.432272 | H94: 5930.399578 | I94: 0 | J94: 0 | K94: 0 | L94: 5930.399578 | M94: 2194.432272 | N94: 2030-01-05T20:00:00 | O94: 2030 | P94: -2344.966841 | Q94: 455.9661457
A95: 93 | B95: S01T094 | C95: 2475.096467 | D95: 3337.39585 | E95: 5812.492317 | F95: 5766.538708 | G95: 2051.317261 | H95: 5192.359717 | I95: 0 | J95: 0 | K95: 0 | L95: 5192.359717 | M95: 2051.317261 | N95: 2030-01-05T21:00:00 | O95: 2030 | P95: -1854.963867 | Q95: 423.7792065
A96: 94 | B96: S01T095 | C96: 2269.570043 | D96: 3102.733502 | E96: 5372.303545 | F96: 3829.468874 | G96: 1457.40744 | H96: 3829.468874 | I96: 0 | J96: 0 | K96: 0 | L96: 3829.468874 | M96: 1457.40744 | N96: 2030-01-05T22:00:00 | O96: 2030 | P96: -726.7353722 | Q96: 812.1626029
A97: 95 | B97: S01T096 | C97: 2103.939924 | D97: 2840.106211 | E97: 4944.046135 | F97: 1925.564698 | G97: 1532.155469 | H97: 1925.564698 | I97: 0 | J97: 0 | K97: 0 | L97: 1925.564698 | M97: 1532.155469 | N97: 2030-01-05T23:00:00 | O97: 2030 | P97: 914.5415134 | Q97: 571.7844551
A98: 96 | B98: S01T097 | C98: 1929.846953 | D98: 2610.307332 | E98: 4540.154284 | F98: 1801.065472 | G98: 1576.544181 | H98: 1801.065472 | I98: 0 | J98: 0 | K98: 0 | L98: 1801.065472 | M98: 1576.544181 | N98: 2030-01-06 | O98: 2030 | P98: 809.2418594 | Q98: 353.3027716
A99: 97 | B99: S01T098 | C99: 1863.35311 | D99: 2489.93649 | E99: 4353.2896 | F99: 1588.297712 | G99: 1588.297712 | H99: 1588.297712 | I99: 0 | J99: 0 | K99: 0 | L99: 1588.297712 | M99: 1588.297712 | N99: 2030-01-06T01:00:00 | O99: 2030 | P99: 901.6387776 | Q99: 275.0553973
A100: 98 | B100: S01T099 | C100: 1827.083741 | D100: 2430.359003 | E100: 4257.442743 | F100: 1592.599472 | G100: 1592.599472 | H100: 1592.599472 | I100: 0 | J100: 0 | K100: 0 | L100: 1592.599472 | M100: 1592.599472 | N100: 2030-01-06T02:00:00 | O100: 2030 | P100: 837.7595309 | Q100: 234.484269
A101: 99 | B101: S01T100 | C101: 1806.531098 | D101: 2418.200332 | E101: 4224.73143 | F101: 1475.854492 | G101: 1475.854492 | H101: 1475.854492 | I101: 0 | J101: 0 | K101: 0 | L101: 1475.854492 | M101: 1475.854492 | N101: 2030-01-06T03:00:00 | O101: 2030 | P101: 942.3458396 | Q101: 330.6766061
A102: 100 | B102: S01T101 | C102: 1858.517194 | D102: 2463.187414 | E102: 4321.704608 | F102: 1265.951333 | G102: 1265.951333 | H102: 1265.951333 | I102: 0 | J102: 0 | K102: 0 | L102: 1265.951333 | M102: 1265.951333 | N102: 2030-01-06T04:00:00 | O102: 2030 | P102: 1197.236081 | Q102: 592.565861
A103: 101 | B103: S01T102 | C103: 1951.608574 | D103: 2674.748287 | E103: 4626.356862 | F103: 1341.866105 | G103: 1157.662079 | H103: 1341.866105 | I103: 0 | J103: 0 | K103: 0 | L103: 1341.866105 | M103: 1157.662079 | N103: 2030-01-06T05:00:00 | O103: 2030 | P103: 1332.882182 | Q103: 793.9464954
A104: 102 | B104: S01T103 | C104: 2241.763526 | D104: 3191.4918 | E104: 5433.255326 | F104: 2895.55061 | G104: 1218.656216 | H104: 2846.402722 | I104: 0 | J104: 0 | K104: 0 | L104: 2846.402722 | M104: 1218.656216 | N104: 2030-01-06T06:00:00 | O104: 2030 | P104: 345.0890775 | Q104: 1023.10731
A105: 103 | B105: S01T104 | C105: 2610.502112 | D105: 3895.478844 | E105: 6505.980955 | F105: 6220.803199 | G105: 1745.518593 | H105: 5731.190836 | I105: 0.9034590058 | J105: 0.8922453858 | K105: 0.01121362007 | L105: 5731.202049 | M105: 1746.410838 | N105: 2030-01-06T07:00:00 | O105: 2030 | P105: -1835.723206 | Q105: 864.0912732
A106: 104 | B106: S01T105 | C106: 2728.98205 | D106: 4189.718679 | E106: 6918.700729 | F106: 6263.160031 | G106: 1782.797459 | H106: 5798.707175 | I106: 75.27316174 | J106: 54.71218838 | K106: 20.56097337 | L106: 5819.268148 | M106: 1837.509648 | N106: 2030-01-06T08:00:00 | O106: 2030 | P106: -1629.549469 | Q106: 891.4724026
A107: 105 | B107: S01T106 | C107: 2736.235924 | D107: 4160.537869 | E107: 6896.773793 | F107: 6244.477017 | G107: 1776.493068 | H107: 5742.226155 | I107: 305.3356407 | J107: 230.5710538 | K107: 74.76458687 | L107: 5816.990741 | M107: 2007.064122 | N107: 2030-01-06T09:00:00 | O107: 2030 | P107: -1656.452873 | Q107: 729.1718021
A108: 106 | B108: S01T107 | C108: 2741.07184 | D108: 4162.969603 | E108: 6904.041443 | F108: 6176.705391 | G108: 1654.759148 | H108: 5658.492651 | I108: 462.2181195 | J108: 352.3483754 | K108: 109.8697441 | L108: 5768.362395 | M108: 2007.107523 | N108: 2030-01-06T10:00:00 | O108: 2030 | P108: -1605.392792 | Q108: 733.9643167
A109: 107 | B109: S01T108 | C109: 2693.92166 | D109: 4034.087692 | E109: 6728.009352 | F109: 5744.369932 | G109: 1385.464252 | H109: 5246.72313 | I109: 490.7565097 | J109: 377.1293129 | K109: 113.6271968 | L109: 5360.350327 | M109: 1762.593565 | N109: 2030-01-06T11:00:00 | O109: 2030 | P109: -1326.262636 | Q109: 931.3280956
A110: 108 | B110: S01T109 | C110: 2641.935565 | D110: 3811.584015 | E110: 6453.519579 | F110: 5521.330194 | G110: 1059.620576 | H110: 5058.316058 | I110: 405.4408549 | J110: 300.1734415 | K110: 105.2674134 | L110: 5163.583471 | M110: 1359.794017 | N110: 2030-01-06T12:00:00 | O110: 2030 | P110: -1351.999457 | Q110: 1282.141547
A111: 109 | B111: S01T110 | C111: 2602.039259 | D111: 3724.041584 | E111: 6326.080843 | F111: 4876.806781 | G111: 949.2154132 | H111: 4481.440753 | I111: 216.6695468 | J111: 157.5703278 | K111: 59.09921897 | L111: 4540.539972 | M111: 1106.785741 | N111: 2030-01-06T13:00:00 | O111: 2030 | P111: -816.4983879 | Q111: 1495.253518
A112: 110 | B112: S01T111 | C112: 2540.381331 | D112: 3591.512072 | E112: 6131.893403 | F112: 4512.964099 | G112: 1145.614133 | H112: 4247.230728 | I112: 39.19304596 | J112: 29.81958688 | K112: 9.373459081 | L112: 4256.604187 | M112: 1175.43372 | N112: 2030-01-06T14:00:00 | O112: 2030 | P112: -665.0921157 | Q112: 1364.947612
A113: 111 | B113: S01T112 | C113: 2511.365836 | D113: 3443.176287 | E113: 5954.542123 | F113: 4520.989468 | G113: 1372.065305 | H113: 4338.200965 | I113: 0 | J113: 0 | K113: 0 | L113: 4338.200965 | M113: 1372.065305 | N113: 2030-01-06T15:00:00 | O113: 2030 | P113: -895.0246783 | Q113: 1139.300532
A114: 112 | B114: S01T113 | C114: 2691.503702 | D114: 3739.401155 | E114: 6430.904858 | F114: 8363.4633 | G114: 1907.771092 | H114: 7950.257258 | I114: 0 | J114: 0 | K114: 0 | L114: 7950.257258 | M114: 1907.771092 | N114: 2030-01-06T16:00:00 | O114: 2030 | P114: -4210.856102 | Q114: 783.73261
A115: 113 | B115: S01T114 | C115: 2893.108863 | D115: 4172.299012 | E115: 7065.407875 | F115: 9600.959644 | G115: 2315.324505 | H115: 8974.754756 | I115: 0 | J115: 0 | K115: 0 | L115: 8974.754756 | M115: 2315.324505 | N115: 2030-01-06T17:00:00 | O115: 2030 | P115: -4802.455744 | Q115: 577.7843581
A116: 114 | B116: S01T115 | C116: 2860.812081 | D116: 4024.262525 | E116: 6885.074606 | F116: 10280.43616 | G116: 2888.75605 | H116: 9142.944372 | I116: 0 | J116: 0 | K116: 0 | L116: 9142.944372 | M116: 2888.75605 | N116: 2030-01-06T18:00:00 | O116: 2030 | P116: -5118.681847 | Q116: -27.943969
A117: 115 | B117: S01T116 | C117: 2680.622892 | D117: 3728.458352 | E117: 6409.081243 | F117: 10807.21785 | G117: 3149.295619 | H117: 9418.621141 | I117: 0 | J117: 0 | K117: 0 | L117: 9418.621141 | M117: 3149.295619 | N117: 2030-01-06T19:00:00 | O117: 2030 | P117: -5690.162789 | Q117: -468.6727276
A118: 116 | B118: S01T117 | C118: 2511.365836 | D118: 3407.916141 | E118: 5919.281978 | F118: 6841.63328 | G118: 2314.238203 | H118: 6289.042676 | I118: 0 | J118: 0 | K118: 0 | L118: 6289.042676 | M118: 2314.238203 | N118: 2030-01-06T20:00:00 | O118: 2030 | P118: -2881.126535 | Q118: 197.1276328
A119: 117 | B119: S01T118 | C119: 2389.25896 | D119: 3200.002869 | E119: 5589.26183 | F119: 6847.181743 | G119: 2319.786666 | H119: 6289.042676 | I119: 0 | J119: 0 | K119: 0 | L119: 6289.042676 | M119: 2319.786666 | N119: 2030-01-06T21:00:00 | O119: 2030 | P119: -3089.039807 | Q119: 69.4722945
A120: 118 | B120: S01T119 | C120: 2217.583947 | D120: 2984.794395 | E120: 5202.378342 | F120: 6899.345334 | G120: 2334.10101 | H120: 6322.058517 | I120: 0 | J120: 0 | K120: 0 | L120: 6322.058517 | M120: 2334.10101 | N120: 2030-01-06T22:00:00 | O120: 2030 | P120: -3337.264123 | Q120: -116.5170626
A121: 119 | B121: S01T120 | C121: 2053.162808 | D121: 2647.999211 | E121: 4701.162019 | F121: 5743.776029 | G121: 2305.93338 | H121: 5135.722109 | I121: 0 | J121: 0 | K121: 0 | L121: 5135.722109 | M121: 2305.93338 | N121: 2030-01-06T23:00:00 | O121: 2030 | P121: -2487.722897 | Q121: -252.7705728
A122: 120 | B122: S01T121 | C122: 1909.29431 | D122: 2350.111775 | E122: 4259.406085 | F122: 3448.438168 | G122: 2138.743608 | H122: 2838.469149 | I122: 0 | J122: 0 | K122: 0 | L122: 2838.469149 | M122: 2138.743608 | N122: 2030-01-07 | O122: 2030 | P122: -488.3573742 | Q122: -229.4492972
A123: 121 | B123: S01T122 | C123: 1825.874762 | D123: 2279.591484 | E123: 4105.466245 | F123: 2756.530257 | G123: 1947.507492 | H123: 2147.72553 | I123: 0 | J123: 0 | K123: 0 | L123: 2147.72553 | M123: 1947.507492 | N123: 2030-01-07T01:00:00 | O123: 2030 | P123: 131.8659535 | Q123: -121.6327305
A124: 122 | B124: S01T123 | C124: 1770.261729 | D124: 2246.763072 | E124: 4017.024801 | F124: 2055.736391 | G124: 1831.2151 | H124: 1446.617598 | I124: 0 | J124: 0 | K124: 0 | L124: 1446.617598 | M124: 1831.2151 | N124: 2030-01-07T02:00:00 | O124: 2030 | P124: 800.1454741 | Q124: -60.9533709
A125: 123 | B125: S01T124 | C125: 1761.798876 | D125: 2267.432813 | E125: 4029.231689 | F125: 2160.20701 | G125: 1772.561866 | H125: 1549.12629 | I125: 0 | J125: 0 | K125: 0 | L125: 1549.12629 | M125: 1772.561866 | N125: 2030-01-07T03:00:00 | O125: 2030 | P125: 718.3065231 | Q125: -10.7629901
A126: 124 | B126: S01T125 | C126: 1758.171939 | D126: 2289.31842 | E126: 4047.49036 | F126: 1944.658281 | G126: 1726.05478 | H126: 1334.786739 | I126: 0 | J126: 0 | K126: 0 | L126: 1334.786739 | M126: 1726.05478 | N126: 2030-01-07T04:00:00 | O126: 2030 | P126: 954.5316812 | Q126: 32.11715923
A127: 125 | B127: S01T126 | C127: 1793.23233 | D127: 2363.486313 | E127: 4156.718642 | F127: 1876.899717 | G127: 1654.357262 | H127: 1283.248611 | I127: 0 | J127: 0 | K127: 0 | L127: 1283.248611 | M127: 1654.357262 | N127: 2030-01-07T05:00:00 | O127: 2030 | P127: 1080.237701 | Q127: 138.8750676
A128: 126 | B128: S01T127 | C128: 1891.159626 | D128: 2488.720623 | E128: 4379.880249 | F128: 2864.071978 | G128: 1529.342932 | H128: 2308.058381 | I128: 0 | J128: 0 | K128: 0 | L128: 2308.058381 | M128: 1529.342932 | N128: 2030-01-07T06:00:00 | O128: 2030 | P128: 180.6622416 | Q128: 361.8166938
A129: 127 | B129: S01T128 | C129: 2035.028123 | D129: 2671.100686 | E129: 4706.128809 | F129: 5892.776956 | G129: 1431.679752 | H129: 5369.28487 | I129: 2.776240055 | J129: 2.752744852 | K129: 0.02349520395 | L129: 5369.308365 | M129: 1434.432497 | N129: 2030-01-07T07:00:00 | O129: 2030 | P129: -2698.207679 | Q129: 600.5956258
A130: 128 | B130: S01T129 | C130: 2182.523557 | D130: 2928.864509 | E130: 5111.388066 | F130: 6151.633284 | G130: 1375.024338 | H130: 5629.970412 | I130: 181.3349743 | J130: 142.2753843 | K130: 39.05958994 | L130: 5669.030002 | M130: 1517.299723 | N130: 2030-01-07T08:00:00 | O130: 2030 | P130: -2740.165494 | Q130: 665.2238344
A131: 129 | B131: S01T130 | C131: 2345.735718 | D131: 3094.222433 | E131: 5439.95815 | F131: 6343.009261 | G131: 1354.691425 | H131: 5784.196724 | I131: 452.6434718 | J131: 326.7518972 | K131: 125.8915746 | L131: =K131+H131 -> 5910.088298 | M131: =J131+G131 -> 1681.443322 | N131: 2030-01-07T09:00:00 | O131: 2030 | P131: =D131-L131 -> -2815.865866 | Q131: =C131-M131 -> 664.2923954
A132: 130 | B132: S01T131 | C132: 2437.618119 | D132: 3147.720584 | E132: 5585.338704 | F132: 5646.555867 | G132: 1220.953774 | H132: 5061.788131 | I132: 601.8895182 | J132: 430.5525233 | K132: 171.3369949 | L132: 5233.125126 | M132: 1651.506298 | N132: 2030-01-07T10:00:00 | O132: 2030 | P132: -2085.404541 | Q132: 786.1118216
A133: 131 | B133: S01T132 | C133: 2473.887488 | D133: 3139.209515 | E133: 5613.097003 | F133: 4352.603046 | G133: 1054.017238 | H133: 3781.389777 | I133: 629.0632061 | J133: 456.2186023 | K133: 172.8446038 | L133: 3954.234381 | M133: 1510.235841 | N133: 2030-01-07T11:00:00 | O133: 2030 | P133: -815.0248658 | Q133: 963.6516476
A134: 132 | B134: S01T133 | C134: 2458.170762 | D134: 3074.768559 | E134: 5532.939321 | F134: 3802.822601 | G134: 964.5890823 | H134: 3269.521332 | I134: 529.3593121 | J134: 384.6840339 | K134: 144.6752782 | L134: 3414.196611 | M134: 1349.273116 | N134: 2030-01-07T12:00:00 | O134: 2030 | P134: -339.4280514 | Q134: 1108.897645
A135: 133 | B135: S01T134 | C135: 2435.200161 | D135: 3028.090989 | E135: 5463.291151 | F135: 4762.21981 | G135: 1716.051157 | H135: 3448.733814 | I135: 323.0064526 | J135: 234.7244104 | K135: 88.28204221 | L135: 3537.015856 | M135: 1950.775567 | N135: 2030-01-07T13:00:00 | O135: 2030 | P135: -508.9248666 | Q135: 484.4245939
A136: 134 | B136: S01T135 | C136: 2387.755655 | D136: 2979.507253 | E136: 5367.262908 | F136: 4559.918605 | G136: 1496.377097 | H136: 3487.512362 | I136: 63.89519495 | J136: 44.78226186 | K136: 19.11293309 | L136: 3506.625295 | M136: 1541.159359 | N136: 2030-01-07T14:00:00 | O136: 2030 | P136: -527.1180423 | Q136: 846.5962956
A137: 135 | B137: S01T136 | C137: 2410.235384 | D137: 2975.368906 | E137: 5385.60429 | F137: 4962.69045 | G137: 1271.962208 | H137: 4176.326927 | I137: 0 | J137: 0 | K137: 0 | L137: 4176.326927 | M137: 1271.962208 | N137: 2030-01-07T15:00:00 | O137: 2030 | P137: -1200.958021 | Q137: 1138.273176
A138: 136 | B138: S01T137 | C138: 2599.718831 | D138: 3254.686008 | E138: 5854.40484 | F138: 5109.892518 | G138: 921.4296828 | H138: 4718.620092 | I138: 0 | J138: 0 | K138: 0 | L138: 4718.620092 | M138: 921.4296828 | N138: 2030-01-07T16:00:00 | O138: 2030 | P138: -1463.934084 | Q138: 1678.289149
A139: 137 | B139: S01T138 | C139: 2791.231114 | D139: 3621.877869 | E139: 6413.108982 | F139: 5389.560385 | G139: 844.0825023 | H139: 5092.390824 | I139: 0 | J139: 0 | K139: 0 | L139: 5092.390824 | M139: 844.0825023 | N139: 2030-01-07T17:00:00 | O139: 2030 | P139: -1470.512955 | Q139: 1947.148611
A140: 138 | B140: S01T139 | C140: 2741.662976 | D140: 3510.018097 | E140: 6251.681073 | F140: 5382.142544 | G140: 1007.864746 | H140: 4973.347022 | I140: 0 | J140: 0 | K140: 0 | L140: 4973.347022 | M140: 1007.864746 | N140: 2030-01-07T18:00:00 | O140: 2030 | P140: -1463.328926 | Q140: 1733.79823
A141: 139 | B141: S01T140 | C141: 2538.554509 | D141: 3184.165717 | E141: 5722.720227 | F141: 5901.095997 | G141: 1182.334027 | H141: 5370.119136 | I141: 0 | J141: 0 | K141: 0 | L141: 5370.119136 | M141: 1182.334027 | N141: 2030-01-07T19:00:00 | O141: 2030 | P141: -2185.953419 | Q141: 1356.220482
A142: 140 | B142: S01T141 | C142: 2364.461538 | D142: 2977.468312 | E142: 5341.92985 | F142: 6424.187211 | G142: 1329.061475 | H142: 5783.867487 | I142: 0 | J142: 0 | K142: 0 | L142: 5783.867487 | M142: 1329.061475 | N142: 2030-01-07T20:00:00 | O142: 2030 | P142: -2806.399174 | Q142: 1035.400063
A143: 141 | B143: S01T142 | C143: 2252.026494 | D143: 2758.562403 | E143: 5010.588897 | F143: 6424.252872 | G143: 1301.714921 | H143: 5858.980499 | I143: 0 | J143: 0 | K143: 0 | L143: 5858.980499 | M143: 1301.714921 | N143: 2030-01-07T21:00:00 | O143: 2030 | P143: -3100.418097 | Q143: 950.3115735
A144: 142 | B144: S01T143 | C144: 2121.780282 | D144: 2612.291313 | E144: 4734.071595 | F144: 7256.706874 | G144: 1346.504666 | H144: 6691.555101 | I144: 0 | J144: 0 | K144: 0 | L144: 6691.555101 | M144: 1346.504666 | N144: 2030-01-07T22:00:00 | O144: 2030 | P144: -4079.263788 | Q144: 775.2756165
A145: 143 | B145: S01T144 | C145: 2041.073018 | D145: 2513.779211 | E145: 4554.852229 | F145: 6979.787478 | G145: 1425.389363 | H145: 6375.416092 | I145: 0 | J145: 0 | K145: 0 | L145: 6375.416092 | M145: 1425.389363 | N145: 2030-01-07T23:00:00 | O145: 2030 | P145: -3861.636881 | Q145: 615.6836549
A146: 144 | B146: S01T145 | C146: 1912.921247 | D146: 2370.781515 | E146: 4283.702763 | F146: 4700.327025 | G146: 1087.453293 | H146: 4435.687477 | I146: 0 | J146: 0 | K146: 0 | L146: 4435.687477 | M146: 1087.453293 | N146: 2030-01-08 | O146: 2030 | P146: -2064.905962 | Q146: 825.4679543
A147: 145 | B147: S01T146 | C147: 1796.859266 | D147: 2254.058275 | E147: 4050.917541 | F147: 4225.187768 | G147: 1050.984601 | H147: 3960.576201 | I147: 0 | J147: 0 | K147: 0 | L147: 3960.576201 | M147: 1050.984601 | N147: 2030-01-08T01:00:00 | O147: 2030 | P147: -1706.517926 | Q147: 745.8746657
A148: 146 | B148: S01T147 | C148: 1733.99236 | D148: 2173.811047 | E148: 3907.803407 | F148: 3979.733198 | G148: 1031.35363 | H148: 3733.59455 | I148: 0 | J148: 0 | K148: 0 | L148: 3733.59455 | M148: 1031.35363 | N148: 2030-01-08T02:00:00 | O148: 2030 | P148: -1559.783503 | Q148: 702.6387298
A149: 147 | B149: S01T148 | C149: 1713.439718 | D149: 2151.925439 | E149: 3865.365157 | F149: 2806.319476 | G149: 1060.217247 | H149: 2575.883757 | I149: 0 | J149: 0 | K149: 0 | L149: 2575.883757 | M149: 1060.217247 | N149: 2030-01-08T03:00:00 | O149: 2030 | P149: -423.9583178 | Q149: 653.2224711
A150: 148 | B150: S01T149 | C150: 1713.439718 | D150: 2136.119167 | E150: 3849.558885 | F150: 2705.506519 | G150: 1124.210845 | H150: 2474.177955 | I150: 0 | J150: 0 | K150: 0 | L150: 2474.177955 | M150: 1124.210845 | N150: 2030-01-08T04:00:00 | O150: 2030 | P150: -338.058788 | Q150: 589.2288727
A151: 149 | B151: S01T150 | C151: 1721.90257 | D151: 2207.855325 | E151: 3929.757896 | F151: 2824.276498 | G151: 1257.48167 | H151: 2532.621026 | I151: 0 | J151: 0 | K151: 0 | L151: 2532.621026 | M151: 1257.48167 | N151: 2030-01-08T05:00:00 | O151: 2030 | P151: -324.7657003 | Q151: 464.4209005
A152: 150 | B152: S01T151 | C152: 1769.05275 | D152: 2291.750155 | E152: 4060.802905 | F152: 2254.172175 | G152: 1408.789035 | H152: 1894.574607 | I152: 0 | J152: 0 | K152: 0 | L152: 1894.574607 | M152: 1408.789035 | N152: 2030-01-08T06:00:00 | O152: 2030 | P152: 397.1755473 | Q152: 360.2637147
A153: 151 | B153: S01T152 | C153: 1880.278815 | D153: 2471.698484 | E153: 4351.977299 | F153: 2235.225604 | G153: 1526.186845 | H153: 1845.093389 | I153: 0.6608047333 | J153: 0.6520830288 | K153: 0.008721704496 | L153: 1845.102111 | M153: 1526.838928 | N153: 2030-01-08T07:00:00 | O153: 2030 | P153: 626.5963729 | Q153: 353.4398876
A154: 152 | B154: S01T153 | C154: 2009.639565 | D154: 2757.427249 | E154: 4767.066814 | F154: 2291.042157 | G154: 1618.05665 | H154: 1895.891616 | I154: 25.84193139 | J154: 14.28128241 | K154: 11.56064898 | L154: 1907.452265 | M154: 1632.337932 | N154: 2030-01-08T08:00:00 | O154: 2030 | P154: 849.974984 | Q154: 377.3016325
A155: 153 | B155: S01T154 | C155: 2139.000314 | D155: 2945.886648 | E155: 5084.886962 | F155: 3525.152268 | G155: 1692.169721 | H155: 3119.133309 | I155: 90.38117998 | J155: 32.10037728 | K155: 58.2808027 | L155: 3177.414111 | M155: 1724.270098 | N155: 2030-01-08T09:00:00 | O155: 2030 | P155: -231.5274634 | Q155: 414.7302158
A156: 154 | B156: S01T155 | C156: 2226.0468 | D156: 2999.3848 | E156: 5225.4316 | F156: 3575.756742 | G156: 1799.72905 | H156: 3141.524014 | I156: 145.9307908 | J156: 67.31085452 | K156: 78.61993624 | L156: 3220.14395 | M156: 1867.039905 | N156: 2030-01-08T10:00:00 | O156: 2030 | P156: -220.7591503 | Q156: 359.0068953
A157: 155 | B157: S01T156 | C157: 2280.450853 | D157: 3096.654167 | E157: 5377.10502 | F157: 3753.924399 | G157: 1867.627334 | H157: 3313.483339 | I157: 182.8147621 | J157: 131.1398496 | K157: 51.67491251 | L157: 3365.158251 | M157: 1998.767183 | N157: 2030-01-08T11:00:00 | O157: 2030 | P157: -268.5040843 | Q157: 281.68367
A158: 156 | B158: S01T157 | C158: 2291.331664 | D158: 3106.381104 | E158: 5397.712768 | F158: 5412.579568 | G158: 1911.545895 | H158: 4971.587644 | I158: 146.7263615 | J158: 108.3087958 | K158: 38.41756569 | L158: 5010.005209 | M158: 2019.85469 | N158: 2030-01-08T12:00:00 | O158: 2030 | P158: -1903.624106 | Q158: 271.4769737
A159: 157 | B159: S01T158 | C159: 2292.540643 | D159: 3065.041623 | E159: 5357.582266 | F159: 5378.324973 | G159: 1924.987832 | H159: 4925.200852 | I159: 83.31409518 | J159: 58.49378546 | K159: 24.82030972 | L159: 4950.021162 | M159: 1983.481617 | N159: 2030-01-08T13:00:00 | O159: 2030 | P159: -1884.979539 | Q159: 309.0590261
A160: 158 | B160: S01T159 | C160: 2311.884307 | D160: 3043.156015 | E160: 5355.040321 | F160: 5465.278344 | G160: 1936.990817 | H160: 4982.125682 | I160: 22.69035637 | J160: 15.34472325 | K160: 7.34563312 | L160: 4989.471315 | M160: 1952.33554 | N160: 2030-01-08T14:00:00 | O160: 2030 | P160: -1946.3153 | Q160: 359.5487667
A161: 159 | B161: S01T160 | C161: 2357.825507 | D161: 3080.847895 | E161: 5438.673402 | F161: 5529.620702 | G161: 1909.401784 | H161: 4990.485598 | I161: 0.0009848999635 | J161: 0 | K161: 0.0009848999635 | L161: 4990.486583 | M161: 1909.401784 | N161: 2030-01-08T15:00:00 | O161: 2030 | P161: -1909.638688 | Q161: 448.4237237
A162: 160 | B162: S01T161 | C162: 2540.381331 | D162: 3388.462268 | E162: 5928.843599 | F162: 6349.190418 | G162: 1790.467941 | H162: 5798.007835 | I162: 0 | J162: 0 | K162: 0 | L162: 5798.007835 | M162: 1790.467941 | N162: 2030-01-08T16:00:00 | O162: 2030 | P162: -2409.545567 | Q162: 749.9133902
A163: 161 | B163: S01T162 | C163: 2735.026945 | D163: 3755.193516 | E163: 6490.220461 | F163: 9518.043332 | G163: 2566.783986 | H163: 8109.937803 | I163: 0 | J163: 0 | K163: 0 | L163: 8109.937803 | M163: 2566.783986 | N163: 2030-01-08T17:00:00 | O163: 2030 | P163: -4354.744287 | Q163: 168.2429591
A164: 162 | B164: S01T163 | C164: 2679.413913 | D164: 3666.476953 | E164: 6345.890865 | F164: 9785.367251 | G164: 2402.969342 | H164: 8502.246489 | I164: 0 | J164: 0 | K164: 0 | L164: 8502.246489 | M164: 2402.969342 | N164: 2030-01-08T18:00:00 | O164: 2030 | P164: -4835.769536 | Q164: 276.4445704
A165: 163 | B165: S01T164 | C165: 2521.037668 | D165: 3420.816059 | E165: 5941.853727 | F165: 8935.153984 | G165: 2269.55142 | H165: 7709.660589 | I165: 0 | J165: 0 | K165: 0 | L165: 7709.660589 | M165: 2269.55142 | N165: 2030-01-08T19:00:00 | O165: 2030 | P165: -4288.84453 | Q165: 251.486248
A166: 164 | B166: S01T165 | C166: 2359.034486 | D166: 3203.251873 | E166: 5562.286359 | F166: 8079.593966 | G166: 1800.154944 | H166: 7251.293579 | I166: 0 | J166: 0 | K166: 0 | L166: 7251.293579 | M166: 1800.154944 | N166: 2030-01-08T20:00:00 | O166: 2030 | P166: -4048.041706 | Q166: 558.8795421
A167: 165 | B167: S01T166 | C167: 2228.464758 | D167: 3020.05454 | E167: 5248.519298 | F167: 7315.614598 | G167: 1543.667101 | H167: 6682.737766 | I167: 0 | J167: 0 | K167: 0 | L167: 6682.737766 | M167: 1543.667101 | N167: 2030-01-08T21:00:00 | O167: 2030 | P167: -3662.683226 | Q167: 684.7976568
A168: 166 | B168: S01T167 | C168: 2064.043618 | D168: 2768.370053 | E168: 4832.413671 | F168: 5092.837221 | G168: 1142.633803 | H168: 4798.142903 | I168: 0 | J168: 0 | K168: 0 | L168: 4798.142903 | M168: 1142.633803 | N168: 2030-01-08T22:00:00 | O168: 2030 | P168: -2029.772849 | Q168: 921.4098151
A169: 167 | B169: S01T168 | C169: 1892.368605 | D169: 2561.672648 | E169: 4454.041253 | F169: 4336.6976 | G169: 1059.920483 | H169: 4093.821188 | I169: 0 | J169: 0 | K169: 0 | L169: 4093.821188 | M169: 1059.920483 | N169: 2030-01-08T23:00:00 | O169: 2030 | P169: -1532.14854 | Q169: 832.4481222
A170: 168 | B170: S02T001 | C170: 1790.814372 | D170: 2393.88299 | E170: 4184.697362 | F170: 4202.786292 | G170: 1022.698949 | H170: 3990.429177 | I170: 0 | J170: 0 | K170: 0 | L170: 3990.429177 | M170: 1022.698949 | N170: 2030-01-09 | O170: 2030 | P170: -1596.546187 | Q170: 768.1154227
A171: 169 | B171: S02T002 | C171: 1709.812781 | D171: 2314.851629 | E171: 4024.66441 | F171: 3640.417387 | G171: 976.7107959 | H171: 3450.375953 | I171: 0 | J171: 0 | K171: 0 | L171: 3450.375953 | M171: 976.7107959 | N171: 2030-01-09T01:00:00 | O171: 2030 | P171: -1135.524324 | Q171: 733.1019849
A172: 170 | B172: S02T003 | C172: 1675.96137 | D172: 2252.842408 | E172: 3928.803777 | F172: 3203.872331 | G172: 891.0263204 | H172: 3024.663498 | I172: 0 | J172: 0 | K172: 0 | L172: 3024.663498 | M172: 891.0263204 | N172: 2030-01-09T02:00:00 | O172: 2030 | P172: -771.8210906 | Q172: 784.9350493
A173: 171 | B173: S02T004 | C173: 1675.96137 | D173: 2213.934661 | E173: 3889.896031 | F173: 3429.06007 | G173: 811.9703881 | H173: 3255.789871 | I173: 0 | J173: 0 | K173: 0 | L173: 3255.789871 | M173: 811.9703881 | N173: 2030-01-09T03:00:00 | O173: 2030 | P173: -1041.85521 | Q173: 863.9909816
A174: 172 | B174: S02T005 | C174: 1717.066655 | D174: 2198.128389 | E174: 3915.195043 | F174: 3485.294187 | G174: 757.7971612 | H174: 3325.109459 | I174: 0 | J174: 0 | K174: 0 | L174: 3325.109459 | M174: 757.7971612 | N174: 2030-01-09T04:00:00 | O174: 2030 | P174: -1126.981071 | Q174: 959.2694934
A175: 173 | B175: S02T006 | C175: 1830.710678 | D175: 2509.390363 | E175: 4340.101041 | F175: 3900.139463 | G175: 698.9585786 | H175: 3765.075187 | I175: 0 | J175: 0 | K175: 0 | L175: 3765.075187 | M175: 698.9585786 | N175: 2030-01-09T05:00:00 | O175: 2030 | P175: -1255.684824 | Q175: 1131.752099
A176: 174 | B176: S02T007 | C176: 2149.807485 | D176: 3135.531034 | E176: 5285.338519 | F176: 5350.011038 | G176: 806.405431 | H176: 5048.153692 | I176: 0 | J176: 0 | K176: 0 | L176: 5048.153692 | M176: 806.405431 | N176: 2030-01-09T06:00:00 | O176: 2030 | P176: -1912.622659 | Q176: 1343.402054
A177: 175 | B177: S02T008 | C177: 2537.34553 | D177: 3868.698888 | E177: 6406.044418 | F177: 5403.473027 | G177: 676.429684 | H177: 5141.876251 | I177: 1.042343646 | J177: 1.017068502 | K177: 0.02527514364 | L177: 5141.901526 | M177: 677.4467525 | N177: 2030-01-09T07:00:00 | O177: 2030 | P177: -1273.202638 | Q177: 1859.898778
A178: 176 | B178: S02T009 | C178: 2590.994208 | D178: 4008.440253 | E178: 6599.434461 | F178: 5445.578889 | G178: 623.6854024 | H178: 5175.946195 | I178: 35.81158021 | J178: 22.57731327 | K178: 13.23426694 | L178: 5189.180462 | M178: 646.2627157 | N178: 2030-01-09T08:00:00 | O178: 2030 | P178: -1180.740209 | Q178: 1944.731492
A179: 177 | B179: S02T010 | C179: 2614.720184 | D179: 4027.977476 | E179: 6642.697661 | F179: 4837.439548 | G179: 525.0759721 | H179: 4621.046242 | I179: 82.86966563 | J179: 49.7420807 | K179: 33.12758492 | L179: 4654.173826 | M179: 574.8180528 | N179: 2030-01-09T09:00:00 | O179: 2030 | P179: -626.1963502 | Q179: 2039.902132
A180: 178 | B180: S02T011 | C180: 2592.788859 | D180: 4081.441632 | E180: 6674.230491 | F180: 4173.467622 | G180: 449.1666551 | H180: 3978.167447 | I180: 106.0890532 | J180: 64.81717622 | K180: 41.27187698 | L180: 4019.439324 | M180: 513.9838313 | N180: 2030-01-09T10:00:00 | O180: 2030 | P180: 62.00230832 | Q180: 2078.805028
A181: 179 | B181: S02T012 | C181: 2524.043292 | D181: 4059.381223 | E181: 6583.424514 | F181: 3267.634578 | G181: 372.0672993 | H181: 3120.443334 | I181: 122.5594168 | J181: 70.85626254 | K181: 51.70315422 | L181: 3172.146489 | M181: 442.9235618 | N181: 2030-01-09T11:00:00 | O181: 2030 | P181: 887.234734 | Q181: 2081.11973
A182: 180 | B182: S02T013 | C182: 2535.689728 | D182: 4043.821956 | E182: 6579.511685 | F182: 2657.115762 | G182: 305.8401743 | H182: 2565.13411 | I182: 124.4594011 | J182: 68.64144167 | K182: 55.81795947 | L182: 2620.95207 | M182: 374.481616 | N182: 2030-01-09T12:00:00 | O182: 2030 | P182: 1422.869886 | Q182: 2161.208112
A183: 181 | B183: S02T014 | C183: 2563.340991 | D183: 4000.143756 | E183: 6563.484747 | F183: 2596.823577 | G183: 329.3961723 | H183: 2466.662393 | I183: 100.6702029 | J183: 59.66217232 | K183: 41.00803059 | L183: 2507.670424 | M183: 389.0583447 | N183: 2030-01-09T13:00:00 | O183: 2030 | P183: 1492.473332 | Q183: 2174.282646
A184: 182 | B184: S02T015 | C184: 2548.833243 | D184: 3903.961149 | E184: 6452.794393 | F184: 2384.782946 | G184: 358.7247911 | H184: 2210.163794 | I184: 31.53541337 | J184: 19.87876632 | K184: 11.65664706 | L184: 2221.820441 | M184: 378.6035574 | N184: 2030-01-09T14:00:00 | O184: 2030 | P184: 1682.140708 | Q184: 2170.229686
A185: 183 | B185: S02T016 | C185: 2541.57937 | D185: 3794.533111 | E185: 6336.112481 | F185: 2127.753878 | G185: 383.5860858 | H185: 1928.126306 | I185: 0.007950397296 | J185: 0 | K185: 0.007950397296 | L185: 1928.134257 | M185: 383.5860858 | N185: 2030-01-09T15:00:00 | O185: 2030 | P185: 1866.398855 | Q185: 2157.993284
A186: 184 | B186: S02T017 | C186: 2700.680815 | D186: 3923.502746 | E186: 6624.183561 | F186: 2027.668621 | G186: 454.5650127 | H186: 1768.692727 | I186: 0 | J186: 0 | K186: 0 | L186: 1768.692727 | M186: 454.5650127 | N186: 2030-01-09T16:00:00 | O186: 2030 | P186: 2154.810019 | Q186: 2246.115803
A187: 185 | B187: S02T018 | C187: 2877.675523 | D187: 4226.253651 | E187: 7103.929173 | F187: 2161.894163 | G187: 424.4817852 | H187: 1945.676278 | I187: 0 | J187: 0 | K187: 0 | L187: 1945.676278 | M187: 424.4817852 | N187: 2030-01-09T17:00:00 | O187: 2030 | P187: 2280.577373 | Q187: 2453.193737
A188: 186 | B188: S02T019 | C188: 2795.464953 | D188: 4060.808003 | E188: 6856.272956 | F188: 2470.708625 | G188: 424.482065 | H188: 2254.563892 | I188: 0 | J188: 0 | K188: 0 | L188: 2254.563892 | M188: 424.482065 | N188: 2030-01-09T18:00:00 | O188: 2030 | P188: 1806.244111 | Q188: 2370.982888
A189: 187 | B189: S02T020 | C189: 2664.895224 | D189: 3824.378987 | E189: 6489.274212 | F189: 1866.250811 | G189: 389.3386956 | H189: 1657.378894 | I189: 0 | J189: 0 | K189: 0 | L189: 1657.378894 | M189: 389.3386956 | N189: 2030-01-09T19:00:00 | O189: 2030 | P189: 2167.000093 | Q189: 2275.556529
A190: 188 | B190: S02T021 | C190: 2482.3394 | D190: 3553.350674 | E190: 6035.690075 | F190: 986.5738813 | G190: 306.9052137 | H190: 813.0561413 | I190: 0 | J190: 0 | K190: 0 | L190: 813.0561413 | M190: 306.9052137 | N190: 2030-01-09T20:00:00 | O190: 2030 | P190: 2740.294533 | Q190: 2175.434187
A191: 189 | B191: S02T022 | C191: 2334.843966 | D191: 3178.480597 | E191: 5513.324563 | F191: 600.1032771 | G191: 222.1321206 | H191: 464.7194403 | I191: 0 | J191: 0 | K191: 0 | L191: 464.7194403 | M191: 222.1321206 | N191: 2030-01-09T21:00:00 | O191: 2030 | P191: 2713.761157 | Q191: 2112.711846
A192: 190 | B192: S02T023 | C192: 2124.481626 | D192: 2920.453782 | E192: 5044.935408 | F192: 509.0757952 | G192: 176.2447397 | H192: 392.0302219 | I192: 0 | J192: 0 | K192: 0 | L192: 392.0302219 | M192: 176.2447397 | N192: 2030-01-09T22:00:00 | O192: 2030 | P192: 2528.42356 | Q192: 1948.236886
A193: 191 | B193: S02T024 | C193: 1955.593587 | D193: 2784.749524 | E193: 4740.343112 | F193: 371.8608976 | G193: 119.4922975 | H193: 291.2585593 | I193: 0 | J193: 0 | K193: 0 | L193: 291.2585593 | M193: 119.4922975 | N193: 2030-01-09T23:00:00 | O193: 2030 | P193: 2493.490965 | Q193: 1836.10129
A194: 192 | B194: S02T025 | C194: 1824.959191 | D194: 2606.674918 | E194: 4431.634109 | F194: 255.9047676 | G194: 110.8333152 | H194: 170.2943227 | I194: 0 | J194: 0 | K194: 0 | L194: 170.2943227 | M194: 110.8333152 | N194: 2030-01-10 | O194: 2030 | P194: 2436.380595 | Q194: 1714.125876
A195: 193 | B195: S02T026 | C195: 1712.524147 | D195: 2421.624397 | E195: 4134.148544 | F195: 186.6944376 | G195: 94.75532813 | H195: 106.5754925 | I195: 0 | J195: 0 | K195: 0 | L195: =K195+H195 -> 106.5754925 | M195: =J195+G195 -> 94.75532813 | N195: 2030-01-10T01:00:00 | O195: 2030 | P195: =D195-L195 -> 2315.048905 | Q195: =C195-M195 -> 1617.768819
A196: 194 | B196: S02T027 | C196: 1665.026322 | D196: 2338.466584 | E196: 4003.492906 | F196: 152.2629658 | G196: 81.91463704 | H196: 78.24874585 | I196: 0 | J196: 0 | K196: 0 | L196: 78.24874585 | M196: 81.91463704 | N196: 2030-01-10T02:00:00 | O196: 2030 | P196: 2260.217838 | Q196: 1583.111685
A197: 195 | B197: S02T028 | C197: 1673.811991 | D197: 2403.219157 | E197: 4077.031148 | F197: 165.6430431 | G197: 45.11773718 | H197: 126.466991 | I197: 0 | J197: 0 | K197: 0 | L197: 126.466991 | M197: 45.11773718 | N197: 2030-01-10T03:00:00 | O197: 2030 | P197: 2276.752166 | Q197: 1628.694254
A198: 196 | B198: S02T029 | C198: 1657.868704 | D198: 2351.689606 | E198: 4009.55831 | F198: 232.276078 | G198: 38.19248297 | H198: 208.1922123 | I198: 0 | J198: 0 | K198: 0 | L198: 208.1922123 | M198: 38.19248297 | N198: 2030-01-10T04:00:00 | O198: 2030 | P198: 2143.497394 | Q198: 1619.676221
A199: 197 | B199: S02T030 | C199: 1747.969244 | D199: 2536.069714 | E199: 4284.038958 | F199: 538.9961943 | G199: 38.48462955 | H199: 529.1187095 | I199: 0 | J199: 0 | K199: 0 | L199: 529.1187095 | M199: 38.48462955 | N199: 2030-01-10T05:00:00 | O199: 2030 | P199: 2006.951005 | Q199: 1709.484614
A200: 198 | B200: S02T031 | C200: 2067.659614 | D200: 3102.833845 | E200: 5170.49346 | F200: 820.2957645 | G200: 42.70221626 | H200: 820.2468145 | I200: 0 | J200: 0 | K200: 0 | L200: 820.2468145 | M200: 42.70221626 | N200: 2030-01-10T06:00:00 | O200: 2030 | P200: 2282.587031 | Q200: 2024.957398
... 4300 more rows

Sheet Daily
A1: Day | B1: Demand DK1 | C1: Total RP DK1 | D1: Residual Load DK1 | E1: Demand DK2 | F1: Total RP DK2 | G1: Residual Load DK2 | I1: DK1 | N1: DK2
A2: 2030-01-02 | B2: 3128.781576 | C2: 5795.385975 | D2: -2666.604399 | E2: 2265.883481 | F2: 1361.65566 | G2: 904.2278204 | I2: Residual load | J2: Number | K2: Middle | L2: Number | M2: Frequency | N2: Residual load | O2: Number | P2: Middle | Q2: Number | R2: Frequency
A3: 2030-01-03 | B3: 3417.64432 | C3: 5746.761108 | D3: -2329.116788 | E3: 2426.598552 | F3: 1127.688831 | G3: 1298.909721 | I3: -2666.604399 | J3: 1 | K3: -6590 | L3: 5 | M3: =L3/364 -> 0.01373626374 | N3: 904.2278204 | O3: 1 | P3: -1530 | Q3: 1 | R3: =Q3/364 -> 0.002747252747
A4: 2030-01-04 | B4: 3492.526641 | C4: 7004.924224 | D4: -3512.397583 | E4: 2463.208174 | F4: 2557.252233 | G4: -94.04405895 | I4: -2329.116788 | J4: 1 | K4: =K3+500 -> -6090 | L4: 5 | M4: =L4/364 -> 0.01373626374 | N4: 1298.909721 | O4: 1 | P4: -1130 | Q4: 1 | R4: =Q4/364 -> 0.002747252747
A5: 2030-01-05 | B5: 3493.443963 | C5: 4362.069011 | D5: -868.6250475 | E5: 2502.651113 | F5: 2131.741879 | G5: 370.909234 | I5: -3512.397583 | J5: 1 | K5: =K4+500 -> -5590 | L5: 10 | M5: 0.02747252747 | N5: -94.04405895 | O5: 1 | P5: =P4+200 -> -930 | Q5: 1 | R5: 0.002747252747
A6: 2030-01-06 | B6: 3383.18629 | C6: 4926.232628 | D6: -1543.046338 | E6: 2399.273286 | F6: 1824.397354 | G6: 574.8759322 | I6: -868.6250475 | J6: 1 | K6: -5090 | L6: 14 | M6: 0.03846153846 | N6: 370.909234 | O6: 1 | P6: -730 | Q6: 9 | R6: 0.02472527473
A7: 2030-01-07 | B7: 2823.213619 | C7: 4105.928309 | D7: -1282.71469 | E7: 2221.935721 | F7: 1494.427181 | G7: 727.5085395 | I7: -1543.046338 | J7: 1 | K7: -4590 | L7: 14 | M7: 0.03846153846 | N7: 574.8759322 | O7: 1 | P7: -530 | Q7: 17 | R7: 0.0467032967
A8: 2030-01-08 | B8: 2830.711534 | C8: 4500.342445 | D8: -1669.630911 | E8: 2132.099059 | F8: 1633.790292 | G8: 498.3087668 | I8: -1282.71469 | J8: 1 | K8: -4090 | L8: 14 | M8: 0.03846153846 | N8: 727.5085395 | O8: 1 | P8: -330 | Q8: 16 | R8: 0.04395604396
A9: 2030-01-09 | B9: 3386.622453 | C9: 2787.599659 | D9: 599.0227947 | E9: 2313.976884 | F9: 536.0155863 | G9: 1777.961297 | I9: -1669.630911 | J9: 1 | K9: -3590 | L9: 23 | M9: 0.06318681319 | N9: 498.3087668 | O9: 1 | P9: -130 | Q9: 18 | R9: 0.04945054945
A10: 2030-01-10 | B10: 3381.195565 | C10: 4087.733654 | D10: -706.5380887 | E10: 2244.264051 | F10: 703.8199974 | G10: 1540.444053 | I10: 599.0227947 | J10: 1 | K10: -3090 | L10: 20 | M10: 0.05494505495 | N10: 1777.961297 | O10: 1 | P10: 70 | Q10: 16 | R10: 0.04395604396
A11: 2030-01-11 | B11: 3350.345969 | C11: 6363.224213 | D11: -3012.878244 | E11: 2254.864648 | F11: 1554.380798 | G11: 700.4838497 | I11: -706.5380887 | J11: 1 | K11: -2590 | L11: 22 | M11: 0.06043956044 | N11: 1540.444053 | O11: 1 | P11: 270 | Q11: 38 | R11: 0.1043956044
A12: 2030-01-12 | B12: 3489.230606 | C12: 7961.086501 | D12: -4471.855895 | E12: 2369.985953 | F12: 2068.653366 | G12: 301.3325865 | I12: -3012.878244 | J12: 1 | K12: -2090 | L12: 28 | M12: 0.07692307692 | N12: 700.4838497 | O12: 1 | P12: 470 | Q12: 31 | R12: 0.08516483516
A13: 2030-01-13 | B13: 3324.090902 | C13: 8783.602451 | D13: -5459.511549 | E13: 2371.073902 | F13: 2480.379708 | G13: -109.305806 | I13: -4471.855895 | J13: 1 | K13: -1590 | L13: 22 | M13: 0.06043956044 | N13: 301.3325865 | O13: 1 | P13: 670 | Q13: 34 | R13: 0.09340659341
A14: 2030-01-14 | B14: 2888.923013 | C14: 8878.402926 | D14: -5989.479913 | E14: 2117.137945 | F14: 1980.524828 | G14: 136.6131164 | I14: -5459.511549 | J14: 1 | K14: -1090 | L14: 21 | M14: 0.05769230769 | N14: -109.305806 | O14: 1 | P14: 870 | Q14: 37 | R14: 0.1016483516
A15: 2030-01-15 | B15: 2792.783087 | C15: 5126.729485 | D15: -2333.946398 | E15: 2035.503268 | F15: 1458.934565 | G15: 576.5687028 | I15: -5989.479913 | J15: 1 | K15: -590 | L15: 23 | M15: 0.06318681319 | N15: 136.6131164 | O15: 1 | P15: 1070 | Q15: 49 | R15: 0.1346153846
A16: 2030-01-16 | B16: 3352.895028 | C16: 1373.359375 | D16: 1979.535653 | E16: 2199.433549 | F16: 495.3926799 | G16: 1704.040869 | I16: -2333.946398 | J16: 1 | K16: -90 | L16: 22 | M16: 0.06043956044 | N16: 576.5687028 | O16: 1 | P16: 1270 | Q16: 37 | R16: 0.1016483516
A17: 2030-01-17 | B17: 3357.128212 | C17: 4319.420241 | D17: -962.2920283 | E17: 2214.287464 | F17: 1035.432204 | G17: 1178.855261 | I17: 1979.535653 | J17: 1 | K17: 410 | L17: 40 | M17: 0.1098901099 | N17: 1704.040869 | O17: 1 | P17: 1470 | Q17: 19 | R17: 0.0521978022
A18: 2030-01-18 | B18: 3409.798686 | C18: 2255.182539 | D18: 1154.616147 | E18: 2248.115988 | F18: 421.1710717 | G18: 1826.944917 | I18: -962.2920283 | J18: 1 | K18: 910 | L18: 29 | M18: 0.07967032967 | N18: 1178.855261 | O18: 1 | P18: 1670 | Q18: 15 | R18: 0.04120879121
A19: 2030-01-19 | B19: 3435.452444 | C19: 7307.891884 | D19: -3872.43944 | E19: 2334.765749 | F19: 1729.622489 | G19: 605.1432594 | I19: 1154.616147 | J19: 1 | K19: 1410 | L19: 22 | M19: 0.06043956044 | N19: 1826.944917 | O19: 1 | P19: 1870 | Q19: 18 | R19: 0.04945054945
A20: 2030-01-20 | B20: 3344.270941 | C20: 7520.531143 | D20: -4176.260202 | E20: 2249.224531 | F20: 1951.771373 | G20: 297.4531577 | I20: -3872.43944 | J20: 1 | K20: 1910 | L20: 14 | M20: 0.03846153846 | N20: 605.1432594 | O20: 1 | P20: 2070 | Q20: 6 | R20: 0.01648351648
A21: 2030-01-21 | B21: 2902.400427 | C21: 2000.596435 | D21: 901.8039914 | E21: 2143.572382 | F21: 532.3606983 | G21: 1611.211684 | I21: -4176.260202 | J21: 1 | K21: 2410 | L21: 14 | M21: 0.03846153846 | N21: 297.4531577 | O21: 1 | P21: 2270 | Q21: 1 | R21: 0.002747252747
A22: 2030-01-22 | B22: 2861.566424 | C22: 4293.057128 | D22: -1431.490704 | E22: 2072.299212 | F22: 1490.637491 | G22: 581.6617204 | I22: 901.8039914 | J22: 1 | K22: 2910 | L22: 2 | M22: 0.005494505495 | N22: 1611.211684 | O22: 1
A23: 2030-01-23 | B23: 3485.399775 | C23: 2504.328293 | D23: 981.0714818 | E23: 2298.546734 | F23: 800.7548208 | G23: 1497.791913 | I23: -1431.490704 | J23: 1 | N23: 581.6617204 | O23: 1
A24: 2030-01-24 | B24: 3526.00855 | C24: 637.2192418 | D24: 2888.789309 | E24: 2339.129766 | F24: 201.6652542 | G24: 2137.464512 | I24: 981.0714818 | J24: 1 | N24: 1497.791913 | O24: 1
A25: 2030-01-25 | B25: 3534.187141 | C25: 1240.96833 | D25: 2293.218811 | E25: 2341.017281 | F25: 239.6104678 | G25: 2101.406813 | I25: 2888.789309 | J25: 1 | N25: 2137.464512 | O25: 1
A26: 2030-01-26 | B26: 3448.628192 | C26: 3675.632119 | D26: -227.0039275 | E26: 2375.463302 | F26: 525.8519043 | G26: 1849.611397 | I26: 2293.218811 | J26: 1 | N26: 2101.406813 | O26: 1
A27: 2030-01-27 | B27: 3425.729598 | C27: 9943.61164 | D27: -6517.882043 | E27: 2384.476196 | F27: 2677.846001 | G27: -293.3698051 | I27: -227.0039275 | J27: 1 | N27: 1849.611397 | O27: 1
A28: 2030-01-28 | B28: 2959.814317 | C28: 7029.347901 | D28: -4069.533584 | E28: 2154.07057 | F28: 1923.940879 | G28: 230.1296909 | I28: -6517.882043 | J28: 1 | N28: -293.3698051 | O28: 1
A29: 2030-01-29 | B29: 2903.114684 | C29: 4956.588402 | D29: -2053.473718 | E29: 2123.95647 | F29: 1056.876159 | G29: 1067.080311 | I29: -4069.533584 | J29: 1 | N29: 230.1296909 | O29: 1
A30: 2030-01-30 | B30: 3454.34586 | C30: 5873.107527 | D30: -2418.761668 | E30: 2353.60588 | F30: 1387.885069 | G30: 965.7208112 | I30: -2053.473718 | J30: 1 | N30: 1067.080311 | O30: 1
A31: 2030-01-31 | B31: 3515.194376 | C31: 5447.894073 | D31: -1932.699697 | E31: 2397.843473 | F31: 1313.439959 | G31: 1084.403513 | I31: -2418.761668 | J31: 1 | N31: 965.7208112 | O31: 1
A32: 2030-02-01 | B32: 3586.202045 | C32: 4783.4859 | D32: -1197.283855 | E32: 2373.402483 | F32: 1286.735967 | G32: 1086.666516 | I32: -1932.699697 | J32: 1 | N32: 1084.403513 | O32: 1
A33: 2030-02-02 | B33: 3661.302208 | C33: 2465.893925 | D33: 1195.408282 | E33: 2441.667697 | F33: 836.291205 | G33: 1605.376492 | I33: -1197.283855 | J33: 1 | N33: 1086.666516 | O33: 1
A34: 2030-02-03 | B34: 3560.53995 | C34: 1280.035396 | D34: 2280.504554 | E34: 2452.356282 | F34: 488.5901167 | G34: 1963.766166 | I34: 1195.408282 | J34: 1 | N34: 1605.376492 | O34: 1
A35: 2030-02-04 | B35: 3202.02078 | C35: 2921.028654 | D35: 280.9921268 | E35: 2289.894914 | F35: 765.4497256 | G35: 1524.445188 | I35: 2280.504554 | J35: 1 | N35: 1963.766166 | O35: 1
A36: 2030-02-05 | B36: 3096.177099 | C36: 1351.575855 | D36: 1744.601243 | E36: 2338.074987 | F36: 308.0522864 | G36: 2030.022701 | I36: 280.9921268 | J36: 1 | N36: 1524.445188 | O36: 1
A37: 2030-02-06 | B37: 3755.317334 | C37: 7258.887308 | D37: -3503.569974 | E37: 2527.026202 | F37: 1240.629149 | G37: 1286.397053 | I37: 1744.601243 | J37: 1 | N37: 2030.022701 | O37: 1
A38: 2030-02-07 | B38: 3867.06498 | C38: 6797.80169 | D38: -2930.736709 | E38: 2505.363233 | F38: 1132.697609 | G38: 1372.665623 | I38: -3503.569974 | J38: 1 | N38: 1286.397053 | O38: 1
A39: 2030-02-08 | B39: 3845.472511 | C39: 1202.503635 | D39: 2642.968876 | E39: 2470.193978 | F39: 531.9590845 | G39: 1938.234893 | I39: -2930.736709 | J39: 1 | N39: 1372.665623 | O39: 1
A40: 2030-02-09 | B40: 3698.083232 | C40: 1264.37255 | D40: 2433.710681 | E40: 2458.44469 | F40: 479.0095232 | G40: 1979.435167 | I40: 2642.968876 | J40: 1 | N40: 1938.234893 | O40: 1
A41: 2030-02-10 | B41: 3621.130399 | C41: 3115.345398 | D41: 505.7850007 | E41: 2383.870685 | F41: 1020.355826 | G41: 1363.514859 | I41: 2433.710681 | J41: 1 | N41: 1979.435167 | O41: 1
A42: 2030-02-11 | B42: 3168.311547 | C42: 891.2182525 | D42: 2277.093294 | E42: 2262.02751 | F42: 370.8947335 | G42: 1891.132776 | I42: 505.7850007 | J42: 1 | N42: 1363.514859 | O42: 1
A43: 2030-02-12 | B43: 2892.808231 | C43: 2073.374842 | D43: 819.4333891 | E43: 2187.378633 | F43: 365.2519747 | G43: 1822.126658 | I43: 2277.093294 | J43: 1 | N43: 1891.132776 | O43: 1
A44: 2030-02-13 | B44: 3478.174856 | C44: 4108.860714 | D44: -630.6858581 | E44: 2323.940049 | F44: 1092.022978 | G44: 1231.917071 | I44: 819.4333891 | J44: 1 | N44: 1822.126658 | O44: 1
A45: 2030-02-14 | B45: 3476.929864 | C45: 2948.843322 | D45: 528.0865423 | E45: 2345.042299 | F45: 536.4929309 | G45: 1808.549368 | I45: -630.6858581 | J45: 1 | N45: 1231.917071 | O45: 1
A46: 2030-02-15 | B46: 3425.377222 | C46: 6188.106065 | D46: -2762.728843 | E46: 2360.837193 | F46: 1157.995277 | G46: 1202.841916 | I46: 528.0865423 | J46: 1 | N46: 1808.549368 | O46: 1
A47: 2030-02-16 | B47: 3500.896585 | C47: 6010.322027 | D47: -2509.425442 | E47: 2350.113506 | F47: 2224.611515 | G47: 125.5019915 | I47: -2762.728843 | J47: 1 | N47: 1202.841916 | O47: 1
A48: 2030-02-17 | B48: 3193.420422 | C48: 4949.426916 | D48: -1756.006494 | E48: 2203.966494 | F48: 1012.643731 | G48: 1191.322764 | I48: -2509.425442 | J48: 1 | N48: 125.5019915 | O48: 1
A49: 2030-02-18 | B49: 2827.430895 | C49: 5703.390047 | D49: -2875.959152 | E49: 2088.481555 | F49: 1360.871386 | G49: 727.6101684 | I49: -1756.006494 | J49: 1 | N49: 1191.322764 | O49: 1
A50: 2030-02-19 | B50: 2748.398303 | C50: 7038.205575 | D50: -4289.807272 | E50: 2059.368093 | F50: 1866.865641 | G50: 192.5024513 | I50: -2875.959152 | J50: 1 | N50: 727.6101684 | O50: 1
A51: 2030-02-20 | B51: 3365.933367 | C51: 8547.019888 | D51: -5181.086521 | E51: 2226.237909 | F51: 2605.615314 | G51: -379.3774042 | I51: -4289.807272 | J51: 1 | N51: 192.5024513 | O51: 1
A52: 2030-02-21 | B52: 3357.023579 | C52: 7629.224612 | D52: -4272.201032 | E52: 2284.382383 | F52: 2155.92772 | G52: 128.4546623 | I52: -5181.086521 | J52: 1 | N52: -379.3774042 | O52: 1
A53: 2030-02-22 | B53: 3368.526866 | C53: 6834.153345 | D53: -3465.626479 | E53: 2328.17361 | F53: 1681.404269 | G53: 646.7693414 | I53: -4272.201032 | J53: 1 | N53: 128.4546623 | O53: 1
A54: 2030-02-23 | B54: 3299.369264 | C54: 9592.824862 | D54: -6293.455598 | E54: 2278.090858 | F54: 2914.790645 | G54: -636.6997871 | I54: -3465.626479 | J54: 1 | N54: 646.7693414 | O54: 1
A55: 2030-02-24 | B55: 3122.566671 | C55: 7022.648102 | D55: -3900.081432 | E55: 2232.856137 | F55: 1912.169445 | G55: 320.6866917 | I55: -6293.455598 | J55: 1 | N55: -636.6997871 | O55: 1
A56: 2030-02-25 | B56: 2785.392192 | C56: 6944.786719 | D56: -4159.394527 | E56: 2065.353345 | F56: 1867.288891 | G56: 198.0644547 | I56: -3900.081432 | J56: 1 | N56: 320.6866917 | O56: 1
A57: 2030-02-26 | B57: 2714.756622 | C57: 7596.847162 | D57: -4882.09054 | E57: 1927.139117 | F57: 2011.617794 | G57: -84.47867657 | I57: -4159.394527 | J57: 1 | N57: 198.0644547 | O57: 1
A58: 2030-02-27 | B58: 3311.314812 | C58: 1225.738715 | D58: 2085.576097 | E58: 2231.51578 | F58: 436.0229441 | G58: 1795.492836 | I58: -4882.09054 | J58: 1 | N58: -84.47867657 | O58: 1
A59: 2030-02-28 | B59: 3250.525279 | C59: 4566.934623 | D59: -1316.409345 | E59: 2247.632268 | F59: 795.1934021 | G59: 1452.438866 | I59: 2085.576097 | J59: 1 | N59: 1795.492836 | O59: 1
A60: 2030-03-01 | B60: 3285.224896 | C60: 7751.583558 | D60: -4466.358661 | E60: 2113.094661 | F60: 1978.445706 | G60: 134.6489548 | I60: -1316.409345 | J60: 1 | N60: 1452.438866 | O60: 1
A61: 2030-03-02 | B61: 3164.817026 | C61: 3670.182746 | D61: -505.3657191 | E61: 2130.981945 | F61: 813.1791256 | G61: 1317.802819 | I61: -4466.358661 | J61: 1 | N61: 134.6489548 | O61: 1
A62: 2030-03-03 | B62: 3052.341159 | C62: 4794.600465 | D62: -1742.259307 | E62: 2051.530837 | F62: 1068.994299 | G62: 982.5365381 | I62: -505.3657191 | J62: 1 | N62: 1317.802819 | O62: 1
A63: 2030-03-04 | B63: 2587.555771 | C63: 2765.099974 | D63: -177.5442028 | E63: 2011.359772 | F63: 814.4044676 | G63: 1196.955304 | I63: -1742.259307 | J63: 1 | N63: 982.5365381 | O63: 1
A64: 2030-03-05 | B64: 2685.882107 | C64: 6214.731571 | D64: -3528.849465 | E64: 2014.01684 | F64: 1517.803736 | G64: 496.2131044 | I64: -177.5442028 | J64: 1 | N64: 1196.955304 | O64: 1
A65: 2030-03-06 | B65: 3218.118831 | C65: 7980.734101 | D65: -4762.615271 | E65: 2213.389825 | F65: 2416.791591 | G65: -203.4017661 | I65: -3528.849465 | J65: 1 | N65: 496.2131044 | O65: 1
A66: 2030-03-07 | B66: 3259.47854 | C66: 8336.492468 | D66: -5077.013929 | E66: 2227.270536 | F66: 2715.244716 | G66: -487.9741805 | I66: -4762.615271 | J66: 1 | N66: -203.4017661 | O66: 1
A67: 2030-03-08 | B67: 3339.266262 | C67: 6951.116685 | D67: -3611.850423 | E67: 2283.638861 | F67: 1664.525725 | G67: 619.113136 | I67: -5077.013929 | J67: 1 | N67: -487.9741805 | O67: 1
A68: 2030-03-09 | B68: 3238.043086 | C68: 8872.314281 | D68: -5634.271195 | E68: 2188.805039 | F68: 2463.600724 | G68: -274.7956854 | I68: -3611.850423 | J68: 1 | N68: 619.113136 | O68: 1
A69: 2030-03-10 | B69: 3068.585578 | C69: 4167.65743 | D69: -1099.071852 | E69: 2180.403782 | F69: 766.0810266 | G69: 1414.322755 | I69: -5634.271195 | J69: 1 | N69: -274.7956854 | O69: 1
A70: 2030-03-11 | B70: 2640.639603 | C70: 7368.483639 | D70: -4727.844036 | E70: 2066.340689 | F70: 1660.604953 | G70: 405.7357357 | I70: -1099.071852 | J70: 1 | N70: 1414.322755 | O70: 1
A71: 2030-03-12 | B71: 2573.86589 | C71: 7308.787168 | D71: -4734.921278 | E71: 2002.278377 | F71: 1874.261039 | G71: 128.0173379 | I71: -4727.844036 | J71: 1 | N71: 405.7357357 | O71: 1
A72: 2030-03-13 | B72: 3158.243025 | C72: 7541.789923 | D72: -4383.546898 | E72: 2157.708074 | F72: 1809.946586 | G72: 347.761488 | I72: -4734.921278 | J72: 1 | N72: 128.0173379 | O72: 1
A73: 2030-03-14 | B73: 3143.126143 | C73: 7518.155421 | D73: -4375.029278 | E73: 2120.024826 | F73: 1791.491496 | G73: 328.5333308 | I73: -4383.546898 | J73: 1 | N73: 347.761488 | O73: 1
A74: 2030-03-15 | B74: 3176.650776 | C74: 5525.108801 | D74: -2348.458024 | E74: 2004.208575 | F74: 1435.120831 | G74: 569.087744 | I74: -4375.029278 | J74: 1 | N74: 328.5333308 | O74: 1
A75: 2030-03-16 | B75: 3228.217298 | C75: 1424.071789 | D75: 1804.145509 | E75: 2072.962543 | F75: 386.8218035 | G75: 1686.14074 | I75: -2348.458024 | J75: 1 | N75: 569.087744 | O75: 1
A76: 2030-03-17 | B76: 3075.771167 | C76: 4826.307986 | D76: -1750.536818 | E76: 2005.147819 | F76: 876.9480729 | G76: 1128.199746 | I76: 1804.145509 | J76: 1 | N76: 1686.14074 | O76: 1
A77: 2030-03-18 | B77: 2640.677297 | C77: 4786.2409 | D77: -2145.563603 | E77: 1857.550925 | F77: 1227.092439 | G77: 630.4584859 | I77: -1750.536818 | J77: 1 | N77: 1128.199746 | O77: 1
A78: 2030-03-19 | B78: 2645.95006 | C78: 3723.730993 | D78: -1077.780933 | E78: 1832.392685 | F78: 802.7496117 | G78: 1029.643073 | I78: -2145.563603 | J78: 1 | N78: 630.4584859 | O78: 1
A79: 2030-03-20 | B79: 3117.136522 | C79: 1963.241302 | D79: 1153.895219 | E79: 2107.958473 | F79: 437.8908114 | G79: 1670.067661 | I79: -1077.780933 | J79: 1 | N79: 1029.643073 | O79: 1
A80: 2030-03-21 | B80: 3187.406789 | C80: 6529.884865 | D80: -3342.478076 | E80: 2147.105928 | F80: 1827.464914 | G80: 319.6410148 | I80: 1153.895219 | J80: 1 | N80: 1670.067661 | O80: 1
A81: 2030-03-22 | B81: 3138.0268 | C81: 8534.399841 | D81: -5396.373041 | E81: 2041.735741 | F81: 2502.751513 | G81: -461.0157723 | I81: -3342.478076 | J81: 1 | N81: 319.6410148 | O81: 1
A82: 2030-03-23 | B82: 3073.523921 | C82: 4599.685084 | D82: -1526.161163 | E82: 1961.752651 | F82: 1167.563205 | G82: 794.1894465 | I82: -5396.373041 | J82: 1 | N82: -461.0157723 | O82: 1
A83: 2030-03-24 | B83: 3003.219927 | C83: 2637.781461 | D83: 365.4384668 | E83: 1938.604771 | F83: 641.0761487 | G83: 1297.528623 | I83: -1526.161163 | J83: 1 | N83: 794.1894465 | O83: 1
A84: 2030-03-25 | B84: 2569.402232 | C84: 1020.330661 | D84: 1549.071571 | E84: 1832.496628 | F84: 417.066545 | G84: 1415.430083 | I84: 365.4384668 | J84: 1 | N84: 1297.528623 | O84: 1
A85: 2030-03-26 | B85: 2381.694906 | C85: 1316.699327 | D85: 1064.995579 | E85: 1724.878906 | F85: 413.0612721 | G85: 1311.817634 | I85: 1549.071571 | J85: 1 | N85: 1415.430083 | O85: 1
A86: 2030-03-27 | B86: 3080.182007 | C86: 3129.888778 | D86: -49.70677145 | E86: 1949.114247 | F86: 749.2296972 | G86: 1199.884549 | I86: 1064.995579 | J86: 1 | N86: 1311.817634 | O86: 1
A87: 2030-03-28 | B87: 3068.371536 | C87: 4719.503997 | D87: -1651.13246 | E87: 1940.19202 | F87: 1040.954192 | G87: 899.237828 | I87: -49.70677145 | J87: 1 | N87: 1199.884549 | O87: 1
A88: 2030-03-29 | B88: 3084.640613 | C88: 7157.706553 | D88: -4073.065939 | E88: 1969.421919 | F88: 1635.55292 | G88: 333.868999 | I88: -1651.13246 | J88: 1 | N88: 899.237828 | O88: 1
A89: 2030-03-30 | B89: 3108.214083 | C89: 8396.524861 | D89: -5288.310777 | E89: 2035.976986 | F89: 2345.351009 | G89: -309.3740238 | I89: -4073.065939 | J89: 1 | N89: 333.868999 | O89: 1
A90: 2030-03-31 | B90: 3009.132498 | C90: 7972.989484 | D90: -4963.856985 | E90: 2018.656533 | F90: 2559.741792 | G90: -541.0852594 | I90: -5288.310777 | J90: 1 | N90: -309.3740238 | O90: 1
A91: 2030-04-01 | B91: 2644.03757 | C91: 8198.955481 | D91: -5554.917911 | E91: 1908.229417 | F91: 2545.374799 | G91: -637.1453825 | I91: -4963.856985 | J91: 1 | N91: -541.0852594 | O91: 1
A92: 2030-04-02 | B92: 2557.99287 | C92: 3850.200962 | D92: -1292.208092 | E92: 1886.418062 | F92: 1743.224619 | G92: 143.1934427 | I92: -5554.917911 | J92: 1 | N92: -637.1453825 | O92: 1
A93: 2030-04-03 | B93: 3053.998787 | C93: 7151.27082 | D93: -4097.272033 | E93: 2049.649632 | F93: 2018.623 | G93: 31.02663173 | I93: -1292.208092 | J93: 1 | N93: 143.1934427 | O93: 1
A94: 2030-04-04 | B94: 3124.775828 | C94: 4700.994924 | D94: -1576.219096 | E94: 1992.82445 | F94: 1469.087623 | G94: 523.7368269 | I94: -4097.272033 | J94: 1 | N94: 31.02663173 | O94: 1
A95: 2030-04-05 | B95: 3014.119926 | C95: 2872.450118 | D95: 141.6698085 | E95: 2003.392484 | F95: 807.1063844 | G95: 1196.286099 | I95: -1576.219096 | J95: 1 | N95: 523.7368269 | O95: 1
A96: 2030-04-06 | B96: 2568.655838 | C96: 5885.054321 | D96: -3316.398483 | E96: 1772.972139 | F96: 2271.139173 | G96: -498.1670343 | I96: 141.6698085 | J96: 1 | N96: 1196.286099 | O96: 1
A97: 2030-04-07 | B97: 2452.880806 | C97: 1180.594318 | D97: 1272.286488 | E97: 1785.716449 | F97: 506.606056 | G97: 1279.110393 | I97: -3316.398483 | J97: 1 | N97: -498.1670343 | O97: 1
A98: 2030-04-08 | B98: 2379.74801 | C98: 4021.221991 | D98: -1641.473981 | E98: 1820.111785 | F98: 966.0235811 | G98: 854.0882041 | I98: 1272.286488 | J98: 1 | N98: 1279.110393 | O98: 1
A99: 2030-04-09 | B99: 2351.059895 | C99: 2892.756894 | D99: -541.6969996 | E99: 1716.670736 | F99: 1302.244087 | G99: 414.4266488 | I99: -1641.473981 | J99: 1 | N99: 854.0882041 | O99: 1
A100: 2030-04-10 | B100: 2472.245981 | C100: 2531.476337 | D100: -59.23035611 | E100: 1819.874557 | F100: 704.9010832 | G100: 1114.973474 | I100: -541.6969996 | J100: 1 | N100: 414.4266488 | O100: 1
A101: 2030-04-11 | B101: 3023.04782 | C101: 6290.846092 | D101: -3267.798272 | E101: 2038.022166 | F101: 1916.14619 | G101: 121.8759758 | I101: -59.23035611 | J101: 1 | N101: 1114.973474 | O101: 1
A102: 2030-04-12 | B102: 3038.238321 | C102: 6779.844197 | D102: -3741.605876 | E102: 1964.154765 | F102: 1719.125207 | G102: 245.0295583 | I102: -3267.798272 | J102: 1 | N102: 121.8759758 | O102: 1
A103: 2030-04-13 | B103: 3023.804312 | C103: 2022.027137 | D103: 1001.777174 | E103: 1905.095953 | F103: 547.2569234 | G103: 1357.83903 | I103: -3741.605876 | J103: 1 | N103: 245.0295583 | O103: 1
A104: 2030-04-14 | B104: 2927.51885 | C104: 668.7030555 | D104: 2258.815794 | E104: 1899.228164 | F104: 383.6465735 | G104: 1515.581591 | I104: 1001.777174 | J104: 1 | N104: 1357.83903 | O104: 1
A105: 2030-04-15 | B105: 2500.154177 | C105: 3086.016549 | D105: -585.8623721 | E105: 1718.80209 | F105: 794.1347654 | G105: 924.6673244 | I105: 2258.815794 | J105: 1 | N105: 1515.581591 | O105: 1
A106: 2030-04-16 | B106: 2360.24662 | C106: 2268.656911 | D106: 91.5897083 | E106: 1693.622776 | F106: 656.0895908 | G106: 1037.533185 | I106: -585.8623721 | J106: 1 | N106: 924.6673244 | O106: 1
A107: 2030-04-17 | B107: 2975.461685 | C107: 2923.347458 | D107: 52.11422759 | E107: 1948.129649 | F107: 726.5793114 | G107: 1221.550338 | I107: 91.5897083 | J107: 1 | N107: 1037.533185 | O107: 1
A108: 2030-04-18 | B108: 3034.651623 | C108: 1581.124621 | D108: 1453.527002 | E108: 1965.348529 | F108: 843.2026096 | G108: 1122.145919 | I108: 52.11422759 | J108: 1 | N108: 1221.550338 | O108: 1
A109: 2030-04-19 | B109: 3058.180475 | C109: 2215.532864 | D109: 842.6476118 | E109: 1948.407858 | F109: 599.8798377 | G109: 1348.52802 | I109: 1453.527002 | J109: 1 | N109: 1122.145919 | O109: 1
A110: 2030-04-20 | B110: 3000.776265 | C110: 9507.771919 | D110: -6506.995654 | E110: 1945.62458 | F110: 2850.478436 | G110: -904.8538556 | I110: 842.6476118 | J110: 1 | N110: 1348.52802 | O110: 1
A111: 2030-04-21 | B111: 2925.636648 | C111: 9660.735161 | D111: -6735.098514 | E111: 1887.535791 | F111: 2931.912865 | G111: -1044.377073 | I111: -6506.995654 | J111: 1 | N111: -904.8538556 | O111: 1
A112: 2030-04-22 | B112: 2518.88364 | C112: 5017.001506 | D112: -2498.117866 | E112: 1687.360649 | F112: 1226.873869 | G112: 460.48678 | I112: -6735.098514 | J112: 1 | N112: -1044.377073 | O112: 1
A113: 2030-04-23 | B113: 2390.732057 | C113: 1286.201115 | D113: 1104.530942 | E113: 1658.288284 | F113: 613.1596928 | G113: 1045.128591 | I113: -2498.117866 | J113: 1 | N113: 460.48678 | O113: 1
A114: 2030-04-24 | B114: 2949.546073 | C114: 1947.941313 | D114: 1001.60476 | E114: 1849.417648 | F114: 868.6900185 | G114: 980.7276296 | I114: 1104.530942 | J114: 1 | N114: 1045.128591 | O114: 1
A115: 2030-04-25 | B115: 2987.117307 | C115: 1806.066384 | D115: 1181.050924 | E115: 1902.172754 | F115: 581.7486594 | G115: 1320.424095 | I115: 1001.60476 | J115: 1 | N115: 980.7276296 | O115: 1
A116: 2030-04-26 | B116: 2984.517489 | C116: 2500.56429 | D116: 483.9531991 | E116: 1892.650927 | F116: 860.0664126 | G116: 1032.584514 | I116: 1181.050924 | J116: 1 | N116: 1320.424095 | O116: 1
A117: 2030-04-27 | B117: 2993.954599 | C117: 665.4874886 | D117: 2328.467111 | E117: 1941.061057 | F117: 507.8918313 | G117: 1433.169226 | I117: 483.9531991 | J117: 1 | N117: 1032.584514 | O117: 1
A118: 2030-04-28 | B118: 2948.378501 | C118: 5170.573329 | D118: -2222.194829 | E118: 1910.11677 | F118: 1385.072898 | G118: 525.0438725 | I118: 2328.467111 | J118: 1 | N118: 1433.169226 | O118: 1
A119: 2030-04-29 | B119: 2509.235743 | C119: 8204.355944 | D119: -5695.120201 | E119: 1716.435682 | F119: 2389.744076 | G119: -673.3083945 | I119: -2222.194829 | J119: 1 | N119: 525.0438725 | O119: 1
A120: 2030-04-30 | B120: 2388.089253 | C120: 3014.470556 | D120: -626.3813032 | E120: 1725.401867 | F120: 724.9587912 | G120: 1000.443076 | I120: -5695.120201 | J120: 1 | N120: -673.3083945 | O120: 1
A121: 2030-05-01 | B121: 2869.270741 | C121: 6439.437277 | D121: -3570.166535 | E121: 1847.58631 | F121: 2448.892461 | G121: -601.3061511 | I121: -626.3813032 | J121: 1 | N121: 1000.443076 | O121: 1
A122: 2030-05-02 | B122: 2640.345358 | C122: 2396.502827 | D122: 243.8425311 | E122: 1813.573182 | F122: 734.7060577 | G122: 1078.867125 | I122: -3570.166535 | J122: 1 | N122: -601.3061511 | O122: 1
A123: 2030-05-03 | B123: 2843.443539 | C123: 4712.749071 | D123: -1869.305532 | E123: 1798.652821 | F123: 1746.511137 | G123: 52.14168424 | I123: 243.8425311 | J123: 1 | N123: 1078.867125 | O123: 1
A124: 2030-05-04 | B124: 2772.838831 | C124: 2353.89044 | D124: 418.9483907 | E124: 1754.40692 | F124: 1068.970208 | G124: 685.4367117 | I124: -1869.305532 | J124: 1 | N124: 52.14168424 | O124: 1
A125: 2030-05-05 | B125: 2288.061648 | C125: 1306.902579 | D125: 981.1590687 | E125: 1600.695382 | F125: 760.2363781 | G125: 840.4590037 | I125: 418.9483907 | J125: 1 | N125: 685.4367117 | O125: 1
A126: 2030-05-06 | B126: 2201.910833 | C126: 2476.00832 | D126: -274.0974875 | E126: 1613.838931 | F126: 683.9983023 | G126: 929.8406283 | I126: 981.1590687 | J126: 1 | N126: 840.4590037 | O126: 1
A127: 2030-05-07 | B127: 2194.725972 | C127: 6680.101185 | D127: -4485.375214 | E127: 1601.900019 | F127: 1690.011498 | G127: -88.11147892 | I127: -274.0974875 | J127: 1 | N127: 929.8406283 | O127: 1
A128: 2030-05-08 | B128: 2818.870504 | C128: 1665.309856 | D128: 1153.560648 | E128: 1788.566652 | F128: 575.2274668 | G128: 1213.339185 | I128: -4485.375214 | J128: 1 | N128: -88.11147892 | O128: 1
A129: 2030-05-09 | B129: 2881.4087 | C129: 751.3754774 | D129: 2130.033222 | E129: 1838.887398 | F129: 380.783355 | G129: 1458.104043 | I129: 1153.560648 | J129: 1 | N129: 1213.339185 | O129: 1
A130: 2030-05-10 | B130: 2976.255898 | C130: 6836.082619 | D130: -3859.826721 | E130: 1835.455237 | F130: 2378.250298 | G130: -542.7950606 | I130: 2130.033222 | J130: 1 | N130: 1458.104043 | O130: 1
A131: 2030-05-11 | B131: 3018.169259 | C131: 1153.273355 | D131: 1864.895904 | E131: 1848.420203 | F131: 893.7832125 | G131: 954.6369906 | I131: -3859.826721 | J131: 1 | N131: -542.7950606 | O131: 1
A132: 2030-05-12 | B132: 2851.73785 | C132: 5496.956333 | D132: -2645.218483 | E132: 1892.90598 | F132: 1692.499938 | G132: 200.4060419 | I132: 1864.895904 | J132: 1 | N132: 954.6369906 | O132: 1
A133: 2030-05-13 | B133: 2453.971127 | C133: 4711.377651 | D133: -2257.406524 | E133: 1789.6086 | F133: 2554.764601 | G133: -765.156001 | I133: -2645.218483 | J133: 1 | N133: 200.4060419 | O133: 1
A134: 2030-05-14 | B134: 2290.931388 | C134: 4245.099678 | D134: -1954.16829 | E134: 1606.060092 | F134: 2151.956546 | G134: -545.8964538 | I134: -2257.406524 | J134: 1 | N134: -765.156001 | O134: 1
A135: 2030-05-15 | B135: 2960.801765 | C135: 5855.805706 | D135: -2895.003941 | E135: 1780.138727 | F135: 1455.111733 | G135: 325.0269947 | I135: -1954.16829 | J135: 1 | N135: -545.8964538 | O135: 1
A136: 2030-05-16 | B136: 3017.185232 | C136: 6050.473041 | D136: -3033.287809 | E136: 1826.322835 | F136: 2070.457904 | G136: -244.1350695 | I136: -2895.003941 | J136: 1 | N136: 325.0269947 | O136: 1
A137: 2030-05-17 | B137: 2936.444627 | C137: 2389.573715 | D137: 546.8709122 | E137: 1864.352786 | F137: 948.3953222 | G137: 915.9574638 | I137: -3033.287809 | J137: 1 | N137: -244.1350695 | O137: 1
A138: 2030-05-18 | B138: 2398.646518 | C138: 8017.151555 | D138: -5618.505038 | E138: 1742.264667 | F138: 2365.726527 | G138: -623.4618609 | I138: 546.8709122 | J138: 1 | N138: 915.9574638 | O138: 1
A139: 2030-05-19 | B139: 2442.595087 | C139: 9280.55013 | D139: -6837.955042 | E139: 1690.570423 | F139: 3320.533867 | G139: -1629.963444 | I139: -5618.505038 | J139: 1 | N139: -623.4618609 | O139: 1
A140: 2030-05-20 | B140: 2282.626258 | C140: 3312.012463 | D140: -1029.386205 | E140: 1592.962315 | F140: 1120.731997 | G140: 472.2303178 | I140: -6837.955042 | J140: 1 | N140: -1629.963444 | O140: 1
A141: 2030-05-21 | B141: 2169.544263 | C141: 3040.989617 | D141: -871.4453534 | E141: 1523.61265 | F141: 753.4354163 | G141: 770.1772339 | I141: -1029.386205 | J141: 1 | N141: 472.2303178 | O141: 1
A142: 2030-05-22 | B142: 2734.326515 | C142: 2226.797099 | D142: 507.5294155 | E142: 1778.042042 | F142: 835.0164858 | G142: 943.025556 | I142: -871.4453534 | J142: 1 | N142: 770.1772339 | O142: 1
A143: 2030-05-23 | B143: 2807.434589 | C143: 5956.968998 | D143: -3149.534409 | E143: 1826.144541 | F143: 1943.796444 | G143: -117.6519031 | I143: 507.5294155 | J143: 1 | N143: 943.025556 | O143: 1
A144: 2030-05-24 | B144: 2855.426058 | C144: 4801.43832 | D144: -1946.012262 | E144: 1776.693672 | F144: 1440.738423 | G144: 335.9552495 | I144: -3149.534409 | J144: 1 | N144: -117.6519031 | O144: 1
A145: 2030-05-25 | B145: 2892.765376 | C145: 4961.016598 | D145: -2068.251223 | E145: 1745.041557 | F145: 1797.076236 | G145: -52.03467907 | I145: -1946.012262 | J145: 1 | N145: 335.9552495 | O145: 1
A146: 2030-05-26 | B146: 2743.542837 | C146: 1763.694762 | D146: 979.8480755 | E146: 1703.442908 | F146: 863.9496734 | G146: 839.4932343 | I146: -2068.251223 | J146: 1 | N146: -52.03467907 | O146: 1
A147: 2030-05-27 | B147: 2346.846235 | C147: 1842.448296 | D147: 504.3979389 | E147: 1568.523742 | F147: 456.8385837 | G147: 1111.685158 | I147: 979.8480755 | J147: 1 | N147: 839.4932343 | O147: 1
A148: 2030-05-28 | B148: 2205.6707 | C148: 2993.517436 | D148: -787.8467352 | E148: 1463.230274 | F148: 1074.259089 | G148: 388.9711849 | I148: 504.3979389 | J148: 1 | N148: 1111.685158 | O148: 1
A149: 2030-05-29 | B149: 2202.065592 | C149: 1851.593415 | D149: 350.4721773 | E149: 1482.149499 | F149: 772.7104392 | G149: 709.4390599 | I149: -787.8467352 | J149: 1 | N149: 388.9711849 | O149: 1
A150: 2030-05-30 | B150: 2831.176352 | C150: 5535.79717 | D150: -2704.620818 | E150: 1787.343175 | F150: 1460.418699 | G150: 326.9244768 | I150: 350.4721773 | J150: 1 | N150: 709.4390599 | O150: 1
A151: 2030-05-31 | B151: 2862.638768 | C151: 3849.158786 | D151: -986.5200182 | E151: 1744.510983 | F151: 969.2400986 | G151: 775.2708844 | I151: -2704.620818 | J151: 1 | N151: 326.9244768 | O151: 1
A152: 2030-06-01 | B152: 2879.611931 | C152: 3329.343634 | D152: -449.7317032 | E152: 1737.926368 | F152: 1030.120808 | G152: 707.8055605 | I152: -986.5200182 | J152: 1 | N152: 775.2708844 | O152: 1
A153: 2030-06-02 | B153: 2751.490159 | C153: 5717.588158 | D153: -2966.097999 | E153: 1803.541941 | F153: 1425.609851 | G153: 377.9320909 | I153: -449.7317032 | J153: 1 | N153: 707.8055605 | O153: 1
A154: 2030-06-03 | B154: 2294.014333 | C154: 7804.35079 | D154: -5510.336457 | E154: 1697.074934 | F154: 2438.997739 | G154: -741.9228049 | I154: -2966.097999 | J154: 1 | N154: 377.9320909 | O154: 1
A155: 2030-06-04 | B155: 2296.95664 | C155: 5586.595121 | D155: -3289.638481 | E155: 1631.00731 | F155: 1908.048657 | G155: -277.0413476 | I155: -5510.336457 | J155: 1 | N155: -741.9228049 | O155: 1
A156: 2030-06-05 | B156: 2778.891135 | C156: 8021.661747 | D156: -5242.770612 | E156: 1804.113548 | F156: 2217.277521 | G156: -413.1639727 | I156: -3289.638481 | J156: 1 | N156: -277.0413476 | O156: 1
A157: 2030-06-06 | B157: 2501.279865 | C157: 8420.968224 | D157: -5919.688359 | E157: 1601.866351 | F157: 2347.154231 | G157: -745.28788 | I157: -5242.770612 | J157: 1 | N157: -413.1639727 | O157: 1
A158: 2030-06-07 | B158: 2910.763917 | C158: 6151.561875 | D158: -3240.797958 | E158: 1704.722077 | F158: 1820.954426 | G158: -116.2323497 | I158: -5919.688359 | J158: 1 | N158: -745.28788 | O158: 1
A159: 2030-06-08 | B159: 2954.947117 | C159: 5572.225482 | D159: -2617.278365 | E159: 1733.247501 | F159: 1517.997336 | G159: 215.2501657 | I159: -3240.797958 | J159: 1 | N159: -116.2323497 | O159: 1
A160: 2030-06-09 | B160: 2818.481714 | C160: 2442.354916 | D160: 376.1267982 | E160: 1730.301333 | F160: 737.5834098 | G160: 992.7179231 | I160: -2617.278365 | J160: 1 | N160: 215.2501657 | O160: 1
A161: 2030-06-10 | B161: 2366.784063 | C161: 2961.480121 | D161: -594.6960581 | E161: 1641.419678 | F161: 1080.223678 | G161: 561.1960002 | I161: 376.1267982 | J161: 1 | N161: 992.7179231 | O161: 1
A162: 2030-06-11 | B162: 2325.046986 | C162: 2970.460609 | D162: -645.4136229 | E162: 1613.49447 | F162: 1207.529139 | G162: 405.9653315 | I162: -594.6960581 | J162: 1 | N162: 561.1960002 | O162: 1
A163: 2030-06-12 | B163: 2815.035061 | C163: 3651.543431 | D163: -836.5083706 | E163: 1725.37319 | F163: 1305.788349 | G163: 419.5848414 | I163: -645.4136229 | J163: 1 | N163: 405.9653315 | O163: 1
A164: 2030-06-13 | B164: 2886.724976 | C164: 1307.771789 | D164: 1578.953187 | E164: 1691.533184 | F164: 449.9440764 | G164: 1241.589108 | I164: -836.5083706 | J164: 1 | N164: 419.5848414 | O164: 1
A165: 2030-06-14 | B165: 2845.800562 | C165: 1471.18887 | D165: 1374.611692 | E165: 1705.547968 | F165: 493.9584335 | G165: 1211.589535 | I165: 1578.953187 | J165: 1 | N165: 1241.589108 | O165: 1
A166: 2030-06-15 | B166: 2829.305098 | C166: 4685.486318 | D166: -1856.18122 | E166: 1724.220193 | F166: 1335.150923 | G166: 389.0692694 | I166: 1374.611692 | J166: 1 | N166: 1211.589535 | O166: 1
A167: 2030-06-16 | B167: 2693.668481 | C167: 6561.903269 | D167: -3868.234788 | E167: 1683.915443 | F167: 1741.70685 | G167: -57.7914076 | I167: -1856.18122 | J167: 1 | N167: 389.0692694 | O167: 1
A168: 2030-06-17 | B168: 2277.313134 | C168: 3013.943635 | D168: -736.6305014 | E168: 1546.253422 | F168: 841.0448587 | G168: 705.2085637 | I168: -3868.234788 | J168: 1 | N168: -57.7914076 | O168: 1
A169: 2030-06-18 | B169: 2272.030368 | C169: 3843.782249 | D169: -1571.751881 | E169: 1535.281446 | F169: 892.6508579 | G169: 642.6305886 | I169: -736.6305014 | J169: 1 | N169: 705.2085637 | O169: 1
A170: 2030-06-19 | B170: 2837.180316 | C170: 5891.932808 | D170: -3054.752492 | E170: 1742.929429 | F170: 1886.977866 | G170: -144.0484365 | I170: -1571.751881 | J170: 1 | N170: 642.6305886 | O170: 1
A171: 2030-06-20 | B171: 2800.673435 | C171: 1458.687689 | D171: 1341.985746 | E171: 1696.913686 | F171: 1086.796537 | G171: 610.1171493 | I171: -3054.752492 | J171: 1 | N171: -144.0484365 | O171: 1
A172: 2030-06-21 | B172: 2757.695336 | C172: 2537.50266 | D172: 220.1926755 | E172: 1698.468942 | F172: 800.0667154 | G172: 898.4022268 | I172: 1341.985746 | J172: 1 | N172: 610.1171493 | O172: 1
A173: 2030-06-22 | B173: 2741.652222 | C173: 694.9715241 | D173: 2046.680698 | E173: 1705.067895 | F173: 401.2418249 | G173: 1303.82607 | I173: 220.1926755 | J173: 1 | N173: 898.4022268 | O173: 1
A174: 2030-06-23 | B174: 2714.644432 | C174: 2868.227895 | D174: -153.5834625 | E174: 1730.634446 | F174: 1020.001715 | G174: 710.6327308 | I174: 2046.680698 | J174: 1 | N174: 1303.82607 | O174: 1
A175: 2030-06-24 | B175: 2315.022508 | C175: 2516.942198 | D175: -201.9196896 | E175: 1558.012605 | F175: 1021.678505 | G175: 536.3340998 | I175: -153.5834625 | J175: 1 | N175: 710.6327308 | O175: 1
A176: 2030-06-25 | B176: 2283.08265 | C176: 2095.834983 | D176: 187.2476662 | E176: 1575.218277 | F176: 860.8053968 | G176: 714.4128804 | I176: -201.9196896 | J176: 1 | N176: 536.3340998 | O176: 1
A177: 2030-06-26 | B177: 2817.929568 | C177: 3832.066568 | D177: -1014.137 | E177: 1787.76596 | F177: 1099.745298 | G177: 688.0206614 | I177: 187.2476662 | J177: 1 | N177: 714.4128804 | O177: 1
A178: 2030-06-27 | B178: 2871.232456 | C178: 7030.121356 | D178: -4158.888901 | E178: 1818.82181 | F178: 2364.852527 | G178: -546.0307169 | I178: -1014.137 | J178: 1 | N178: 688.0206614 | O178: 1
A179: 2030-06-28 | B179: 2792.159843 | C179: 9169.408671 | D179: -6377.248828 | E179: 1749.682422 | F179: 2475.381044 | G179: -725.6986221 | I179: -4158.888901 | J179: 1 | N179: -546.0307169 | O179: 1
A180: 2030-06-29 | B180: 2779.840408 | C180: 5036.780815 | D180: -2256.940407 | E180: 1677.65487 | F180: 1895.326365 | G180: -217.6714957 | I180: -6377.248828 | J180: 1 | N180: -725.6986221 | O180: 1
A181: 2030-06-30 | B181: 2670.672306 | C181: 1736.165472 | D181: 934.5068335 | E181: 1731.25339 | F181: 662.2100099 | G181: 1069.04338 | I181: -2256.940407 | J181: 1 | N181: -217.6714957 | O181: 1
A182: 2030-07-01 | B182: 2263.333428 | C182: 4878.318892 | D182: -2614.985465 | E182: 1513.299926 | F182: 1227.302129 | G182: 285.9977974 | I182: 934.5068335 | J182: 1 | N182: 1069.04338 | O182: 1
A183: 2030-07-02 | B183: 2185.046319 | C183: 3224.706556 | D183: -1039.660238 | E183: 1484.88282 | F183: 820.5061246 | G183: 664.3766951 | I183: -2614.985465 | J183: 1 | N183: 285.9977974 | O183: 1
A184: 2030-07-03 | B184: 2748.737132 | C184: 6330.927372 | D184: -3582.19024 | E184: 1647.037462 | F184: 1425.125012 | G184: 221.9124501 | I184: -1039.660238 | J184: 1 | N184: 664.3766951 | O184: 1
A185: 2030-07-04 | B185: 2793.081224 | C185: 2533.310317 | D185: 259.7709068 | E185: 1656.820701 | F185: 838.8151703 | G185: 818.0055311 | I185: -3582.19024 | J185: 1 | N185: 221.9124501 | O185: 1
A186: 2030-07-05 | B186: 2789.081716 | C186: 1032.987362 | D186: 1756.094354 | E186: 1643.532003 | F186: 374.4764363 | G186: 1269.055567 | I186: 259.7709068 | J186: 1 | N186: 818.0055311 | O186: 1
A187: 2030-07-06 | B187: 2760.432164 | C187: 1968.939769 | D187: 791.4923952 | E187: 1658.423047 | F187: 511.8340258 | G187: 1146.589021 | I187: 1756.094354 | J187: 1 | N187: 1269.055567 | O187: 1
A188: 2030-07-07 | B188: 2698.120042 | C188: 2604.897385 | D188: 93.22265704 | E188: 1663.164803 | F188: 601.1365519 | G188: 1062.028251 | I188: 791.4923952 | J188: 1 | N188: 1146.589021 | O188: 1
A189: 2030-07-08 | B189: 2214.618028 | C189: 1939.420597 | D189: 275.197431 | E189: 1449.452096 | F189: 879.6454929 | G189: 569.8066032 | I189: 93.22265704 | J189: 1 | N189: 1062.028251 | O189: 1
A190: 2030-07-09 | B190: 2123.392155 | C190: 1885.537295 | D190: 237.8548596 | E190: 1388.494284 | F190: 630.4775808 | G190: 758.0167028 | I190: 275.197431 | J190: 1 | N190: 569.8066032 | O190: 1
A191: 2030-07-10 | B191: 2747.806761 | C191: 1804.591949 | D191: 943.2148119 | E191: 1672.619398 | F191: 800.8041169 | G191: 871.8152806 | I191: 237.8548596 | J191: 1 | N191: 758.0167028 | O191: 1
A192: 2030-07-11 | B192: 2679.031729 | C192: 6457.408607 | D192: -3778.376879 | E192: 1655.094525 | F192: 2040.586236 | G192: -385.4917106 | I192: 943.2148119 | J192: 1 | N192: 871.8152806 | O192: 1
A193: 2030-07-12 | B193: 2696.081221 | C193: 4983.141302 | D193: -2287.060081 | E193: 1621.419355 | F193: 1351.928457 | G193: 269.4908982 | I193: -3778.376879 | J193: 1 | N193: -385.4917106 | O193: 1
A194: 2030-07-13 | B194: 2684.421765 | C194: 2123.024509 | D194: 561.3972558 | E194: 1627.050705 | F194: 635.6381959 | G194: 991.4125089 | I194: -2287.060081 | J194: 1 | N194: 269.4908982 | O194: 1
A195: 2030-07-14 | B195: 2502.931168 | C195: 4670.458027 | D195: -2167.526859 | E195: 1581.828317 | F195: 1153.816531 | G195: 428.0117864 | I195: 561.3972558 | J195: 1 | N195: 991.4125089 | O195: 1
A196: 2030-07-15 | B196: 2128.473778 | C196: 3698.235074 | D196: -1569.761297 | E196: 1407.340446 | F196: 1180.419224 | G196: 226.9212218 | I196: -2167.526859 | J196: 1 | N196: 428.0117864 | O196: 1
A197: 2030-07-16 | B197: 1992.47772 | C197: 1789.102247 | D197: 203.3754733 | E197: 1427.452647 | F197: 582.2033764 | G197: 845.2492709 | I197: -1569.761297 | J197: 1 | N197: 226.9212218 | O197: 1
A198: 2030-07-17 | B198: 2317.828139 | C198: 8006.979046 | D198: -5689.150907 | E198: 1579.078697 | F198: 2352.465801 | G198: -773.3871042 | I198: 203.3754733 | J198: 1 | N198: 845.2492709 | O198: 1
A199: 2030-07-18 | B199: 2332.948634 | C199: 6945.444297 | D199: -4612.495663 | E199: 1586.846726 | F199: 1995.841817 | G199: -408.9950909 | I199: -5689.150907 | J199: 1 | N199: -773.3871042 | O199: 1
A200: 2030-07-19 | B200: 2380.539949 | C200: 6870.625062 | D200: -4490.085113 | E200: 1580.135827 | F200: 1990.793721 | G200: -410.6578949 | I200: -4612.495663 | J200: 1 | N200: -408.9950909 | O200: 1
... 166 more rows

Sheet Weekly
A1: Week | B1: Demand DK1 | C1: Total RP DK1 | D1: Residual Load DK1 | E1: Demand DK2 | F1: Total RP DK2 | G1: Residual Load DK2 | I1: DK1 | N1: DK2
A2: 1 | B2: 3224.21542 | C2: 5205.9491 | D2: -1981.733679 | E2: 2344.521341 | F2: 1732.993347 | G2: 611.5279935 | I2: Residual load | J2: Number | K2: Middle | L2: Number | M2: Frequency | N2: Residual load | O2: Number | P2: Middle | Q2: Number | R2: Frequency
A3: 2 | B3: 3230.455942 | C3: 6284.054127 | D3: -3053.598185 | E3: 2243.829521 | F3: 1540.386978 | G3: 703.4425429 | I3: -1981.733679 | J3: 1 | K3: -4500 | L3: 1 | M3: =L3/52 -> 0.01923076923 | N3: 611.5279935 | O3: 1 | P3: -160 | Q3: 1 | R3: =Q3/52 -> 0.01923076923
A4: 3 | B4: 3237.644594 | C4: 4152.862678 | D4: -915.2180833 | E4: 2208.814125 | F4: 1093.769715 | G4: 1115.04441 | I4: -3053.598185 | J4: 1 | K4: =K3+200 -> -4300 | L4: 1 | M4: =L4/52 -> 0.01923076923 | N4: 703.4425429 | O4: 1 | P4: 40 | Q4: 2 | R4: =Q4/52 -> 0.03846153846
A5: 4 | B5: 3326.126037 | C5: 4283.956561 | D5: -957.8305244 | E5: 2288.094331 | F5: 1060.935069 | G5: 1227.159262 | I5: -915.2180833 | J5: 1 | K5: -3500 | L5: 1 | M5: 0.01923076923 | N5: 1115.04441 | O5: 1 | P5: =P4+100 -> 140 | Q5: 3 | R5: 0.05769230769
A6: 5 | B6: 3439.397474 | C6: 3446.145904 | D6: -6.748430431 | E6: 2378.120817 | F6: 912.3491899 | G6: 1465.771627 | I6: -957.8305244 | J6: 1 | K6: =K5+200 -> -3300 | L6: 1 | M6: 0.01923076923 | N6: 1227.159262 | O6: 1 | P6: =P5+100 -> 240 | Q6: 3 | R6: 0.05769230769
A7: 6 | B7: 3549.741176 | C7: 3229.071954 | D7: 320.6692226 | E7: 2399.186419 | F7: 734.3997 | G7: 1664.786719 | I7: -6.748430431 | J7: 1 | K7: -3100 | L7: 1 | M7: 0.01923076923 | N7: 1465.771627 | O7: 1 | P7: 340 | Q7: 2 | R7: 0.03846153846
A8: 7 | B8: 3235.804021 | C8: 5278.164952 | D8: -2042.360931 | E8: 2247.392741 | F8: 1321.643351 | G8: 925.7493899 | I8: 320.6692226 | J8: 1 | K8: -2900 | L8: 2 | M8: 0.03846153846 | N8: 1664.786719 | O8: 1 | P8: 440 | Q8: 5 | R8: 0.09615384615
A9: 8 | B9: 3144.795509 | C9: 7738.214956 | D9: -4593.419447 | E9: 2191.747623 | F9: 2164.116297 | G9: 27.63132602 | I9: -2042.360931 | J9: 1 | K9: -2500 | L9: 2 | M9: 0.03846153846 | N9: 925.7493899 | O9: 1 | P9: 540 | Q9: 6 | R9: 0.1153846154
A10: 9 | B10: 3048.237293 | C10: 4426.981665 | D10: -1378.744372 | E10: 2114.304586 | F10: 1060.577669 | G10: 1053.726918 | I10: -4593.419447 | J10: 1 | K10: -2300 | L10: 4 | M10: 0.07692307692 | N10: 27.63132602 | O10: 1 | P10: 640 | Q10: 5 | R10: 0.09615384615
A11: 10 | B11: 3048.285399 | C11: 7283.65511 | D11: -4235.369712 | E11: 2166.018158 | F11: 1937.301396 | G11: 228.7167618 | I11: -1378.744372 | J11: 1 | K11: -2100 | L11: 3 | M11: 0.05769230769 | N11: 1053.726918 | O11: 1 | P11: 740 | Q11: 5 | R11: 0.09615384615
A12: 11 | B12: 3009.805109 | C12: 5049.343687 | D12: -2039.538578 | E12: 2007.142207 | F12: 1190.024406 | G12: 817.1178011 | I12: -4235.369712 | J12: 1 | K12: -1900 | L12: 2 | M12: 0.03846153846 | N12: 228.7167618 | O12: 1 | P12: 840 | Q12: 5 | R12: 0.09615384615
A13: 12 | B13: 2924.344442 | C13: 3800.288934 | D13: -875.944492 | E13: 1964.9333 | F13: 1058.124916 | G13: 906.8083843 | I13: -2039.538578 | J13: 1 | K13: -1700 | L13: 2 | M13: 0.03846153846 | N13: 817.1178011 | O13: 1 | P13: 940 | Q13: 3 | R13: 0.05769230769
A14: 13 | B14: 2936.081597 | C14: 6203.681445 | D14: -3267.599848 | E14: 1958.287026 | F14: 1802.775576 | G14: 155.5114505 | I14: -875.944492 | J14: 1 | K14: -1500 | L14: 4 | M14: 0.07692307692 | N14: 906.8083843 | O14: 1 | P14: 1040 | Q14: 3 | R14: 0.05769230769
A15: 14 | B15: 2706.462727 | C15: 4100.620484 | D15: -1394.157757 | E15: 1877.333953 | F15: 1334.404272 | G15: 542.9296813 | I15: -3267.599848 | J15: 1 | K15: -1300 | L15: 4 | M15: 0.07692307692 | N15: 155.5114505 | O15: 1 | P15: 1140 | Q15: 2 | R15: 0.03846153846
A16: 15 | B16: 2763.608011 | C16: 3378.224326 | D16: -614.6163142 | E16: 1862.685782 | F16: 960.1857618 | G16: 902.5000197 | I16: -1394.157757 | J16: 1 | K16: -1100 | L16: 1 | M16: 0.01923076923 | N16: 542.9296813 | O16: 1 | P16: 1240 | Q16: 4 | R16: 0.07692307692
A17: 16 | B17: 2843.474628 | C17: 4598.816378 | D17: -1755.34175 | E17: 1862.956477 | F17: 1398.869517 | G17: 464.0869599 | I17: -614.6163142 | J17: 1 | K17: -900 | L17: 7 | M17: 0.1346153846 | N17: 902.5000197 | O17: 1 | P17: 1440 | Q17: 1 | R17: 0.01923076923
A18: 17 | B18: 2822.976995 | C18: 3329.922758 | D18: -506.9457628 | E18: 1848.179529 | F18: 1045.453241 | G18: 802.7262883 | I18: -1755.34175 | J18: 1 | K18: -700 | L18: 4 | M18: 0.07692307692 | N18: 464.0869599 | O18: 1 | P18: 1640 | Q18: 1 | R18: 0.01923076923
A19: 18 | B19: 2544.370989 | C19: 3766.5131 | D19: -1222.142111 | E19: 1718.664795 | F19: 1304.760863 | G19: 413.9039318 | I19: -506.9457628 | J19: 1 | K19: -500 | L19: 1 | M19: 0.01923076923 | N19: 802.7262883 | O19: 1 | P19: 1840 | Q19: 1 | R19: 0.01923076923
A20: 19 | B20: 2755.906389 | C20: 3551.353567 | D20: -795.4471777 | E20: 1799.986309 | F20: 1518.180774 | G20: 281.805535 | I20: -1222.142111 | J20: 1 | K20: -300 | L20: 1 | M20: 0.01923076923 | N20: 413.9039318 | O20: 1
A21: 20 | B21: 2601.120536 | C21: 5420.936604 | D21: -2819.816068 | E21: 1717.174915 | F21: 1719.198967 | G21: -2.024052056 | I21: -795.4471777 | J21: 1 | K21: -100 | L21: 5 | M21: 0.09615384615 | N21: 281.805535 | O21: 1
A22: 21 | B22: 2655.144616 | C22: 3506.554501 | D22: -851.4098856 | E22: 1694.445534 | F22: 1201.667848 | G22: 492.7776858 | I22: -2819.816068 | J22: 1 | K22: 100 | L22: 1 | M22: 0.01923076923 | N22: -2.024052056 | O22: 1
A23: 22 | B23: 2588.279111 | C23: 4810.632439 | D23: -2222.353329 | E23: 1697.650602 | F23: 1429.306613 | G23: 268.3439886 | I23: -851.4098856 | J23: 1 | K23: 300 | L23: 2 | M23: 0.03846153846 | N23: 492.7776858 | O23: 1
A24: 23 | B24: 2665.170685 | C24: 5220.101853 | D24: -2554.931168 | E24: 1689.880708 | F24: 1561.245677 | G24: 128.6350312 | I24: -2222.353329 | J24: 1 | K24: 500 | L24: 1 | M24: 0.01923076923 | N24: 268.3439886 | O24: 1
A25: 24 | B25: 2659.982526 | C25: 3505.088509 | D25: -845.1059832 | E25: 1658.874978 | F25: 1008.606336 | G25: 650.2686425 | I25: -2554.931168 | J25: 1 | K25: 1100 | L25: 1 | M25: 0.01923076923 | N25: 128.6350312 | O25: 1
A26: 25 | B26: 2635.707271 | C26: 2580.58568 | D26: 55.12159154 | E26: 1672.463612 | F26: 1011.081223 | G26: 661.3823887 | I26: -845.1059832 | J26: 1 | N26: 650.2686425 | O26: 1
A27: 26 | B27: 2625.744904 | C27: 4986.795476 | D27: -2361.050572 | E27: 1680.480171 | F27: 1506.474785 | G27: 174.0053855 | I27: 55.12159154 | J27: 1 | N27: 661.3823887 | O27: 1
A28: 27 | B28: 2589.637494 | C28: 2613.717157 | D28: -24.0796623 | E28: 1586.703485 | F28: 751.6443242 | G28: 835.0591608 | I28: -2361.050572 | J28: 1 | N28: 174.0053855 | O28: 1
A29: 28 | B29: 2490.174877 | C29: 3646.565959 | D29: -1156.391082 | E29: 1570.400771 | F29: 1106.485162 | G29: 463.915608 | I29: -24.0796623 | J29: 1 | N29: 835.0591608 | O29: 1
A30: 29 | B30: 2225.0886 | C30: 5755.647424 | D30: -3530.558824 | E30: 1525.895515 | F30: 1733.445089 | G30: -207.5495744 | I30: -1156.391082 | J30: 1 | N30: 463.915608 | O30: 1
A31: 30 | B31: 2287.102736 | C31: 3263.719999 | D31: -976.6172628 | E31: 1525.66186 | F31: 1043.318847 | G31: 482.3430126 | I31: -3530.558824 | J31: 1 | N31: -207.5495744 | O31: 1
A32: 31 | B32: 2416.471213 | C32: 2156.482899 | D32: 259.9883142 | E32: 1574.143601 | F32: 759.3666201 | G32: 814.7769811 | I32: -976.6172628 | J32: 1 | N32: 482.3430126 | O32: 1
A33: 32 | B33: 2580.168421 | C33: 3273.573469 | D33: -693.4050476 | E33: 1641.701291 | F33: 1113.772442 | G33: 527.9288483 | I33: 259.9883142 | J33: 1 | N33: 814.7769811 | O33: 1
A34: 33 | B34: 2692.264805 | C34: 2274.061914 | D34: 418.2028901 | E34: 1665.094597 | F34: 633.9279314 | G34: 1031.166665 | I34: -693.4050476 | J34: 1 | N34: 527.9288483 | O34: 1
A35: 34 | B35: 2717.194095 | C35: 2733.696194 | D35: -16.50209885 | E35: 1699.32196 | F35: 928.4546062 | G35: 770.8673537 | I35: 418.2028901 | J35: 1 | N35: 1031.166665 | O35: 1
A36: 35 | B36: 2714.066239 | C36: 3681.391473 | D36: -967.3252342 | E36: 1708.379224 | F36: 1120.922071 | G36: 587.4571531 | I36: -16.50209885 | J36: 1 | N36: 770.8673537 | O36: 1
A37: 36 | B37: 2723.878156 | C37: 5220.792769 | D37: -2496.914612 | E37: 1756.364414 | F37: 1396.939841 | G37: 359.4245723 | I37: -967.3252342 | J37: 1 | N37: 587.4571531 | O37: 1
A38: 37 | B38: 2760.419828 | C38: 4265.52472 | D38: -1505.104892 | E38: 1780.814565 | F38: 1178.839171 | G38: 601.9753944 | I38: -2496.914612 | J38: 1 | N38: 359.4245723 | O38: 1
A39: 38 | B39: 2796.294312 | C39: 5053.768363 | D39: -2257.474051 | E39: 1813.464686 | F39: 1278.483202 | G39: 534.9814839 | I39: -1505.104892 | J39: 1 | N39: 601.9753944 | O39: 1
A40: 39 | B40: 2931.319638 | C40: 4432.214895 | D40: -1500.895258 | E40: 1898.308476 | F40: 1361.457297 | G40: 536.8511794 | I40: -2257.474051 | J40: 1 | N40: 534.9814839 | O40: 1
A41: 40 | B41: 2926.597537 | C41: 5139.607174 | D41: -2213.009637 | E41: 1895.463512 | F41: 1300.666113 | G41: 594.7973992 | I41: -1500.895258 | J41: 1 | N41: 536.8511794 | O41: 1
A42: 41 | B42: 2903.453912 | C42: 5749.306014 | D42: -2845.852102 | E42: 1913.086799 | F42: 1621.920141 | G42: 291.1666583 | I42: -2213.009637 | J42: 1 | N42: 594.7973992 | O42: 1
A43: 42 | B43: 2897.566197 | C43: 4352.296411 | D43: -1454.730214 | E43: 1864.573857 | F43: 1119.952072 | G43: 744.6217856 | I43: -2845.852102 | J43: 1 | N43: 291.1666583 | O43: 1
A44: 43 | B44: 3036.613711 | C44: 3084.814549 | D44: -48.20083815 | E44: 1949.824593 | F44: 708.3100848 | G44: 1241.514509 | I44: -1454.730214 | J44: 1 | N44: 744.6217856 | O44: 1
A45: 44 | B45: 3088.880024 | C45: 5123.92046 | D45: -2035.040436 | E45: 2024.920165 | F45: 1570.722048 | G45: 454.1981164 | I45: -48.20083815 | J45: 1 | N45: 1241.514509 | O45: 1
A46: 45 | B46: 3093.811647 | C46: 4692.831353 | D46: -1599.019706 | E46: 2068.502925 | F46: 1286.625785 | G46: 781.8771395 | I46: -2035.040436 | J46: 1 | N46: 454.1981164 | O46: 1
A47: 46 | B47: 3103.200602 | C47: 3842.494721 | D47: -739.2941185 | E47: 1999.501704 | F47: 740.7538141 | G47: 1258.74789 | I47: -1599.019706 | J47: 1 | N47: 781.8771395 | O47: 1
A48: 47 | B48: 3142.639546 | C48: 4906.671162 | D48: -1764.031616 | E48: 2059.129981 | F48: 978.0304465 | G48: 1081.099534 | I48: -739.2941185 | J48: 1 | N48: 1258.74789 | O48: 1
A49: 48 | B49: 3236.006708 | C49: 3284.389036 | D49: -48.38232797 | E49: 2127.078613 | F49: 939.0438571 | G49: 1188.034756 | I49: -1764.031616 | J49: 1 | N49: 1081.099534 | O49: 1
A50: 49 | B50: 3420.039796 | C50: 2287.418039 | D50: 1132.621757 | E50: 2258.726418 | F50: 444.5962369 | G50: 1814.130181 | I50: -48.38232797 | J50: 1 | N50: 1188.034756 | O50: 1
A51: 50 | B51: 3464.208521 | C51: 5297.724892 | D51: -1833.516372 | E51: 2315.301745 | F51: 1486.818145 | G51: 828.4835995 | I51: 1132.621757 | J51: 1 | N51: 1814.130181 | O51: 1
A52: 51 | B52: 3357.928308 | C52: 4710.125589 | D52: -1352.197281 | E52: 2269.663262 | F52: 1020.510624 | G52: 1249.152638 | I52: -1833.516372 | J52: 1 | N52: 828.4835995 | O52: 1
A53: 52 | B53: 2901.219662 | C53: 3102.273318 | D53: -201.0536564 | E53: 2055.233666 | F53: 1303.552756 | G53: 751.6809103 | I53: -1352.197281 | J53: 1 | N53: 1249.152638 | O53: 1
A54: 53 | I54: -201.0536564 | J54: 1 | N54: 751.6809103 | O54: 1

Sheet January

Sheet February

Sheet March

Sheet April

Sheet May

Sheet June

Sheet July

Sheet August

Sheet September

Sheet October

Sheet November

Sheet December

Sheet Statistics
A1: DK1 | E1: DK2
B2: Down | C2: Up | F2: Down | G2: Up
A3: Hours | B3: =(5425/8736)*100 -> 62.09935897 | C3: =(3311/8736)*100 -> 37.90064103 | E3: Hours | F3: =(1833/8736)*100 -> 20.98214286 | G3: =(6903/8736)*100 -> 79.01785714

Sheet Hourly Statistics
A1: Residual load DK1 | B1: Residual load DK2 | D1: DK1 | G1: DK2 | K1: DK1 | O1: DK2
A2: -1666.086865 | B2: 1009.716754 | D2: UP | E2: Number | F2: DOWN | G2: UP | H2: Number | I2: DOWN | K2: Middle | L2: Number | M2: Frequency | O2: Middle | P2: Number | Q2: Frequency
A3: -1604.05627 | B3: 906.4147115 | D3: 194.8675781 | E3: 1 | F3: -1666.086865 | G3: 1009.716754 | H3: 1 | I3: -154.7011628 | K3: -7900 | L3: 2 | M3: =L3/8736 -> 0.0002289377289 | O3: -2250 | P3: 1 | Q3: =P3/8736 -> 0.0001144688645
A4: -1411.774673 | B4: 724.1889515 | D4: 813.7621034 | E4: 1 | F4: -1604.05627 | G4: 906.4147115 | H4: 1 | I4: -264.353119 | K4: =K3+200 -> -7700 | L4: 13 | M4: =L4/8736 -> 0.001488095238 | O4: =O3+60 -> -2190 | P4: 2 | Q4: =P4/8736 -> 0.0002289377289
A5: -1766.567923 | B5: 541.795636 | D5: 838.8355584 | E5: 1 | F5: -1411.774673 | G5: 724.1889515 | H5: 1 | I5: -343.8372095 | K5: =K4+200 -> -7500 | L5: 21 | M5: 0.002403846154 | O5: =O4+60 -> -2130 | P5: 1 | Q5: 0.0001144688645
A6: -2116.817126 | B6: 447.9242038 | D6: 437.0689715 | E6: 1 | F6: -1766.567923 | G6: 541.795636 | H6: 1 | I6: -450.7337379 | K6: -7300 | L6: 45 | M6: 0.005151098901 | O6: -2070 | P6: 4 | Q6: 0.0004578754579
A7: -2905.063446 | B7: 504.7965136 | D7: 601.5620368 | E7: 1 | F7: -2116.817126 | G7: 447.9242038 | H7: 1 | I7: -539.8236005 | K7: -7100 | L7: 42 | M7: 0.004807692308 | O7: -2010 | P7: 1 | Q7: 0.0001144688645
A8: -2886.221225 | B8: 738.7444395 | D8: 996.3783975 | E8: 1 | F8: -2905.063446 | G8: 504.7965136 | H8: 1 | I8: -649.3281094 | K8: -6900 | L8: 65 | M8: 0.00744047619 | O8: -1890 | P8: 5 | Q8: 0.0005723443223
A9: -4265.414176 | B9: 486.2335598 | D9: 1021.944119 | E9: 1 | F9: -2886.221225 | G9: 738.7444395 | H9: 1 | I9: -696.0919106 | K9: -6700 | L9: 86 | M9: 0.009844322344 | O9: -1830 | P9: 3 | Q9: 0.0003434065934
A10: -3754.808362 | B10: 585.9466332 | D10: 929.08629 | E10: 1 | F10: -4265.414176 | G10: 486.2335598 | H10: 1 | I10: -683.1094462 | K10: -6500 | L10: 89 | M10: 0.01018772894 | O10: -1770 | P10: 5 | Q10: 0.0005723443223
A11: -3483.500325 | B11: 637.0570924 | D11: 840.1898422 | E11: 1 | F11: -3754.808362 | G11: 585.9466332 | H11: 1 | I11: -659.1763964 | K11: -6300 | L11: 136 | M11: 0.01556776557 | O11: -1710 | P11: 5 | Q11: 0.0005723443223
A12: -3955.150059 | B12: 655.3046056 | D12: 792.6025726 | E12: 1 | F12: -3483.500325 | G12: 637.0570924 | H12: 1 | I12: -607.7943144 | K12: -6100 | L12: 137 | M12: 0.01568223443 | O12: -1650 | P12: 5 | Q12: 0.0005723443223
A13: -3846.422735 | B13: 632.2454571 | D13: 1131.798194 | E13: 1 | F13: -3955.150059 | G13: 655.3046056 | H13: 1 | I13: -320.6735382 | K13: -5900 | L13: 120 | M13: 0.01373626374 | O13: -1590 | P13: 8 | Q13: 0.0009157509158
A14: -3703.654362 | B14: 589.3139884 | D14: 932.7089176 | E14: 1 | F14: -3846.422735 | G14: 632.2454571 | H14: 1 | I14: -74.32336996 | K14: -5700 | L14: 100 | M14: 0.01144688645 | O14: -1530 | P14: 14 | Q14: 0.001602564103
A15: -3753.055704 | B15: 584.1496864 | D15: 1072.958822 | E15: 1 | F15: -3703.654362 | G15: 589.3139884 | H15: 1 | I15: -27.943969 | K15: -5500 | L15: 121 | M15: 0.0138507326 | O15: -1470 | P15: 9 | Q15: 0.00103021978
A16: -4021.778098 | B16: 678.2625516 | D16: 510.4135728 | E16: 1 | F16: -3753.055704 | G16: 584.1496864 | H16: 1 | I16: -468.6727276 | K16: -5300 | L16: 119 | M16: 0.01362179487 | O16: -1410 | P16: 21 | Q16: 0.002403846154
A17: -3652.467843 | B17: 759.9391945 | D17: 458.4809065 | E17: 1 | F17: -4021.778098 | G17: 678.2625516 | H17: 1 | I17: -116.5170626 | K17: -5100 | L17: 142 | M17: 0.01625457875 | O17: -1350 | P17: 34 | Q17: 0.003891941392
A18: -2969.529228 | B18: 1067.300158 | D18: 337.8997007 | E18: 1 | F18: -3652.467843 | G18: 759.9391945 | H18: 1 | I18: -252.7705728 | K18: -4900 | L18: 128 | M18: 0.01465201465 | O18: -1290 | P18: 33 | Q18: 0.003777472527
A19: -2056.125398 | B19: 1509.379294 | D19: 914.5415134 | E19: 1 | F19: -2969.529228 | G19: 1067.300158 | H19: 1 | I19: -229.4492972 | K19: -4700 | L19: 130 | M19: 0.01488095238 | O19: -1230 | P19: 30 | Q19: 0.003434065934
A20: -1748.282795 | B20: 1617.51906 | D20: 809.2418594 | E20: 1 | F20: -2056.125398 | G20: 1509.379294 | H20: 1 | I20: -121.6327305 | K20: -4500 | L20: 125 | M20: 0.01430860806 | O20: -1170 | P20: 45 | Q20: 0.005151098901
A21: -1995.679221 | B21: 1550.551965 | D21: 901.6387776 | E21: 1 | F21: -1748.282795 | G21: 1617.51906 | H21: 1 | I21: -60.9533709 | K21: -4300 | L21: 127 | M21: 0.01453754579 | O21: -1110 | P21: 45 | Q21: 0.005151098901
A22: -2199.118123 | B22: 1396.388433 | D22: 837.7595309 | E22: 1 | F22: -1995.679221 | G22: 1550.551965 | H22: 1 | I22: -10.7629901 | K22: -4100 | L22: 127 | M22: 0.01453754579 | O22: -1050 | P22: 39 | Q22: 0.004464285714
A23: -2141.340396 | B23: 1376.125049 | D23: 942.3458396 | E23: 1 | F23: -2199.118123 | G23: 1396.388433 | H23: 1 | I23: -212.4322234 | K23: -3900 | L23: 157 | M23: 0.01797161172 | O23: -990 | P23: 57 | Q23: 0.006524725275
A24: -1544.967535 | B24: 1223.270466 | D24: 1197.236081 | E24: 1 | F24: -2141.340396 | G24: 1376.125049 | H24: 1 | I24: -565.8033431 | K24: -3700 | L24: 146 | M24: 0.01671245421 | O24: -930 | P24: 63 | Q24: 0.007211538462
A25: -550.6236817 | B25: 1478.899285 | D25: 1332.882182 | E25: 1 | F25: -1544.967535 | G25: 1223.270466 | H25: 1 | I25: -683.8266907 | K25: -3500 | L25: 141 | M25: 0.01614010989 | O25: -870 | P25: 58 | Q25: 0.006639194139
A26: -536.9383706 | B26: 1337.996923 | D26: 345.0890775 | E26: 1 | F26: -550.6236817 | G26: 1478.899285 | H26: 1 | I26: -511.8717981 | K26: -3300 | L26: 136 | M26: 0.01556776557 | N26: =SUM(M3:M26) -> 0.2810210623 | O26: -810 | P26: 62 | Q26: 0.007097069597
A27: -196.0328527 | B27: 1329.831673 | D27: 131.8659535 | E27: 1 | F27: -536.9383706 | G27: 1337.996923 | H27: 1 | I27: -497.5061311 | K27: -3100 | L27: 161 | M27: 0.01842948718 | O27: -750 | P27: 61 | Q27: 0.006982600733
A28: 194.8675781 | B28: 1315.578304 | D28: 800.1454741 | E28: 1 | F28: -196.0328527 | G28: 1329.831673 | H28: 1 | I28: -472.9839753 | K28: -2900 | L28: 164 | M28: 0.01877289377 | O28: -690 | P28: 66 | Q28: 0.007554945055
A29: 813.7621034 | B29: 1340.227265 | D29: 718.3065231 | E29: 1 | F29: -799.3657886 | G29: 1315.578304 | H29: 1 | I29: -220.6157388 | K29: -2700 | L29: 167 | M29: 0.01911630037 | O29: -630 | P29: 83 | Q29: 0.009500915751
A30: 838.8355584 | B30: 1364.144819 | D30: 954.5316812 | E30: 1 | F30: -801.728548 | G30: 1340.227265 | H30: 1 | I30: -323.6312544 | K30: -2500 | L30: 173 | M30: 0.01980311355 | O30: -570 | P30: 68 | Q30: 0.007783882784
A31: -799.3657886 | B31: 1419.213315 | D31: 1080.237701 | E31: 1 | F31: -1801.229913 | G31: 1364.144819 | H31: 1 | I31: -675.5144885 | K31: -2300 | L31: 173 | M31: 0.01980311355 | O31: -510 | P31: 86 | Q31: 0.009844322344
A32: -801.728548 | B32: 1652.847438 | D32: 180.6622416 | E32: 1 | F32: -1819.820207 | G32: 1419.213315 | H32: 1 | I32: -673.1678935 | K32: -2100 | L32: 166 | M32: 0.0190018315 | O32: -450 | P32: 92 | Q32: 0.01053113553
A33: -1801.229913 | B33: 1898.231865 | D33: 397.1755473 | E33: 1 | F33: -2115.573566 | G33: 1652.847438 | H33: 1 | I33: -881.6096949 | K33: -1900 | L33: 197 | M33: 0.0225503663 | O33: -390 | P33: 91 | Q33: 0.01041666667
A34: -1819.820207 | B34: 1864.977239 | D34: 626.5963729 | E34: 1 | F34: -2292.054236 | G34: 1898.231865 | H34: 1 | I34: -987.022668 | K34: -1700 | L34: 184 | M34: 0.02106227106 | O34: -330 | P34: 93 | Q34: 0.0106456044
A35: -2115.573566 | B35: 1634.689271 | D35: 849.974984 | E35: 1 | F35: -2702.340198 | G35: 1864.977239 | H35: 1 | I35: -864.1426879 | K35: -1500 | L35: 176 | M35: 0.02014652015 | O35: -270 | P35: 114 | Q35: 0.01304945055
A36: -2292.054236 | B36: 1430.818078 | D36: 62.00230832 | E36: 1 | F36: -3106.821994 | G36: 1634.689271 | H36: 1 | I36: -559.7461193 | K36: -1300 | L36: 178 | M36: 0.02037545788 | O36: -210 | P36: 121 | Q36: 0.0138507326
A37: -2702.340198 | B37: 1211.891588 | D37: 887.234734 | E37: 1 | F37: -3268.82114 | G37: 1430.818078 | H37: 1 | I37: -202.1904023 | K37: -1100 | L37: 194 | M37: 0.02220695971 | O37: -150 | P37: 128 | Q37: 0.01465201465
A38: -3106.821994 | B38: 1037.644014 | D38: 1422.869886 | E38: 1 | F38: -3427.582318 | G38: 1211.891588 | H38: 1 | I38: -474.281957 | K38: -900 | L38: 230 | M38: 0.02632783883 | O38: -90 | P38: 151 | Q38: 0.01728479853
A39: -3268.82114 | B39: 1093.0528 | D39: 1492.473332 | E39: 1 | F39: -3405.437146 | G39: 1037.644014 | H39: 1 | I39: -967.1165942 | K39: -700 | L39: 220 | M39: 0.02518315018 | O39: -30 | P39: 129 | Q39: 0.01476648352 | R39: =SUM(Q3:Q39) -> 0.2098214286
A40: -3427.582318 | B40: 1284.019794 | D40: 1682.140708 | E40: 1 | F40: -3182.494853 | G40: 1093.0528 | H40: 1 | I40: -1265.410564 | K40: -500 | L40: 200 | M40: 0.02289377289 | O40: 37.5 | P40: 196 | Q40: 0.02243589744
A41: -3405.437146 | B41: 1468.469584 | D41: 1866.398855 | E41: 1 | F41: -2996.279598 | G41: 1284.019794 | H41: 1 | I41: -1060.700667 | K41: -300 | L41: 196 | M41: 0.02243589744 | O41: =O40+75 -> 112.5 | P41: 216 | Q41: 0.02472527473
A42: -3182.494853 | B42: 1567.027114 | D42: 2154.810019 | E42: 1 | F42: -3335.908429 | G42: 1468.469584 | H42: 1 | I42: -577.6730962 | K42: -100 | L42: 191 | M42: 0.02186355311 | N42: =SUM(M27:M42) -> 0.3399725275 | O42: =O41+75 -> 187.5 | P42: 192 | Q42: 0.02197802198
A43: -2996.279598 | B43: 1736.967925 | D43: 2280.577373 | E43: 1 | F43: -3750.119861 | G43: 1567.027114 | H43: 1 | I43: -575.5238157 | K43: 52.5 | L43: 117 | M43: 0.01339285714 | O43: 262.5 | P43: 236 | Q43: 0.02701465201
A44: -3335.908429 | B44: 1598.740624 | D44: 1806.244111 | E44: 1 | F44: -4111.391692 | G44: 1736.967925 | H44: 1 | I44: -475.9755872 | K44: =K43+105 -> 157.5 | L44: 118 | M44: 0.01350732601 | O44: 337.5 | P44: 239 | Q44: 0.02735805861
A45: -3750.119861 | B45: 1223.997013 | D45: 2167.000093 | E45: 1 | F45: -4391.515223 | G45: 1598.740624 | H45: 1 | I45: -1058.936347 | K45: =K44+105 -> 262.5 | L45: 100 | M45: 0.01144688645 | O45: 412.5 | P45: 236 | Q45: 0.02701465201
A46: -4111.391692 | B46: 937.2361136 | D46: 2740.294533 | E46: 1 | F46: -4740.831203 | G46: 1223.997013 | H46: 1 | I46: -749.0873739 | K46: 367.5 | L46: 106 | M46: 0.01213369963 | O46: 487.5 | P46: 240 | Q46: 0.02747252747
A47: -4391.515223 | B47: 689.9858785 | D47: 2713.761157 | E47: 1 | F47: -4963.98102 | G47: 937.2361136 | H47: 1 | I47: -44.89883289 | K47: 472.5 | L47: 136 | M47: 0.01556776557 | O47: 562.5 | P47: 260 | Q47: 0.02976190476
A48: -4740.831203 | B48: 454.3444325 | D48: 2528.42356 | E48: 1 | F48: -4739.606149 | G48: 689.9858785 | H48: 1 | I48: -72.38746125 | K48: 577.5 | L48: 123 | M48: 0.01407967033 | O48: 637.5 | P48: 254 | Q48: 0.02907509158
A49: -4963.98102 | B49: 281.9002249 | D49: 2493.490965 | E49: 1 | F49: -3105.960582 | G49: 454.3444325 | H49: 1 | I49: -63.92460848 | K49: 682.5 | L49: 147 | M49: 0.01682692308 | O49: 712.5 | P49: 266 | Q49: 0.03044871795
A50: -4739.606149 | B50: -154.7011628 | D50: 2436.380595 | E50: 1 | F50: -3224.699402 | G50: 281.9002249 | H50: 1 | I50: -57.87971364 | K50: 787.5 | L50: 140 | M50: 0.01602564103 | O50: 787.5 | P50: 317 | Q50: 0.03628663004
A51: -3105.960582 | B51: 62.80151479 | D51: 2315.048905 | E51: 1 | F51: -3139.148062 | G51: 62.80151479 | H51: 1 | I51: -55.94689247 | K51: 892.5 | L51: 114 | M51: 0.01304945055 | O51: 862.5 | P51: 298 | Q51: 0.03411172161
A52: -3224.699402 | B52: 98.98847215 | D52: 2260.217838 | E52: 1 | F52: -3199.903235 | G52: 98.98847215 | H52: 1 | I52: -107.6002457 | K52: 997.5 | L52: 121 | M52: 0.0138507326 | O52: 937.5 | P52: 349 | Q52: 0.0399496337
A53: -3139.148062 | B53: 106.0910745 | D53: 2276.752166 | E53: 1 | F53: -3091.431803 | G53: 106.0910745 | H53: 1 | I53: -96.36756625 | K53: 1102.5 | L53: 142 | M53: 0.01625457875 | O53: 1012.5 | P53: 331 | Q53: 0.03788919414
A54: -3199.903235 | B54: 118.7781558 | D54: 2143.497394 | E54: 1 | F54: -2680.213003 | G54: 118.7781558 | H54: 1 | I54: -8.98889411 | K54: 1207.5 | L54: 116 | M54: 0.01327838828 | O54: 1087.5 | P54: 337 | Q54: 0.03857600733
A55: -3091.431803 | B55: 164.7859337 | D55: 2006.951005 | E55: 1 | F55: -5925.778377 | G55: 164.7859337 | H55: 1 | I55: -61.20032721 | K55: 1312.5 | L55: 133 | M55: 0.01522435897 | O55: 1162.5 | P55: 341 | Q55: 0.03903388278
A56: -2680.213003 | B56: 349.7110465 | D56: 2282.587031 | E56: 1 | F56: -6053.32772 | G56: 349.7110465 | H56: 1 | I56: -85.35379151 | K56: 1417.5 | L56: 127 | M56: 0.01453754579 | O56: 1237.5 | P56: 297 | Q56: 0.03399725275
A57: -5925.778377 | B57: -264.353119 | D57: 2542.181777 | E57: 1 | F57: -5919.317713 | G57: 497.7732848 | H57: 1 | I57: -295.1928603 | K57: 1522.5 | L57: 127 | M57: 0.01453754579 | O57: 1312.5 | P57: 292 | Q57: 0.03342490842
A58: -6053.32772 | B58: -343.8372095 | D58: 1975.829864 | E58: 1 | F58: -5131.332857 | G58: 583.2721586 | H58: 1 | I58: -261.0471065 | K58: 1627.5 | L58: 139 | M58: 0.01591117216 | O58: 1387.5 | P58: 247 | Q58: 0.02827380952
A59: -5919.317713 | B59: -450.7337379 | D59: 961.0438105 | E59: 1 | F59: -4891.485814 | G59: 442.4352595 | H59: 1 | I59: -185.0567516 | K59: 1732.5 | L59: 134 | M59: 0.01533882784 | O59: 1462.5 | P59: 255 | Q59: 0.02918956044 | R59: =SUM(Q40:Q59) -> 0.6180173993
A60: -5131.332857 | B60: -539.8236005 | D60: 389.4506833 | E60: 1 | F60: -4348.50897 | G60: 284.4033798 | H60: 1 | I60: -49.79419665 | K60: 1837.5 | L60: 132 | M60: 0.01510989011 | O60: 1537.5 | P60: 220 | Q60: 0.02518315018
A61: -4891.485814 | B61: -649.3281094 | D61: 253.0862567 | E61: 1 | F61: -4298.060708 | G61: 135.4843542 | H61: 1 | I61: -5.826241935 | K61: 1942.5 | L61: 118 | M61: 0.01350732601 | O61: 1612.5 | P61: 198 | Q61: 0.02266483516
A62: -4348.50897 | B62: -696.0919106 | D62: 255.1854069 | E62: 1 | F62: -4131.469722 | G62: 23.38494441 | H62: 1 | I62: -118.6454517 | K62: 2047.5 | L62: 111 | M62: 0.01270604396 | O62: 1687.5 | P62: 178 | Q62: 0.02037545788
A63: -4298.060708 | B63: -683.1094462 | D63: 522.0718227 | E63: 1 | F63: -4115.561764 | G63: 244.6555514 | H63: 1 | I63: -167.4470284 | K63: 2152.5 | L63: 118 | M63: 0.01350732601 | N63: =SUM(M43:M63) -> 0.299793956 | O63: 1762.5 | P63: 129 | Q63: 0.01476648352
A64: -4131.469722 | B64: -659.1763964 | D64: 366.531669 | E64: 1 | F64: -3986.679157 | G64: 370.4923475 | H64: 1 | I64: -9.994890297 | K64: 2257.5 | L64: 96 | M64: 0.01098901099 | O64: 1837.5 | P64: 144 | Q64: 0.01648351648
A65: -4115.561764 | B65: -607.7943144 | D65: 4.801625354 | E65: 1 | F65: -3768.941412 | G65: 287.8573997 | H65: 1 | I65: -137.4650136 | K65: 2362.5 | L65: 88 | M65: 0.01007326007 | O65: 1912.5 | P65: 92 | Q65: 0.01053113553
A66: -3986.679157 | B66: -320.6735382 | D66: 101.0696682 | E66: 1 | F66: -3995.94854 | G66: 241.7780486 | H66: 1 | I66: -336.487034 | K66: 2467.5 | L66: 66 | M66: 0.007554945055 | O66: 1987.5 | P66: 95 | Q66: 0.01087454212
A67: -3768.941412 | B67: 497.7732848 | D67: 633.735841 | E67: 1 | F67: -3861.938254 | G67: 202.7225129 | H67: 1 | I67: -455.3958144 | K67: 2572.5 | L67: 62 | M67: 0.007097069597 | O67: 2062.5 | P67: 108 | Q67: 0.01236263736
A68: -3995.94854 | B68: 583.2721586 | D68: 1133.586891 | E68: 1 | F68: -2723.238154 | G68: 572.0461744 | H68: 1 | I68: -530.0629057 | K68: 2677.5 | L68: 50 | M68: =L68/8736 -> 0.005723443223 | O68: 2137.5 | P68: 90 | Q68: =P68/8736 -> 0.0103021978
A69: -3861.938254 | B69: 442.4352595 | D69: 1667.213705 | E69: 1 | F69: -1027.905691 | G69: 255.7239371 | H69: 1 | I69: -540.3153486 | K69: 2782.5 | L69: 55 | M69: 0.006295787546 | O69: 2212.5 | P69: 54 | Q69: 0.006181318681
A70: -2723.238154 | B70: 284.4033798 | D70: 1777.603527 | E70: 1 | F70: -955.0691084 | G70: 278.0391352 | H70: 1 | I70: -542.2633259 | K70: 2887.5 | L70: 50 | M70: 0.005723443223 | O70: 2287.5 | P70: 62 | Q70: 0.007097069597
A71: 437.0689715 | B71: 135.4843542 | D71: 2107.945058 | E71: 1 | F71: -965.9058827 | G71: 352.15142 | H71: 1 | I71: -332.2550868 | K71: 2992.5 | L71: 41 | M71: 0.004693223443 | O71: 2362.5 | P71: 38 | Q71: 0.00434981685
A72: 601.5620368 | B72: 23.38494441 | D72: 2659.830945 | E72: 1 | F72: -1185.860775 | G72: 181.1334032 | H72: 1 | I72: -459.4411147 | K72: 3097.5 | L72: 36 | M72: 0.004120879121 | O72: 2437.5 | P72: 41 | Q72: 0.004693223443
A73: 996.3783975 | B73: 244.6555514 | D73: 3404.279311 | E73: 1 | F73: -1609.975779 | G73: 112.7089208 | H73: 1 | I73: -744.7273981 | K73: 3202.5 | L73: 25 | M73: 0.002861721612 | O73: 2512.5 | P73: 32 | Q73: 0.003663003663
A74: 1021.944119 | B74: 370.4923475 | D74: 3649.235224 | E74: 1 | F74: -1723.722098 | G74: 172.0376141 | H74: 1 | I74: -922.5004305 | K74: 3307.5 | L74: 21 | M74: 0.002403846154 | O74: 2587.5 | P74: 11 | Q74: 0.001259157509
A75: 929.08629 | B75: 287.8573997 | D75: 3490.852976 | E75: 1 | F75: -5040.497458 | G75: 268.9410467 | H75: 1 | I75: -1059.983897 | K75: 3412.5 | L75: 21 | M75: 0.002403846154 | O75: 2662.5 | P75: 9 | Q75: 0.00103021978
A76: 840.1898422 | B76: 241.7780486 | D76: 3450.802269 | E76: 1 | F76: -5058.629384 | G76: 340.0809486 | H76: 1 | I76: -1200.691807 | K76: 3517.5 | L76: 22 | M76: 0.002518315018 | O76: 2737.5 | P76: 2 | Q76: 0.0002289377289
A77: 792.6025726 | B77: 202.7225129 | D77: 3551.985217 | E77: 1 | F77: -5179.557155 | G77: 367.1181849 | H77: 1 | I77: -1342.494999 | K77: 3622.5 | L77: 21 | M77: 0.002403846154 | O77: 2812.5 | P77: 1 | Q77: 0.0001144688645 | R77: =SUM(Q60:Q77) -> 0.1721611722
A78: 1131.798194 | B78: 572.0461744 | D78: 3432.344734 | E78: 1 | F78: -2115.836179 | G78: 328.9407295 | H78: 1 | I78: -1436.667239 | K78: 3727.5 | L78: 21 | M78: 0.002403846154
A79: 932.7089176 | B79: 255.7239371 | D79: 3442.897231 | E79: 1 | F79: -2344.966841 | G79: 531.2175311 | H79: 1 | I79: -1384.702559 | K79: 3832.5 | L79: 7 | M79: 0.0008012820513
A80: 1072.958822 | B80: -74.32336996 | D80: 3475.754048 | E80: 1 | F80: -1854.963867 | G80: 714.5309814 | H80: 1 | I80: -1304.583561 | K80: 3937.5 | L80: 8 | M80: 0.0009157509158
A81: 510.4135728 | B81: 278.0391352 | D81: 3219.311846 | E81: 1 | F81: -726.7353722 | G81: 637.3236095 | H81: 1 | I81: -1148.966129 | K81: 4042.5 | L81: 2 | M81: 0.0002289377289 | N81: =SUM(M64:M81) -> 0.07921245421
A82: 458.4809065 | B82: 352.15142 | D82: 2952.771391 | E82: 1 | F82: -1835.723206 | G82: 497.6086301 | H82: 1 | I82: -1095.631141
A83: 337.8997007 | B83: 181.1334032 | D83: 2546.126664 | E83: 1 | F83: -1629.549469 | G83: 455.9661457 | H83: 1 | I83: -947.6786793
A84: -1027.905691 | B84: 112.7089208 | D84: 1508.739934 | E84: 1 | F84: -1656.452873 | G84: 423.7792065 | H84: 1 | I84: -675.2830475
A85: -955.0691084 | B85: 172.0376141 | D85: 856.7842332 | E85: 1 | F85: -1605.392792 | G85: 812.1626029 | H85: 1 | I85: -414.3684203
A86: -965.9058827 | B86: 268.9410467 | D86: 455.1712897 | E86: 1 | F86: -1326.262636 | G86: 571.7844551 | H86: 1 | I86: -117.6034877
A87: -1185.860775 | B87: 340.0809486 | D87: 225.5070406 | E87: 1 | F87: -1351.999457 | G87: 353.3027716 | H87: 1 | I87: -89.16117954
A88: -1609.975779 | B88: 367.1181849 | D88: 168.0861164 | E88: 1 | F88: -816.4983879 | G88: 275.0553973 | H88: 1 | I88: -193.5010831
A89: -1723.722098 | B89: 328.9407295 | D89: 23.56328943 | E89: 1 | F89: -665.0921157 | G89: 234.484269 | H89: 1 | I89: -750.2550125
A90: -5040.497458 | B90: 531.2175311 | D90: 178.9214424 | E90: 1 | F90: -895.0246783 | G90: 330.6766061 | H90: 1 | I90: -1041.950095
A91: -5058.629384 | B91: 714.5309814 | D91: 507.7369701 | E91: 1 | F91: -4210.856102 | G91: 592.565861 | H91: 1 | I91: -1144.000634
A92: -5179.557155 | B92: 637.3236095 | D92: 721.4128677 | E92: 1 | F92: -4802.455744 | G92: 793.9464954 | H92: 1 | I92: -493.2744581
A93: -2115.836179 | B93: 497.6086301 | D93: 747.3766264 | E93: 1 | F93: -5118.681847 | G93: 1023.10731 | H93: 1 | I93: -86.83749235
A94: -2344.966841 | B94: 455.9661457 | D94: 1117.835583 | E94: 1 | F94: -5690.162789 | G94: 864.0912732 | H94: 1 | I94: -88.92050733
A95: -1854.963867 | B95: 423.7792065 | D95: 1631.327831 | E95: 1 | F95: -2881.126535 | G95: 891.4724026 | H95: 1 | I95: -160.1419006
A96: -726.7353722 | B96: 812.1626029 | D96: 2150.350151 | E96: 1 | F96: -3089.039807 | G96: 729.1718021 | H96: 1 | I96: -126.7982436
A97: 914.5415134 | B97: 571.7844551 | D97: 2491.075278 | E97: 1 | F97: -3337.264123 | G97: 733.9643167 | H97: 1 | I97: -150.8289576
A98: 809.2418594 | B98: 353.3027716 | D98: 2430.628542 | E98: 1 | F98: -2487.722897 | G98: 931.3280956 | H98: 1 | I98: -7.335080613
A99: 901.6387776 | B99: 275.0553973 | D99: 2492.736874 | E99: 1 | F99: -488.3573742 | G99: 1282.141547 | H99: 1 | I99: -26.79742379
A100: 837.7595309 | B100: 234.484269 | D100: 2260.474724 | E100: 1 | F100: -2698.207679 | G100: 1495.253518 | H100: 1 | I100: -119.1700698
A101: 942.3458396 | B101: 330.6766061 | D101: 2191.099203 | E101: 1 | F101: -2740.165494 | G101: 1364.947612 | H101: 1 | I101: -245.4893174
A102: 1197.236081 | B102: 592.565861 | D102: 2075.997087 | E102: 1 | F102: -2815.865866 | G102: 1139.300532 | H102: 1 | I102: -251.5331808
A103: 1332.882182 | B103: 793.9464954 | D103: 1944.885129 | E103: 1 | F103: -2085.404541 | G103: 783.73261 | H103: 1 | I103: -355.8213199
A104: 345.0890775 | B104: 1023.10731 | D104: 2011.095621 | E104: 1 | F104: -815.0248658 | G104: 577.7843581 | H104: 1 | I104: -259.0620936
A105: -1835.723206 | B105: 864.0912732 | D105: 2477.999906 | E105: 1 | F105: -339.4280514 | G105: 197.1276328 | H105: 1 | I105: -60.88254392
A106: -1629.549469 | B106: 891.4724026 | D106: 1764.51891 | E106: 1 | F106: -508.9248666 | G106: 69.4722945 | H106: 1 | I106: -423.9991179
A107: -1656.452873 | B107: 729.1718021 | D107: 907.3651345 | E107: 1 | F107: -527.1180423 | G107: 32.11715923 | H107: 1 | I107: -163.6252541
A108: -1605.392792 | B108: 733.9643167 | D108: 483.7164093 | E108: 1 | F108: -1200.958021 | G108: 138.8750676 | H108: 1 | I108: -219.5534127
A109: -1326.262636 | B109: 931.3280956 | D109: 78.75228313 | E109: 1 | F109: -1463.934084 | G109: 361.8166938 | H109: 1 | I109: -161.8048855
A110: -1351.999457 | B110: 1282.141547 | D110: 91.07771636 | E110: 1 | F110: -1470.512955 | G110: 600.5956258 | H110: 1 | I110: -123.79012
A111: -816.4983879 | B111: 1495.253518 | D111: 622.6038352 | E111: 1 | F111: -1463.328926 | G111: 665.2238344 | H111: 1 | I111: -67.34071148
A112: -665.0921157 | B112: 1364.947612 | D112: 1132.840416 | E112: 1 | F112: -2185.953419 | G112: 664.2923954 | H112: 1 | I112: -262.697963
A113: -895.0246783 | B113: 1139.300532 | D113: 1349.263403 | E113: 1 | F113: -2806.399174 | G113: 786.1118216 | H113: 1 | I113: -309.5824363
A114: -4210.856102 | B114: 783.73261 | D114: 1645.020033 | E114: 1 | F114: -3100.418097 | G114: 963.6516476 | H114: 1 | I114: -455.5523401
A115: -4802.455744 | B115: 577.7843581 | D115: 1266.770759 | E115: 1 | F115: -4079.263788 | G115: 1108.897645 | H115: 1 | I115: -535.4577303
A116: -5118.681847 | B116: -27.943969 | D116: 1737.175496 | E116: 1 | F116: -3861.636881 | G116: 484.4245939 | H116: 1 | I116: -284.0850678
A117: -5690.162789 | B117: -468.6727276 | D117: 1629.166031 | E117: 1 | F117: -2064.905962 | G117: 846.5962956 | H117: 1 | I117: -185.0998768
A118: -2881.126535 | B118: 197.1276328 | D118: 1314.450807 | E118: 1 | F118: -1706.517926 | G118: 1138.273176 | H118: 1 | I118: -268.5721445
A119: -3089.039807 | B119: 69.4722945 | D119: 580.5005735 | E119: 1 | F119: -1559.783503 | G119: 1678.289149 | H119: 1 | I119: -432.2373531
A120: -3337.264123 | B120: -116.5170626 | D120: 788.4406167 | E120: 1 | F120: -423.9583178 | G120: 1947.148611 | H120: 1 | I120: -355.049521
A121: -2487.722897 | B121: -252.7705728 | D121: 1116.506749 | E121: 1 | F121: -338.058788 | G121: 1733.79823 | H121: 1 | I121: -185.6199149
A122: -488.3573742 | B122: -229.4492972 | D122: 1419.031684 | E122: 1 | F122: -324.7657003 | G122: 1356.220482 | H122: 1 | I122: -363.8027278
A123: 131.8659535 | B123: -121.6327305 | D123: 1480.755833 | E123: 1 | F123: -231.5274634 | G123: 1035.400063 | H123: 1 | I123: -666.0109543
A124: 800.1454741 | B124: -60.9533709 | D124: 1060.713474 | E124: 1 | F124: -220.7591503 | G124: 950.3115735 | H124: 1 | I124: -954.3606759
A125: 718.3065231 | B125: -10.7629901 | D125: 1033.831109 | E125: 1 | F125: -268.5040843 | G125: 775.2756165 | H125: 1 | I125: -1137.398389
A126: 954.5316812 | B126: 32.11715923 | D126: 755.9039027 | E126: 1 | F126: -1903.624106 | G126: 615.6836549 | H126: 1 | I126: -1194.136149
A127: 1080.237701 | B127: 138.8750676 | D127: 949.8942758 | E127: 1 | F127: -1884.979539 | G127: 825.4679543 | H127: 1 | I127: -1081.507525
A128: 180.6622416 | B128: 361.8166938 | D128: 1328.31659 | E128: 1 | F128: -1946.3153 | G128: 745.8746657 | H128: 1 | I128: -1111.113912
A129: -2698.207679 | B129: 600.5956258 | D129: 1421.032704 | E129: 1 | F129: -1909.638688 | G129: 702.6387298 | H129: 1 | I129: -912.9405916
A130: -2740.165494 | B130: 665.2238344 | D130: 1331.78015 | E130: 1 | F130: -2409.545567 | G130: 653.2224711 | H130: 1 | I130: -675.8206022
A131: -2815.865866 | B131: 664.2923954 | D131: 856.631755 | E131: 1 | F131: -4354.744287 | G131: 589.2288727 | H131: 1 | I131: -360.658657
A132: -2085.404541 | B132: 786.1118216 | D132: 894.8916436 | E132: 1 | F132: -4835.769536 | G132: 464.4209005 | H132: 1 | I132: -206.6136916
A133: -815.0248658 | B133: 963.6516476 | D133: 1102.891772 | E133: 1 | F133: -4288.84453 | G133: 360.2637147 | H133: 1 | I133: -295.6113512
A134: -339.4280514 | B134: 1108.897645 | D134: 1537.408039 | E134: 1 | F134: -4048.041706 | G134: 353.4398876 | H134: 1 | I134: -387.5584419
A135: -508.9248666 | B135: 484.4245939 | D135: 1343.09866 | E135: 1 | F135: -3662.683226 | G135: 377.3016325 | H135: 1 | I135: -347.9451761
A136: -527.1180423 | B136: 846.5962956 | D136: 1299.528491 | E136: 1 | F136: -2029.772849 | G136: 414.7302158 | H136: 1 | I136: -336.7346087
A137: -1200.958021 | B137: 1138.273176 | D137: 1314.653774 | E137: 1 | F137: -1532.14854 | G137: 359.0068953 | H137: 1 | I137: -108.0259618
A138: -1463.934084 | B138: 1678.289149 | D138: 1132.743665 | E138: 1 | F138: -1596.546187 | G138: 281.68367 | H138: 1 | I138: -57.68618952
A139: -1470.512955 | B139: 1947.148611 | D139: 1027.932957 | E139: 1 | F139: -1135.524324 | G139: 271.4769737 | H139: 1 | I139: -144.1819437
A140: -1463.328926 | B140: 1733.79823 | D140: 1429.40525 | E140: 1 | F140: -771.8210906 | G140: 309.0590261 | H140: 1 | I140: -475.7555116
A141: -2185.953419 | B141: 1356.220482 | D141: 109.1545021 | E141: 1 | F141: -1041.85521 | G141: 359.5487667 | H141: 1 | I141: -535.4683331
A142: -2806.399174 | B142: 1035.400063 | D142: 764.4323912 | E142: 1 | F142: -1126.981071 | G142: 448.4237237 | H142: 1 | I142: -541.2240098
A143: -3100.418097 | B143: 950.3115735 | D143: 771.2160669 | E143: 1 | F143: -1255.684824 | G143: 749.9133902 | H143: 1 | I143: -750.0038496
A144: -4079.263788 | B144: 775.2756165 | D144: 751.6711465 | E144: 1 | F144: -1912.622659 | G144: 168.2429591 | H144: 1 | I144: -921.0321141
A145: -3861.636881 | B145: 615.6836549 | D145: 588.784666 | E145: 1 | F145: -1273.202638 | G145: 276.4445704 | H145: 1 | I145: -1082.339551
A146: -2064.905962 | B146: 825.4679543 | D146: 993.8028412 | E146: 1 | F146: -1180.740209 | G146: 251.486248 | H146: 1 | I146: -1284.206924
A147: -1706.517926 | B147: 745.8746657 | D147: 1499.904262 | E147: 1 | F147: -626.1963502 | G147: 558.8795421 | H147: 1 | I147: -1487.5171
A148: -1559.783503 | B148: 702.6387298 | D148: 1323.689464 | E148: 1 | F148: -9.238294059 | G148: 684.7976568 | H148: 1 | I148: -1597.810929
A149: -423.9583178 | B149: 653.2224711 | D149: 103.3551452 | E149: 1 | F149: -155.5637653 | G149: 921.4098151 | H149: 1 | I149: -946.7080419
A150: -338.058788 | B150: 589.2288727 | D150: 577.4926241 | E150: 1 | F150: -917.3169433 | G150: 832.4481222 | H150: 1 | I150: -620.0414495
A151: -324.7657003 | B151: 464.4209005 | D151: 498.3252776 | E151: 1 | F151: -1961.533532 | G151: 768.1154227 | H151: 1 | I151: -239.7932549
A152: 397.1755473 | B152: 360.2637147 | D152: 508.6396074 | E152: 1 | F152: -2383.091499 | G152: 733.1019849 | H152: 1 | I152: -453.7496675
A153: 626.5963729 | B153: 353.4398876 | D153: 727.2678028 | E153: 1 | F153: -2295.16661 | G153: 784.9350493 | H153: 1 | I153: -679.4200821
A154: 849.974984 | B154: 377.3016325 | D154: 972.833901 | E154: 1 | F154: -3284.039911 | G154: 863.9909816 | H154: 1 | I154: -816.6965118
A155: -231.5274634 | B155: 414.7302158 | D155: 1385.857765 | E155: 1 | F155: -4214.403607 | G155: 959.2694934 | H155: 1 | I155: -849.8867264
A156: -220.7591503 | B156: 359.0068953 | D156: 1781.625491 | E156: 1 | F156: -5169.943139 | G156: 1131.752099 | H156: 1 | I156: -705.6162715
A157: -268.5040843 | B157: 281.68367 | D157: 1738.568374 | E157: 1 | F157: -6012.479948 | G157: 1343.402054 | H157: 1 | I157: -566.0907649
A158: -1903.624106 | B158: 271.4769737 | D158: 1789.061827 | E158: 1 | F158: -6190.074438 | G158: 1859.898778 | H158: 1 | I158: -651.5906076
A159: -1884.979539 | B159: 309.0590261 | D159: 1824.34076 | E159: 1 | F159: -6207.089768 | G159: 1944.731492 | H159: 1 | I159: -808.5188886
A160: -1946.3153 | B160: 359.5487667 | D160: 1747.445519 | E160: 1 | F160: -5828.113938 | G160: 2039.902132 | H160: 1 | I160: -883.59277
A161: -1909.638688 | B161: 448.4237237 | D161: 2150.8977 | E161: 1 | F161: -5253.029504 | G161: 2078.805028 | H161: 1 | I161: -957.0601295
A162: -2409.545567 | B162: 749.9133902 | D162: 2376.543775 | E162: 1 | F162: -4891.502584 | G162: 2081.11973 | H162: 1 | I162: -979.3888806
A163: -4354.744287 | B163: 168.2429591 | D163: 3056.01481 | E163: 1 | F163: -4269.74424 | G163: 2161.208112 | H163: 1 | I163: -1021.23053
A164: -4835.769536 | B164: 276.4445704 | D164: 3639.013648 | E164: 1 | F164: -3853.271979 | G164: 2174.282646 | H164: 1 | I164: -1017.952332
A165: -4288.84453 | B165: 251.486248 | D165: 3736.706858 | E165: 1 | F165: -3848.826488 | G165: 2170.229686 | H165: 1 | I165: -993.0902428
A166: -4048.041706 | B166: 558.8795421 | D166: 3449.570818 | E166: 1 | F166: -3487.103648 | G166: 2157.993284 | H166: 1 | I166: -947.9033961
A167: -3662.683226 | B167: 684.7976568 | D167: 3357.460823 | E167: 1 | F167: -2622.529893 | G167: 2246.115803 | H167: 1 | I167: -710.2178455
A168: -2029.772849 | B168: 921.4098151 | D168: 3483.051772 | E168: 1 | F168: -1825.660991 | G168: 2453.193737 | H168: 1 | I168: -615.8849248
A169: -1532.14854 | B169: 832.4481222 | D169: 3483.625084 | E169: 1 | F169: -1889.348351 | G169: 2370.982888 | H169: 1 | I169: -766.1781951
A170: -1596.546187 | B170: 768.1154227 | D170: 3551.351196 | E170: 1 | F170: -1995.423427 | G170: 2275.556529 | H170: 1 | I170: -781.0926923
A171: -1135.524324 | B171: 733.1019849 | D171: 3490.534715 | E171: 1 | F171: -2340.800257 | G171: 2175.434187 | H171: 1 | I171: -97.71426146
A172: -771.8210906 | B172: 784.9350493 | D172: 3189.544609 | E172: 1 | F172: -2592.057566 | G172: 2112.711846 | H172: 1 | I172: -22.46980649
A173: -1041.85521 | B173: 863.9909816 | D173: 2898.57181 | E173: 1 | F173: -2354.896027 | G173: 1948.236886 | H173: 1 | I173: -18.98042106
A174: -1126.981071 | B174: 959.2694934 | D174: 3256.035882 | E174: 1 | F174: -2391.881741 | G174: 1836.10129 | H174: 1 | I174: -195.9485316
A175: -1255.684824 | B175: 1131.752099 | D175: 3075.965368 | E175: 1 | F175: -2187.65966 | G175: 1714.125876 | H175: 1 | I175: -151.4986382
A176: -1912.622659 | B176: 1343.402054 | D176: 2927.071753 | E176: 1 | F176: -1926.238392 | G176: 1617.768819 | H176: 1 | I176: -318.3903763
A177: -1273.202638 | B177: 1859.898778 | D177: 2870.560984 | E177: 1 | F177: -1422.506047 | G177: 1583.111685 | H177: 1 | I177: -760.5019471
A178: -1180.740209 | B178: 1944.731492 | D178: 2896.649318 | E178: 1 | F178: -1630.334493 | G178: 1628.694254 | H178: 1 | I178: -1108.119819
A179: -626.1963502 | B179: 2039.902132 | D179: 2786.319791 | E179: 1 | F179: -2396.764302 | G179: 1619.676221 | H179: 1 | I179: -353.8380281
A180: 62.00230832 | B180: 2078.805028 | D180: 2556.03621 | E180: 1 | F180: -2119.592702 | G180: 1709.484614 | H180: 1 | I180: -431.0974874
A181: 887.234734 | B181: 2081.11973 | D181: 2194.662584 | E181: 1 | F181: -2515.23244 | G181: 2024.957398 | H181: 1 | I181: -430.1078654
A182: 1422.869886 | B182: 2161.208112 | D182: 1856.95823 | E182: 1 | F182: -3819.195521 | G182: 2424.79166 | H182: 1 | I182: -187.1356981
A183: 1492.473332 | B183: 2174.282646 | D183: 1861.938557 | E183: 1 | F183: -4847.363658 | G183: 2413.361568 | H183: 1 | I183: -347.9412959
A184: 1682.140708 | B184: 2170.229686 | D184: 1820.107935 | E184: 1 | F184: -5848.126683 | G184: 2289.178825 | H184: 1 | I184: -517.6499169
A185: 1866.398855 | B185: 2157.993284 | D185: 1335.099867 | E185: 1 | F185: -6386.858944 | G185: 2211.681412 | H185: 1 | I185: -629.9994146
A186: 2154.810019 | B186: 2246.115803 | D186: 1163.579932 | E186: 1 | F186: -6558.089012 | G186: 2036.630176 | H186: 1 | I186: -735.9171552
A187: 2280.577373 | B187: 2453.193737 | D187: 1263.347253 | E187: 1 | F187: -6724.552304 | G187: 1935.151243 | H187: 1 | I187: -371.6571425
A188: 1806.244111 | B188: 2370.982888 | D188: 1639.441925 | E188: 1 | F188: -6851.156993 | G188: 1884.485121 | H188: 1 | I188: -385.3839237
A189: 2167.000093 | B189: 2275.556529 | D189: 1546.436424 | E189: 1 | F189: -6758.754053 | G189: 1818.58549 | H189: 1 | I189: -598.0879378
A190: 2740.294533 | B190: 2175.434187 | D190: 1809.72659 | E190: 1 | F190: -6324.419268 | G190: 1731.038047 | H190: 1 | I190: -768.01813
A191: 2713.761157 | B191: 2112.711846 | D191: 2390.62185 | E191: 1 | F191: -5586.527471 | G191: 1764.853035 | H191: 1 | I191: -720.4132631
A192: 2528.42356 | B192: 1948.236886 | D192: 2506.020775 | E192: 1 | F192: -5468.696704 | G192: 1823.790307 | H192: 1 | I192: -803.7995231
A193: 2493.490965 | B193: 1836.10129 | D193: 2594.616377 | E193: 1 | F193: -5270.116076 | G193: 1441.506138 | H193: 1 | I193: -859.5644512
A194: 2436.380595 | B194: 1714.125876 | D194: 2764.186299 | E194: 1 | F194: -4701.77379 | G194: 1069.915249 | H194: 1 | I194: -874.2782076
A195: 2315.048905 | B195: 1617.768819 | D195: 2931.079405 | E195: 1 | F195: -4049.298647 | G195: 732.6133265 | H195: 1 | I195: -241.2674076
A196: 2260.217838 | B196: 1583.111685 | D196: 3003.490753 | E196: 1 | F196: -3483.741943 | G196: 273.4923834 | H196: 1 | I196: -43.4234696
A197: 2276.752166 | B197: 1628.694254 | D197: 3172.042655 | E197: 1 | F197: -2849.830196 | G197: 114.7935152 | H197: 1 | I197: -77.03355382
A198: 2143.497394 | B198: 1619.676221 | D198: 3436.203661 | E198: 1 | F198: -2526.062835 | G198: 550.8460967 | H198: 1 | I198: -147.3203629
A199: 2006.951005 | B199: 1709.484614 | D199: 3277.952449 | E199: 1 | F199: -2066.831767 | G199: 1027.47825 | H199: 1 | I199: -151.093878
A200: 2282.587031 | B200: 2024.957398 | D200: 2956.379502 | E200: 1 | F200: -1649.751863 | G200: 1079.260711 | H200: 1 | I200: -311.4219522
... 8537 more rows

Sheet Ramp_DK1
A1: Residual load DK1 | B1: ramp of residential load | C1: min | D1: max | E1: bins | F1: frequency | G1: frequency2 | I1: bins_mid
A2: -1666.086865 | B2: 0 | C2: =MIN(B2:B8737) -> -3658.748383 | D2: =MAX(B2:B8737) -> 3626.853954 | E2: =C2+120 -> -3538.748383 | F2: =FREQUENCY(B2:B8737, E2:E62) -> 1 | G2: =F2/$H$2 -> 0.0001144688645 | H2: =SUM(F2:F62) -> 8736 | I2: =E2 -> -3538.748383
A3: -1604.05627 | B3: =A3-A2 -> 62.0305945 | E3: =E2+120 -> -3418.748383 | F3: 4 | G3: =F3/$H$2 -> 0.0004578754579 | I3: =(E2+E3)/2 -> -3478.748383
A4: -1411.774673 | B4: =A4-A3 -> 192.2815974 | E4: =E3+120 -> -3298.748383 | F4: 3 | G4: 0.0003434065934 | I4: =(E3+E4)/2 -> -3358.748383
A5: -1766.567923 | B5: -354.7932502 | E5: -3178.748383 | F5: 4 | G5: 0.0004578754579 | I5: -3238.748383
A6: -2116.817126 | B6: -350.2492027 | E6: -3058.748383 | F6: 4 | G6: 0.0004578754579 | I6: -3118.748383
A7: -2905.063446 | B7: -788.2463202 | E7: -2938.748383 | F7: 2 | G7: 0.0002289377289 | I7: -2998.748383
A8: -2886.221225 | B8: 18.84222114 | E8: -2818.748383 | F8: 3 | G8: 0.0003434065934 | I8: -2878.748383
A9: -4265.414176 | B9: -1379.19295 | E9: -2698.748383 | F9: 4 | G9: 0.0004578754579 | I9: -2758.748383
A10: -3754.808362 | B10: 510.6058132 | E10: -2578.748383 | F10: 5 | G10: 0.0005723443223 | I10: -2638.748383
A11: -3483.500325 | B11: 271.3080377 | E11: -2458.748383 | F11: 2 | G11: 0.0002289377289 | I11: -2518.748383
A12: -3955.150059 | B12: -471.6497348 | E12: -2338.748383 | F12: 3 | G12: 0.0003434065934 | I12: -2398.748383
A13: -3846.422735 | B13: 108.7273245 | E13: -2218.748383 | F13: 5 | G13: 0.0005723443223 | I13: -2278.748383
A14: -3703.654362 | B14: 142.7683729 | E14: -2098.748383 | F14: 9 | G14: 0.00103021978 | I14: -2158.748383
A15: -3753.055704 | B15: -49.40134202 | E15: -1978.748383 | F15: 4 | G15: 0.0004578754579 | I15: -2038.748383
A16: -4021.778098 | B16: -268.7223937 | E16: -1858.748383 | F16: 5 | G16: 0.0005723443223 | I16: -1918.748383
A17: -3652.467843 | B17: 369.310255 | E17: -1738.748383 | F17: 6 | G17: 0.0006868131868 | I17: -1798.748383
A18: -2969.529228 | B18: 682.9386148 | E18: -1618.748383 | F18: 11 | G18: 0.001259157509 | I18: -1678.748383
A19: -2056.125398 | B19: 913.4038296 | E19: -1498.748383 | F19: 15 | G19: 0.001717032967 | I19: -1558.748383
A20: -1748.282795 | B20: 307.8426035 | E20: -1378.748383 | F20: 18 | G20: 0.00206043956 | I20: -1438.748383
A21: -1995.679221 | B21: -247.396426 | E21: -1258.748383 | F21: 32 | G21: 0.003663003663 | I21: -1318.748383
A22: -2199.118123 | B22: -203.438902 | E22: -1138.748383 | F22: 47 | G22: 0.00538003663 | H22: =SUM(G2:G22) -> 0.02140567766 | I22: -1198.748383
A23: -2141.340396 | B23: 57.77772656 | E23: -1018.748383 | F23: 64 | G23: 0.007326007326 | I23: -1078.748383
A24: -1544.967535 | B24: 596.3728611 | E24: -898.7483825 | F24: 112 | G24: 0.01282051282 | I24: -958.7483825
A25: -550.6236817 | B25: 994.3438535 | E25: -778.7483825 | F25: 149 | G25: 0.01705586081 | I25: -838.7483825
A26: -536.9383706 | B26: 13.6853111 | E26: -658.7483825 | F26: 215 | G26: 0.02461080586 | I26: -718.7483825
A27: -196.0328527 | B27: 340.9055179 | E27: -538.7483825 | F27: 308 | G27: 0.03525641026 | I27: -598.7483825
A28: 194.8675781 | B28: 390.9004308 | E28: -418.7483825 | F28: 427 | G28: 0.04887820513 | I28: -478.7483825
A29: 813.7621034 | B29: 618.8945254 | E29: -298.7483825 | F29: 516 | G29: 0.05906593407 | I29: -358.7483825
A30: 838.8355584 | B30: 25.07345496 | E30: -178.7483825 | F30: 780 | G30: 0.08928571429 | I30: -238.7483825
A31: -799.3657886 | B31: -1638.201347 | E31: -58.74838251 | F31: 1038 | G31: 0.1188186813 | I31: -118.7483825
A32: -801.728548 | B32: -2.362759424 | E32: 61.25161749 | F32: 1177 | G32: 0.1347298535 | H32: =SUM(G23:G32) -> 0.5478479853 | I32: 1.251617489
A33: -1801.229913 | B33: -999.5013649 | E33: 181.2516175 | F33: 966 | G33: 0.1105769231 | I33: 121.2516175
A34: -1819.820207 | B34: -18.5902938 | E34: 301.2516175 | F34: 798 | G34: 0.09134615385 | I34: 241.2516175
A35: -2115.573566 | B35: -295.7533589 | E35: 421.2516175 | F35: 556 | G35: 0.06364468864 | I35: 361.2516175
A36: -2292.054236 | B36: -176.4806707 | E36: 541.2516175 | F36: 425 | G36: 0.0486492674 | I36: 481.2516175
A37: -2702.340198 | B37: -410.2859619 | E37: 661.2516175 | F37: 305 | G37: 0.03491300366 | I37: 601.2516175
A38: -3106.821994 | B38: -404.4817963 | E38: 781.2516175 | F38: 208 | G38: 0.02380952381 | I38: 721.2516175
A39: -3268.82114 | B39: -161.9991458 | E39: 901.2516175 | F39: 139 | G39: 0.01591117216 | I39: 841.2516175
A40: -3427.582318 | B40: -158.7611773 | E40: 1021.251617 | F40: 103 | G40: 0.01179029304 | I40: 961.2516175
A41: -3405.437146 | B41: 22.14517186 | E41: 1141.251617 | F41: 61 | G41: 0.006982600733 | I41: 1081.251617
A42: -3182.494853 | B42: 222.9422929 | E42: 1261.251617 | F42: 47 | G42: 0.00538003663 | I42: 1201.251617
A43: -2996.279598 | B43: 186.2152544 | E43: 1381.251617 | F43: 38 | G43: 0.00434981685 | I43: 1321.251617
A44: -3335.908429 | B44: -339.6288303 | E44: 1501.251617 | F44: 25 | G44: 0.002861721612 | I44: 1441.251617
A45: -3750.119861 | B45: -414.2114326 | E45: 1621.251617 | F45: 16 | G45: 0.001831501832 | I45: 1561.251617
A46: -4111.391692 | B46: -361.2718303 | E46: 1741.251617 | F46: 14 | G46: 0.001602564103 | H46: =SUM(G33:G46) -> 0.4236492674 | I46: 1681.251617
A47: -4391.515223 | B47: -280.1235308 | E47: 1861.251617 | F47: 9 | G47: 0.00103021978 | I47: 1801.251617
A48: -4740.831203 | B48: -349.3159801 | E48: 1981.251617 | F48: 9 | G48: 0.00103021978 | I48: 1921.251617
A49: -4963.98102 | B49: -223.1498171 | E49: 2101.251617 | F49: 6 | G49: 0.0006868131868 | I49: 2041.251617
A50: -4739.606149 | B50: 224.3748704 | E50: 2221.251617 | F50: 4 | G50: 0.0004578754579 | I50: 2161.251617
A51: -3105.960582 | B51: 1633.645568 | E51: 2341.251617 | F51: 5 | G51: 0.0005723443223 | I51: 2281.251617
A52: -3224.699402 | B52: -118.7388206 | E52: 2461.251617 | F52: 1 | G52: 0.0001144688645 | I52: 2401.251617
A53: -3139.148062 | B53: 85.5513406 | E53: 2581.251617 | F53: 5 | G53: 0.0005723443223 | I53: 2521.251617
A54: -3199.903235 | B54: -60.7551735 | E54: 2701.251617 | F54: 3 | G54: 0.0003434065934 | I54: 2641.251617
A55: -3091.431803 | B55: 108.471432 | E55: 2821.251617 | F55: 5 | G55: 0.0005723443223 | I55: 2761.251617
A56: -2680.213003 | B56: 411.2188 | E56: 2941.251617 | F56: 2 | G56: 0.0002289377289 | I56: 2881.251617
A57: -5925.778377 | B57: -3245.565374 | E57: 3061.251617 | F57: 3 | G57: 0.0003434065934 | I57: 3001.251617
A58: -6053.32772 | B58: -127.5493435 | E58: 3181.251617 | F58: 3 | G58: 0.0003434065934 | I58: 3121.251617
A59: -5919.317713 | B59: 134.0100068 | E59: 3301.251617 | F59: 3 | G59: 0.0003434065934 | I59: 3241.251617
A60: -5131.332857 | B60: 787.9848564 | E60: 3421.251617 | F60: 1 | G60: 0.0001144688645 | I60: 3361.251617
A61: -4891.485814 | B61: 239.8470428 | E61: 3541.251617 | F61: 2 | G61: 0.0002289377289 | I61: 3481.251617
A62: -4348.50897 | B62: 542.9768442 | E62: 3661.251617 | F62: 1 | G62: 0.0001144688645 | H62: =SUM(G1:G62) -> 1 | I62: 3601.251617
A63: -4298.060708 | B63: 50.4482617 | H63: =SUM(G47:G62) -> 0.007097069597
A64: -4131.469722 | B64: 166.5909866
A65: -4115.561764 | B65: 15.9079579
A66: -3986.679157 | B66: 128.8826072
A67: -3768.941412 | B67: 217.7377451
A68: -3995.94854 | B68: =A68-A67 -> -227.0071288
A69: -3861.938254 | B69: 134.0102866
A70: -2723.238154 | B70: 1138.700099
A71: 437.0689715 | B71: 3160.307126
A72: 601.5620368 | B72: 164.4930653
A73: 996.3783975 | B73: 394.8163607
A74: 1021.944119 | B74: 25.56572166
A75: 929.08629 | B75: -92.85782918
A76: 840.1898422 | B76: -88.89644773
A77: 792.6025726 | B77: -47.58726966
A78: 1131.798194 | B78: 339.195621
A79: 932.7089176 | B79: -199.0892759
A80: 1072.958822 | B80: 140.2499047
A81: 510.4135728 | B81: -562.5452495
A82: 458.4809065 | B82: -51.93266624
A83: 337.8997007 | B83: -120.5812058
A84: -1027.905691 | B84: -1365.805391
A85: -955.0691084 | B85: 72.83658234
A86: -965.9058827 | B86: -10.83677423
A87: -1185.860775 | B87: -219.9548919
A88: -1609.975779 | B88: -424.1150041
A89: -1723.722098 | B89: -113.7463197
A90: -5040.497458 | B90: -3316.775359
A91: -5058.629384 | B91: -18.13192605
A92: -5179.557155 | B92: -120.9277709
A93: -2115.836179 | B93: 3063.720975
A94: -2344.966841 | B94: -229.130662
A95: -1854.963867 | B95: 490.0029743
A96: -726.7353722 | B96: 1128.228495
A97: 914.5415134 | B97: 1641.276886
A98: 809.2418594 | B98: -105.2996541
A99: 901.6387776 | B99: 92.39691822
A100: 837.7595309 | B100: -63.87924667
A101: 942.3458396 | B101: 104.5863087
A102: 1197.236081 | B102: 254.8902416
A103: 1332.882182 | B103: 135.6461008
A104: 345.0890775 | B104: -987.7931045
A105: -1835.723206 | B105: -2180.812283
A106: -1629.549469 | B106: 206.1737366
A107: -1656.452873 | B107: -26.90340338
A108: -1605.392792 | B108: 51.06008047
A109: -1326.262636 | B109: 279.1301566
A110: -1351.999457 | B110: -25.7368214
A111: -816.4983879 | B111: 535.5010691
A112: -665.0921157 | B112: 151.4062721
A113: -895.0246783 | B113: -229.9325625
A114: -4210.856102 | B114: -3315.831424
A115: -4802.455744 | B115: -591.5996418
A116: -5118.681847 | B116: -316.226103
A117: -5690.162789 | B117: -571.480942
A118: -2881.126535 | B118: 2809.036254
A119: -3089.039807 | B119: -207.913272
A120: -3337.264123 | B120: -248.2243155
A121: -2487.722897 | B121: 849.5412251
A122: -488.3573742 | B122: 1999.365523
A123: 131.8659535 | B123: 620.2233277
A124: 800.1454741 | B124: 668.2795205
A125: 718.3065231 | B125: -81.838951
A126: 954.5316812 | B126: 236.2251581
A127: 1080.237701 | B127: 125.7060201
A128: 180.6622416 | B128: -899.5754597
A129: -2698.207679 | B129: -2878.86992
A130: -2740.165494 | B130: -41.95781488
A131: -2815.865866 | B131: -75.70037206
A132: -2085.404541 | B132: =A132-A131 -> 730.4613243
A133: -815.0248658 | B133: 1270.379675
A134: -339.4280514 | B134: 475.5968144
A135: -508.9248666 | B135: -169.4968152
A136: -527.1180423 | B136: -18.19317577
A137: -1200.958021 | B137: -673.8399789
A138: -1463.934084 | B138: -262.9760625
A139: -1470.512955 | B139: -6.578871377
A140: -1463.328926 | B140: 7.184029501
A141: -2185.953419 | B141: -722.6244933
A142: -2806.399174 | B142: -620.4457555
A143: -3100.418097 | B143: -294.0189222
A144: -4079.263788 | B144: -978.8456914
A145: -3861.636881 | B145: 217.6269069
A146: -2064.905962 | B146: 1796.730919
A147: -1706.517926 | B147: 358.388036
A148: -1559.783503 | B148: 146.7344232
A149: -423.9583178 | B149: 1135.825185
A150: -338.058788 | B150: 85.89952985
A151: -324.7657003 | B151: 13.29308772
A152: 397.1755473 | B152: 721.9412476
A153: 626.5963729 | B153: 229.4208256
A154: 849.974984 | B154: 223.3786111
A155: -231.5274634 | B155: -1081.502447
A156: -220.7591503 | B156: 10.76831313
A157: -268.5040843 | B157: -47.74493399
A158: -1903.624106 | B158: -1635.120022
A159: -1884.979539 | B159: 18.64456691
A160: -1946.3153 | B160: -61.33576119
A161: -1909.638688 | B161: 36.67661208
A162: -2409.545567 | B162: -499.9068785
A163: -4354.744287 | B163: -1945.19872
A164: -4835.769536 | B164: -481.025249
A165: -4288.84453 | B165: 546.9250057
A166: -4048.041706 | B166: 240.8028241
A167: -3662.683226 | B167: 385.3584801
A168: -2029.772849 | B168: 1632.910377
A169: -1532.14854 | B169: 497.6243097
A170: -1596.546187 | B170: -64.39764696
A171: -1135.524324 | B171: 461.0218627
A172: -771.8210906 | B172: 363.7032335
A173: -1041.85521 | B173: -270.0341192
A174: -1126.981071 | B174: -85.12586095
A175: -1255.684824 | B175: -128.7037534
A176: -1912.622659 | B176: -656.9378346
A177: -1273.202638 | B177: 639.4200205
A178: -1180.740209 | B178: 92.46242879
A179: -626.1963502 | B179: 554.5438592
A180: 62.00230832 | B180: 688.1986585
A181: 887.234734 | B181: 825.2324257
A182: 1422.869886 | B182: 535.6351525
A183: 1492.473332 | B183: 69.60344597
A184: 1682.140708 | B184: 189.6673755
A185: 1866.398855 | B185: 184.2581467
A186: 2154.810019 | B186: 288.4111644
A187: 2280.577373 | B187: 125.7673541
A188: 1806.244111 | B188: -474.3332617
A189: 2167.000093 | B189: 360.7559814
A190: 2740.294533 | B190: 573.2944401
A191: 2713.761157 | B191: -26.53337612
A192: 2528.42356 | B192: -185.3375965
A193: 2493.490965 | B193: -34.93259516
A194: 2436.380595 | B194: -57.11036969
A195: 2315.048905 | B195: -121.3316909
A196: 2260.217838 | B196: =A196-A195 -> -54.83106649
A197: 2276.752166 | B197: 16.53432812
A198: 2143.497394 | B198: -133.2547724
A199: 2006.951005 | B199: -136.546389
A200: 2282.587031 | B200: 275.636026
... 8537 more rows

Sheet Ramp_DK2
A1: Residual load DK2 | B1: ramp of residential load | C1: min | D1: max | E1: bins | F1: frequency | G1: frequency2 | I1: bins_mid
A2: 1009.716754 | B2: 0 | C2: =MIN(B2:B8737) -> -1492.386502 | D2: =MAX(B2:B8737) -> 1780.039426 | E2: =C2+50 -> -1442.386502 | F2: =FREQUENCY(B2:B8737, E2:E67) -> 1 | G2: =F2/$H$2 -> 0.0001144688645 | H2: =SUM(F2:F67) -> 8736 | I2: =E2 -> -1442.386502
A3: 906.4147115 | B3: =A3-A2 -> -103.3020426 | E3: =E2+50 -> -1392.386502 | F3: 0 | G3: =F3/$H$2 -> 0 | I3: =(E2+E3)/2 -> -1417.386502
A4: 724.1889515 | B4: =A4-A3 -> -182.22576 | E4: =E3+50 -> -1342.386502 | F4: 0 | G4: 0 | I4: =(E3+E4)/2 -> -1367.386502
A5: 541.795636 | B5: -182.3933155 | E5: -1292.386502 | F5: 0 | G5: 0 | I5: -1317.386502
A6: 447.9242038 | B6: -93.87143222 | E6: -1242.386502 | F6: 0 | G6: 0 | I6: -1267.386502
A7: 504.7965136 | B7: 56.87230985 | E7: -1192.386502 | F7: 1 | G7: 0.0001144688645 | I7: -1217.386502
A8: 738.7444395 | B8: 233.9479259 | E8: -1142.386502 | F8: 0 | G8: 0 | I8: -1167.386502
A9: 486.2335598 | B9: -252.5108797 | E9: -1092.386502 | F9: 0 | G9: 0 | I9: -1117.386502
A10: 585.9466332 | B10: 99.7130734 | E10: -1042.386502 | F10: 1 | G10: 0.0001144688645 | I10: -1067.386502
A11: 637.0570924 | B11: 51.11045919 | E11: -992.3865023 | F11: 1 | G11: 0.0001144688645 | I11: -1017.386502
A12: 655.3046056 | B12: 18.24751315 | E12: -942.3865023 | F12: 0 | G12: 0 | I12: -967.3865023
A13: 632.2454571 | B13: -23.05914851 | E13: -892.3865023 | F13: 1 | G13: 0.0001144688645 | I13: -917.3865023
A14: 589.3139884 | B14: -42.93146862 | E14: -842.3865023 | F14: 2 | G14: 0.0002289377289 | I14: -867.3865023
A15: 584.1496864 | B15: -5.164302008 | E15: -792.3865023 | F15: 5 | G15: 0.0005723443223 | I15: -817.3865023
A16: 678.2625516 | B16: 94.1128652 | E16: -742.3865023 | F16: 0 | G16: 0 | I16: -767.3865023
A17: 759.9391945 | B17: 81.67664283 | E17: -692.3865023 | F17: 3 | G17: 0.0003434065934 | I17: -717.3865023
A18: 1067.300158 | B18: 307.3609633 | E18: -642.3865023 | F18: 5 | G18: 0.0005723443223 | I18: -667.3865023
A19: 1509.379294 | B19: 442.079136 | E19: -592.3865023 | F19: 9 | G19: 0.00103021978 | I19: -617.3865023
A20: 1617.51906 | B20: 108.1397664 | E20: -542.3865023 | F20: 10 | G20: 0.001144688645 | I20: -567.3865023
A21: 1550.551965 | B21: -66.96709503 | E21: -492.3865023 | F21: 16 | G21: 0.001831501832 | I21: -517.3865023
A22: 1396.388433 | B22: -154.1635317 | E22: -442.3865023 | F22: 19 | G22: 0.002174908425 | H22: =SUM(G2:G22) -> 0.008470695971 | I22: -467.3865023
A23: 1376.125049 | B23: -20.26338468 | E23: -392.3865023 | F23: 34 | G23: 0.003891941392 | I23: -417.3865023
A24: 1223.270466 | B24: -152.8545829 | E24: -342.3865023 | F24: 74 | G24: 0.008470695971 | I24: -367.3865023
A25: 1478.899285 | B25: 255.6288192 | E25: -292.3865023 | F25: 110 | G25: 0.01259157509 | I25: -317.3865023
A26: 1337.996923 | B26: -140.9023625 | E26: -242.3865023 | F26: 201 | G26: 0.02300824176 | I26: -267.3865023
A27: 1329.831673 | B27: -8.165249167 | E27: -192.3865023 | F27: 389 | G27: 0.04452838828 | I27: -217.3865023
A28: 1315.578304 | B28: -14.25336906 | E28: -142.3865023 | F28: 604 | G28: 0.06913919414 | I28: -167.3865023
A29: 1340.227265 | B29: 24.64896043 | E29: -92.38650226 | F29: 885 | G29: 0.1013049451 | I29: -117.3865023
A30: 1364.144819 | B30: 23.91755391 | E30: -42.38650226 | F30: 1067 | G30: 0.1221382784 | I30: -67.38650226
A31: 1419.213315 | B31: 55.0684966 | E31: 7.613497744 | F31: 1136 | G31: 0.13003663 | I31: -17.38650226
A32: 1652.847438 | B32: 233.6341228 | E32: 57.61349774 | F32: 1200 | G32: 0.1373626374 | H32: =SUM(G23:G32) -> 0.6524725275 | I32: 32.61349774
A33: 1898.231865 | B33: 245.3844267 | E33: 107.6134977 | F33: 949 | G33: 0.1086309524 | I33: 82.61349774
A34: 1864.977239 | B34: -33.25462618 | E34: 157.6134977 | F34: 747 | G34: 0.08550824176 | I34: 132.6134977
A35: 1634.689271 | B35: -230.2879677 | E35: 207.6134977 | F35: 463 | G35: 0.05299908425 | I35: 182.6134977
A36: 1430.818078 | B36: -203.8711926 | E36: 257.6134977 | F36: 298 | G36: 0.03411172161 | I36: 232.6134977
A37: 1211.891588 | B37: -218.9264902 | E37: 307.6134977 | F37: 202 | G37: 0.02312271062 | I37: 282.6134977
A38: 1037.644014 | B38: -174.2475739 | E38: 357.6134977 | F38: 123 | G38: 0.01407967033 | I38: 332.6134977
A39: 1093.0528 | B39: 55.40878611 | E39: 407.6134977 | F39: 74 | G39: 0.008470695971 | I39: 382.6134977
A40: 1284.019794 | B40: 190.9669938 | E40: 457.6134977 | F40: 38 | G40: 0.00434981685 | H40: =SUM(G33:G40) -> 0.3312728938 | I40: 432.6134977
A41: 1468.469584 | B41: 184.4497895 | E41: 507.6134977 | F41: 20 | G41: 0.002289377289 | I41: 482.6134977
A42: 1567.027114 | B42: 98.55753048 | E42: 557.6134977 | F42: 11 | G42: 0.001259157509 | I42: 532.6134977
A43: 1736.967925 | B43: 169.9408112 | E43: 607.6134977 | F43: 8 | G43: 0.0009157509158 | I43: 582.6134977
A44: 1598.740624 | B44: -138.2273018 | E44: 657.6134977 | F44: 6 | G44: 0.0006868131868 | I44: 632.6134977
A45: 1223.997013 | B45: -374.7436104 | E45: 707.6134977 | F45: 6 | G45: 0.0006868131868 | I45: 682.6134977
A46: 937.2361136 | B46: -286.7608995 | E46: 757.6134977 | F46: 4 | G46: 0.0004578754579 | I46: 732.6134977
A47: 689.9858785 | B47: -247.2502351 | E47: 807.6134977 | F47: 3 | G47: 0.0003434065934 | I47: 782.6134977
A48: 454.3444325 | B48: -235.6414459 | E48: 857.6134977 | F48: 4 | G48: 0.0004578754579 | I48: 832.6134977
A49: 281.9002249 | B49: -172.4442076 | E49: 907.6134977 | F49: 0 | G49: 0 | I49: 882.6134977
A50: -154.7011628 | B50: -436.6013877 | E50: 957.6134977 | F50: 0 | G50: 0 | I50: 932.6134977
A51: 62.80151479 | B51: 217.5026776 | E51: 1007.613498 | F51: 1 | G51: 0.0001144688645 | I51: 982.6134977
A52: 98.98847215 | B52: 36.18695736 | E52: 1057.613498 | F52: 0 | G52: 0 | I52: 1032.613498
A53: 106.0910745 | B53: 7.102602394 | E53: 1107.613498 | F53: 2 | G53: 0.0002289377289 | I53: 1082.613498
A54: 118.7781558 | B54: 12.68708127 | E54: 1157.613498 | F54: 0 | G54: 0 | I54: 1132.613498
A55: 164.7859337 | B55: 46.0077779 | E55: 1207.613498 | F55: 0 | G55: 0 | I55: 1182.613498
A56: 349.7110465 | B56: 184.9251128 | E56: 1257.613498 | F56: 1 | G56: 0.0001144688645 | I56: 1232.613498
A57: -264.353119 | B57: -614.0641655 | E57: 1307.613498 | F57: 0 | G57: 0 | I57: 1282.613498
A58: -343.8372095 | B58: -79.48409051 | E58: 1357.613498 | F58: 0 | G58: 0 | I58: 1332.613498
A59: -450.7337379 | B59: -106.8965285 | E59: 1407.613498 | F59: 0 | G59: 0 | I59: 1382.613498
A60: -539.8236005 | B60: -89.08986255 | E60: 1457.613498 | F60: 0 | G60: 0 | I60: 1432.613498
A61: -649.3281094 | B61: -109.5045089 | E61: 1507.613498 | F61: 0 | G61: 0 | I61: 1482.613498
A62: -696.0919106 | B62: -46.76380121 | E62: 1557.613498 | F62: 0 | G62: 0 | I62: 1532.613498
A63: -683.1094462 | B63: 12.98246443 | E63: 1607.613498 | F63: 0 | G63: 0 | I63: 1582.613498
A64: -659.1763964 | B64: 23.93304987 | E64: 1657.613498 | F64: 1 | G64: 0.0001144688645 | I64: 1632.613498
A65: -607.7943144 | B65: 51.38208192 | E65: 1707.613498 | F65: 0 | G65: 0 | I65: 1682.613498
A66: -320.6735382 | B66: 287.1207762 | E66: 1757.613498 | F66: 0 | G66: 0 | I66: 1732.613498
A67: 497.7732848 | B67: 818.4468229 | E67: 1807.613498 | F67: 1 | G67: =F67/$H$2 -> 0.0001144688645 | H67: =SUM(G1:G67) -> 1 | I67: 1782.613498
A68: 583.2721586 | B68: =A68-A67 -> 85.49887385 | H68: =SUM(G41:G67) -> 0.007783882784
A69: 442.4352595 | B69: -140.8368991
A70: 284.4033798 | B70: -158.0318797
A71: 135.4843542 | B71: -148.9190256
A72: 23.38494441 | B72: -112.0994098
A73: 244.6555514 | B73: 221.270607
A74: 370.4923475 | B74: 125.8367961
A75: 287.8573997 | B75: -82.6349478
A76: 241.7780486 | B76: -46.07935106
A77: 202.7225129 | B77: -39.05553568
A78: 572.0461744 | B78: 369.3236615
A79: 255.7239371 | B79: -316.3222373
A80: -74.32336996 | B80: -330.0473071
A81: 278.0391352 | B81: 352.3625052
A82: 352.15142 | B82: 74.11228477
A83: 181.1334032 | B83: -171.0180168
A84: 112.7089208 | B84: -68.42448239
A85: 172.0376141 | B85: 59.32869334
A86: 268.9410467 | B86: 96.90343262
A87: 340.0809486 | B87: 71.13990185
A88: 367.1181849 | B88: 27.03723636
A89: 328.9407295 | B89: -38.17745546
A90: 531.2175311 | B90: 202.2768017
A91: 714.5309814 | B91: 183.3134502
A92: 637.3236095 | B92: -77.20737184
A93: 497.6086301 | B93: -139.7149795
A94: 455.9661457 | B94: -41.64248435
A95: 423.7792065 | B95: -32.18693923
A96: 812.1626029 | B96: 388.3833965
A97: 571.7844551 | B97: -240.3781478
A98: 353.3027716 | B98: -218.4816835
A99: 275.0553973 | B99: -78.24737427
A100: 234.484269 | B100: -40.57112838
A101: 330.6766061 | B101: 96.19233716
A102: 592.565861 | B102: 261.8892549
A103: 793.9464954 | B103: 201.3806344
A104: 1023.10731 | B104: 229.1608145
A105: 864.0912732 | B105: -159.0160368
A106: 891.4724026 | B106: 27.38112944
A107: 729.1718021 | B107: -162.3006005
A108: 733.9643167 | B108: 4.792514552
A109: 931.3280956 | B109: 197.3637789
A110: 1282.141547 | B110: 350.8134519
A111: 1495.253518 | B111: 213.1119702
A112: 1364.947612 | B112: -130.305906
A113: 1139.300532 | B113: -225.6470801
A114: 783.73261 | B114: -355.5679215
A115: 577.7843581 | B115: -205.9482519
A116: -27.943969 | B116: -605.7283271
A117: -468.6727276 | B117: -440.7287586
A118: 197.1276328 | B118: 665.8003604
A119: 69.4722945 | B119: -127.6553383
A120: -116.5170626 | B120: -185.9893571
A121: -252.7705728 | B121: -136.2535102
A122: -229.4492972 | B122: 23.32127557
A123: -121.6327305 | B123: 107.8165667
A124: -60.9533709 | B124: 60.67935956
A125: -10.7629901 | B125: 50.1903808
A126: 32.11715923 | B126: 42.88014933
A127: 138.8750676 | B127: 106.7579084
A128: 361.8166938 | B128: 222.9416262
A129: 600.5956258 | B129: 238.778932
A130: 665.2238344 | B130: 64.62820863
A131: 664.2923954 | B131: -0.9314390211
A132: 786.1118216 | B132: =A132-A131 -> 121.8194262
A133: 963.6516476 | B133: 177.539826
A134: 1108.897645 | B134: 145.2459979
A135: 484.4245939 | B135: -624.4730515
A136: 846.5962956 | B136: 362.1717017
A137: 1138.273176 | B137: 291.6768801
A138: 1678.289149 | B138: 540.0159729
A139: 1947.148611 | B139: 268.8594628
A140: 1733.79823 | B140: -213.3503813
A141: 1356.220482 | B141: -377.577748
A142: 1035.400063 | B142: -320.8204191
A143: 950.3115735 | B143: -85.08848937
A144: 775.2756165 | B144: -175.035957
A145: 615.6836549 | B145: -159.5919616
A146: 825.4679543 | B146: 209.7842993
A147: 745.8746657 | B147: -79.59328853
A148: 702.6387298 | B148: -43.23593591
A149: 653.2224711 | B149: -49.41625875
A150: 589.2288727 | B150: -63.99359833
A151: 464.4209005 | B151: -124.8079722
A152: 360.2637147 | B152: -104.1571858
A153: 353.4398876 | B153: -6.823827162
A154: 377.3016325 | B154: 23.86174498
A155: 414.7302158 | B155: 37.42858327
A156: 359.0068953 | B156: -55.72332046
A157: 281.68367 | B157: -77.3232253
A158: 271.4769737 | B158: -10.20669638
A159: 309.0590261 | B159: 37.58205246
A160: 359.5487667 | B160: 50.48974054
A161: 448.4237237 | B161: 88.87495706
A162: 749.9133902 | B162: 301.4896665
A163: 168.2429591 | B163: -581.6704311
A164: 276.4445704 | B164: 108.2016113
A165: 251.486248 | B165: -24.95832234
A166: 558.8795421 | B166: 307.3932941
A167: 684.7976568 | B167: 125.9181147
A168: 921.4098151 | B168: 236.6121582
A169: 832.4481222 | B169: -88.96169287
A170: 768.1154227 | B170: -64.33269952
A171: 733.1019849 | B171: -35.01343776
A172: 784.9350493 | B172: 51.8330644
A173: 863.9909816 | B173: 79.05593232
A174: 959.2694934 | B174: 95.27851172
A175: 1131.752099 | B175: 172.4826056
A176: 1343.402054 | B176: 211.6499554
A177: 1859.898778 | B177: 516.4967237
A178: 1944.731492 | B178: 84.83271439
A179: 2039.902132 | B179: 95.17063923
A180: 2078.805028 | B180: 38.9028963
A181: 2081.11973 | B181: 2.314702119
A182: 2161.208112 | B182: 80.08838246
A183: 2174.282646 | B183: 13.07453399
A184: 2170.229686 | B184: -4.05296036
A185: 2157.993284 | B185: -12.23640217
A186: 2246.115803 | B186: 88.12251876
A187: 2453.193737 | B187: 207.0779348
A188: 2370.982888 | B188: -82.21084963
A189: 2275.556529 | B189: -95.42635899
A190: 2175.434187 | B190: -100.1223423
A191: 2112.711846 | B191: -62.72234091
A192: 1948.236886 | B192: -164.4749594
A193: 1836.10129 | B193: -112.1355964
A194: 1714.125876 | B194: -121.9754137
A195: 1617.768819 | B195: -96.35705691
A196: 1583.111685 | B196: =A196-A195 -> -34.65713416
A197: 1628.694254 | B197: 45.58256912
A198: 1619.676221 | B198: -9.01803298
A199: 1709.484614 | B199: 89.8083933
A200: 2024.957398 | B200: 315.4727838
... 8537 more rows
